{"text_format":"1","workbook":"xlsx","n_sheets":5,"sheets":["INSTRUCCIONES","DATOS","EVALUACION","INFO CENTRO","PLAN DE MEDIDAS"],"not_rendered":{"charts":0,"images":1,"macros":1,"external_links":0,"defined_names":4,"comments":2,"pivot_tables":0},"unopened":[],"bounds":{"document_bytes":16777216,"sheet_cells":100000,"rows_first":2000,"rows_last":500,"rows_between":2000,"halvings":0,"cell_chars":16384,"cell_head_chars":4096},"cells_cut":0,"cells_raw":0,"read":"whole","date_system":"1900"}

{"sheet":"INSTRUCCIONES","index":0,"n_rows":34,"n_cols":18,"rows_kept":34,"cut":false,"hidden":false,"merged":[[33,1,34,17],[0,1,4,17],[18,1,18,10],[9,1,16,17],[20,1,21,17],[23,1,24,17],[26,1,28,17],[30,1,31,17]]}
[null,"    INSTRUCTIVO DE USO"]
[]
[]
[]
[]
[]
[]
[]
[null,null,null,null,null,null,null,null,null,null,null,null,null,null,null,null,null,"Fecha de actualización del documento: 23 de marzo de 2021."]
[null,"La siguiente lista de verificación de medidas preventivas ha sido construida a partir de lo establecido en: \n\n(a) Recomendaciones de actuación en los lugares de trabajo en el contexto COVID-19 (excluidos los establecimientos de atención de salud), de fecha 07 de abril de 2020, MINSAL,  ORD/B1 N°1086. \n(b) Protocolo de manejo y prevención ante COVID-19 en restaurantes, cafés y otros establecimientos análogos, publicado el 08 de junio de 2020 por el Ministerio de Economía, Fomento y Turismo.\n(c) Protocolo general de manejo y prevención ante covid-19 en el sector turismo. Protocolo de manejo y prevención ante COVID-19 en restaurantes, cafés y otros establecimientos análogos, publicado el 08 de junio de 2020 por el Ministerio de Economía, Fomento y Turismo.\n(c) Resolución Exenta N°282 de fecha 16 de abril de 2020 de MINSAL, la cual dispone uso obligatorio de mascarillas en lugares y circunstancias que indica.\n(e) Buenas prácticas de la Industria en materia de manejo de crisis. "]
[]
[]
[]
[]
[]
[]
[]
[]
[null,"Pasos a seguir"]
[]
[null,"1. Se debe individualizar el centro de trabajo en que se aplicará esta lista de verificación. Acceder por medio del botón \"DATOS DEL CENTRO\", ubicado en la parte superior de esta hoja.\n"]
[]
[]
[null,"2. Efectuado el registro del centro, se debe continuar a la hoja siguiente, donde debe seleccionar las actividades que se realizan en su centro de trabajo. Acceder por medio del botón \"ACTIVIDADES DEL CENTRO\""]
[]
[]
[null,"3. Seleccionadas las actividades, se debe acceder a las preguntas de evaluación por medio del botón \"LISTA DE EVALUACIÓN\". Se deben responder las preguntas de cada apartado, seleccionando \"SI\" cuando se ha implementado la totalidad de la medida evaluada, caso contrario se selecciona \"NO\". Si la pregunta de evaluación no se ajusta a la realizada del centro de trabajo, se selecciona \"NO APLICA\""]
[]
[]
[]
[null,"4. Respondida la totalidad del cuestionario, se debe generar el \"PLAN DE MEDIDAS\" que se deben implementar, las cuales deben ser planificadas con la fecha máxima  y el responsable de gestionar su implementación."]
[]
[]
[null,"5. El plan de medida se apertura en un libro Excel indepediente a esta planilla, el cual se debe guardar en su equipo. Desde este último se puede acceder a la información de apoyo que se encuentra en la página web de la ACHS."]

{"sheet":"DATOS","index":1,"n_rows":31,"n_cols":15,"rows_kept":31,"cut":false,"hidden":false,"merged":[[2,1,5,18],[0,1,1,18],[30,9,30,10],[14,14,14,15],[14,11,14,12],[14,16,14,17],[11,1,11,10],[14,1,14,2],[28,1,28,2],[17,1,17,10],[20,1,20,2],[22,1,22,2],[25,1,25,10],[20,3,20,4],[20,6,20,7],[14,9,14,10],[14,3,14,7],[28,3,28,7],[22,3,22,7],[22,9,22,10],[28,9,28,10],[20,14,20,15],[20,16,20,17],[22,16,22,17],[28,16,28,17],[30,11,30,12],[28,14,28,15],[30,14,30,15],[22,14,22,15],[22,11,22,12],[30,16,30,17],[20,8,20,12],[28,11,28,12]]}
[null,"LISTA DE VERIFICACIÓN - SERIE COVID-19"]
[]
[null,"MEDIDAS PREVENTIVAS EN CENTROS DE TRABAJO\nFRENTE AL COVID-19"]
[]
[]
[]
[]
[]
[]
[null,"INFORMACIÓN DEL CENTRO DE TRABAJO EVALUADO"]
[]
[null,"Entidad empleadora"]
[]
[]
[null,"RAZÓN SOCIAL",null,null,null,null,null,null,null,"RUT",null,null,null,null,"CIIU PRINCIPAL"]
[]
[]
[null,"Dirección del centro"]
[]
[]
[null,"TIPO",null,null,null,null,"DIRECCIÓN",null,null,null,null,null,null,null,"NÚMERO"]
[]
[null,"LOCALIDAD",null,null,null,null,null,null,null,"COMUNA",null,null,null,null,"REGIÓN"]
[]
[]
[null,"Responsable de aplicación"]
[]
[]
[null,"NOMBRE COMPLETO",null,null,null,null,null,null,null,"RUT",null,null,null,null,"CARGO"]
[]
[null,null,null,null,null,null,null,null,null,"TELÉFONO",null,null,null,null,"MAIL"]

{"sheet":"EVALUACION","index":2,"n_rows":250,"n_cols":6,"rows_kept":250,"cut":false,"hidden":false,"merged":[[0,1,1,7],[2,1,5,7],[42,4,42,5],[58,4,58,5],[64,4,64,5]]}
[null,"LISTA DE VERIFICACIÓN - SERIE COVID-19"]
[]
[null,"MEDIDAS PREVENTIVAS EN CENTROS DE TRABAJO\nFRENTE AL COVID-19"]
[]
[]
[]
[]
[]
[]
[]
[null,"N°","TIPO","PREGUNTA DE EVALUACIÓN (MEDIDA SEÑALADA POR LA AUTORIDAD)","NORMA LEGAL RELACIONADA","EVALUACIÓN"]
[null,"CERO"]
[null,"1.- ORGANIZACIÓN Y RESPONSABILIDADES EN EL CENTRO"]
[null,"CERO"]
[null,1,"Medida obligatoria\nPASO A PASO LABORAL","Los trabajadores(as) desempeñan sus funciones, conforme se dispone por la autoridad sanitaria en la Estrategia Gradual “PASO A PASO” 15 de enero de 2021 (cuarentena, transición, preparación, apertura inicial, apertura avanzada), respecto al lugar de procedencia del trabajador(a) y tipo de actividad que desarrolla la empresa.","Resolución Exenta N°43 de 15 de enero de 2021 del Ministerio de Salud y artículos 184 y 184 bis del Código del Trabajo.\nFormulario único de fiscalización de medidas preventivas para el COVID-19 en lugares de trabajo."]
[null,"1.1","Medida obligatoria\nPASO A PASO LABORAL","Se cuenta, implementa y difunde el plan de ACCIONES PARA LA GESTIÓN PREVENTIVA DEL COVID-19","Paso a Paso Laboral: Etapa 2: \"Organiza y acuerda\".\nArt. 184 del Código del Trabajo."]
[null,"1.2","Medida obligatoria\nPASO A PASO LABORAL","Se constituye un EQUIPO DE TRABAJO para liderar las acciones para la gestión preventiva del COVID-19 con representatividad de trabajadores y empleadores","Paso a Paso Laboral: Etapa 2: \"Organiza y acuerda\".\nArt. 184 del Código del Trabajo."]
[null,"1.3","Medida obligatoria\nPASO A PASO LABORAL","Existe un RESPONSABLE de mantener los ELEMENTOS BÁSICOS DE HIGIENE y los EPP (elementos de protección personal) necesarios para el funcionamiento del centro, asegurando que sean accesibles a todos los trabajadores","Paso a Paso Laboral: Etapa 2: \"Organiza y acuerda\".\nArt. 184 del Código del Trabajo."]
[null,"CERO"]
[null,"2.- MEDIDAS PREVENTIVAS APLICABLES AL CENTRO"]
[null,"CERO"]
[null,2,"Medida obligatoria\nPASO A PASO LABORAL","El lugar de trabajo cuenta con agua potable, jabón líquido para el lavado de manos y un sistema desechable para el secado de manos (ej.: toallas de papel desechable), considerando un instructivo que indique la forma correcta de realizar esta actividad.","Art. 12, 15 y 22 del D.S. 594 de 1999, del Ministerio de Salud.\nFormulario único de fiscalización de medidas preventivas para el COVID-19 en lugares de trabajo."]
[null,3,"Medida obligatoria\nPASO A PASO LABORAL","El lugar de trabajo cuenta con solución de alcohol al 70% en aquellos casos en que no se cuenta con agua potable para los trabajadores(as), así como también, si procediere, en el transporte privado de trabajadores(as) provisto por la empresa.","Art. 184 del Código del Trabajo.\nFormulario único de fiscalización de medidas preventivas para el COVID-19 en lugares de trabajo."]
[null,4,"Medida obligatoria\nPASO A PASO LABORAL","Al ingreso del establecimiento y de áreas comunes (comedores, cocinas, etc.) se dispone de medios para el lavado de manos o aplicación de solución de alcohol al 70%.","Art. 184 del Código del Trabajo.\nFormulario único de fiscalización de medidas preventivas para el COVID-19 en lugares de trabajo."]
[null,5,"Medida obligatoria\nPASO A PASO LABORAL","Los lugares de trabajo se encuentran ventilados o, en su defecto, los sistemas de ventilación mecánica permiten el recambio de aire en el local (la extracción y su renovación).\n(los sistemas de aire acondicionado no constituyen un sistema de ventilación).","Art. 32 del D.. 594 de 1999 del Ministerio de Salud.\nFormulario único de fiscalización de medidas preventivas para el COVID-19 en lugares de trabajo."]
[null,6,"Medida obligatoria\nPASO A PASO LABORAL","El empleador entrega y dispone de mascarillas para evitar la propagación del virus COVID-19.","Art. 68 ley N° 16.744 y Título V. Uso de mascarillas de la Resolución Exenta N°43 de 15 de enero de 2021 del Ministerio de Salud.\n\nFormulario único de fiscalización de medidas preventivas para el COVID-19 en lugares de trabajo."]
[null,7,"Medida obligatoria\nPASO A PASO LABORAL","Se indica claramente por medio de señalización visible y permanente la obligación de uso de mascarillas y las recomendaciones de autocuidado entre las personas que ingresan o permanecen al interior de la empresa, así como también, en el transporte privado de trabajadores(as) en caso de que este sea provisto por la empresa, ascensores o funiculares y espacios cerrados.","Art. 37 inciso 4 del D.. 594 de 1999 del Ministerio de Salud; Resolución Exenta N°43 de 15 de enero de 2021 del Ministerio de Salud y art. 184, incisos 1° y 2°, del Código del Trabajo.\nFormulario único de fiscalización de medidas preventivas para el COVID-19 en lugares de trabajo."]
[null,8,"Medida obligatoria\nPASO A PASO LABORAL","Se demarca visiblemente, dentro o fuera del local, la distancia de un metro lineal entre cada persona en los lugares que, por la naturaleza de los servicios que se prestan, se forman filas.","Art. 37 inciso 4 del D.. 594 de 1999 del Ministerio de Salud; Resolución Exenta N°43 de 15 de enero de 2021 del Ministerio de Salud y art. 184, incisos 1° y 2°, del Código del Trabajo.\n\nFormulario único de fiscalización de medidas preventivas para el COVID-19 en lugares de trabajo."]
[null,9,"Medida obligatoria\nPASO A PASO LABORAL","Se mantiene e indica claramente por medio de señalización visible y permanente la obligación de distanciamiento de, al menos, un metro lineal entre las personas (trabajadores(as) propios o contratistas, proveedores y clientes).","Art. 37 inciso 4 del D.. 594 de 1999 del Ministerio de Salud; Resolución Exenta N°43 de 15 de enero de 2021 del Ministerio de Salud y art. 184, incisos 1° y 2°, del Código del Trabajo.\nFormulario único de fiscalización de medidas preventivas para el COVID-19 en lugares de trabajo."]
[null,10,"Medida obligatoria\nPASO A PASO LABORAL","Se adaptan los espacios y puestos de trabajo, de manera que sea posible mantener, al menos, un metro de distancia entre trabajadores(as) o, en su defecto, si por razones laborales no pueden cumplir con esta medida, se instalan barreras divisorias de material acrílico, policarbonato, vidrio u otro similar.\n\n(No aplicable a las excepciones previstas en el numeral 24 de la Resolución N°43 de 14 de enero de 2021 del Ministerio de Salud).","Art. 37 del D.. 594 de 1999 del Ministerio de Salud y art. 184 del Código del Trabajo; Resolución Exenta N°43 de 15 de enero de 2021 del Ministerio de Salud; Formulario único de fiscalización de medidas preventivas para el COVID-19 en lugares de trabajo."]
[null,11,"Medida obligatoria\nPASO A PASO LABORAL","En todos los recintos cerrados que atiendan público se mantiene al menos las siguientes señalizaciones disponibles al público: \n\na. Mantener en todas las entradas información sobre el aforo máximo permitido, conforme a lo que corresponda al Paso en que se encuentre, según lo establecido en la Res. Exe. N° 43 del 15 de enero del 2021 y sus modificaciones posteriores.\nb. Disponer, en el interior del recinto, información que recuerde el distanciamiento físico mínimo que se debe respetar en conformidad con lo establecido en el numeral 24 de la Res. Exe. N° 43 del 15 de enero del 2021 y sus modificaciones posteriores.\nc. Mantener en todas las entradas señalética que indique las obligaciones y recomendaciones generales de autocuidado, conforme a la normativa dispuesta por la autoridad sanitaria.","Art. 37 inciso 4 del D.. 594 de 1999 del Ministerio de Salud; Resolución Exenta N°43 de 15 de enero de 2021 del Ministerio de Salud.\n\nFormulario único de fiscalización de medidas preventivas para el COVID-19 en lugares de trabajo."]
[null,12,"Medida obligatoria\nPASO A PASO LABORAL","En los lugares que atiendan público, se disponen de los elementos necesarios para una adecuada higiene de manos para los usuarios.","Resolución Exenta N°43 de 15 de enero de 2021 del Ministerio de Salud.\nFormulario único de fiscalización de medidas preventivas para el COVID-19 en lugares de trabajo."]
[null,13,"Medida obligatoria\nPASO A PASO LABORAL","La señalización y condiciones de la ruta de entrada y salida o vías de escape permanecen en buen estado y libre de obstrucciones.","Art. 37 del D.. 594 de 1999 del Ministerio de Salud y art. 184, incisos 1° y 2°, del Código del Trabajo.\nFormulario único de fiscalización de medidas preventivas para el COVID-19 en lugares de trabajo."]
[null,14,"Medida obligatoria\nPASO A PASO LABORAL","Se revisó y actualizó, si fuese procedente, el plan de emergencia y evacuación existente del lugar de trabajo considerando la nueva distribución de los puestos de trabajo, el aforo reducido y las eventuales nuevas vías de acceso, circulación y zonas de seguridad, evitando aglomeraciones, así como las medidas preventivas de COVID-19 frente a otras emergencias.","Art. 184, incisos 1° y 2°, del Código del Trabajo y art. 37 del D.. 594 de 1999 del Ministerio de Salud.\nFormulario único de fiscalización de medidas preventivas para el COVID-19 en lugares de trabajo."]
[null,15,"Medida obligatoria\nPASO A PASO LABORAL","Se siguen las instrucciones y medidas preventivas para la limpieza y desinfección del lugar de trabajo y espacios comunes conforme al oficio ordinario B1 Nº2.770, del 15 de julio de 2020, del Ministerio de Salud, que actualiza el \"Protocolo de Limpieza y Desinfección de Ambientes Covid-19\", o aquel que lo reemplace.","Resolución Exenta N°43 de 15 de enero de 2021 del Ministerio de Salud.\nFormulario único de fiscalización de medidas preventivas para el COVID-19 en lugares de trabajo."]
[null,16,"Medida obligatoria\nPASO A PASO LABORAL","Los trabajadores(as) que realizan tareas de limpieza y desinfección fueron informados del procedimiento para la limpieza y desinfección, en el correcto uso y retiro de los elementos de protección personal, su desinfección o eliminación.","Art. 21 del D.S. 40 de 1969 del Ministerio del Trabajo y Previsión Social y Protocolo de Limpieza y Desinfección de Ambientes Covid-19, establecido en virtud del ORD. B1 Nº2.770, del 15 de julio 2020, del Ministerio de Salud.\nFormulario único de fiscalización de medidas preventivas para el COVID-19 en lugares de trabajo."]
[null,17,"Medida obligatoria\nPASO A PASO LABORAL","Se limpian y desinfectan al menos una vez al día (a) todos los espacios, superficies y elementos expuestos al flujo de personas, ya sea de trabajadores(as) o clientes, (b) las herramientas y elementos de trabajo (y cada vez que sean intercambiadas) y (c) los espacios cerrados de uso comunitario, como comedores, baños, ascensores, etc.","Resolución Exenta N°43 de 15 de enero de 2021 del Ministerio de Salud.\nFormulario único de fiscalización de medidas preventivas para el COVID-19 en lugares de trabajo."]
[null,18,"Medida obligatoria\nPASO A PASO LABORAL","Se entrega a los trabajadores(as) que realizan la limpieza y desinfección de los lugares de trabajo y espacios comunes, elementos de protección personal, conforme al Protocolo Modo Covid de Vida, tales como: \n• Guantes desechables o reutilizables, que sean resistentes impermeables, manga larga (no quirúrgicos); \n• Mascarilla para evitar propagación del virus COVID-19.\n• Pechera desechable o reutilizable.","Resolución Exenta N°43 de 14 de enero de 2021 del Ministerio de Salud y Protocolo de Limpieza y Desinfección de Ambientes Covid-19, establecido en virtud del ORD. B1 Nº2.770, del 15 de julio 2020, del Ministerio de Salud.\nFormulario único de fiscalización de medidas preventivas para el COVID-19 en lugares de trabajo."]
[null,19,"Medida obligatoria\nPASO A PASO LABORAL","Los desinfectantes utilizados cuentan con registro del Instituto de Salud Pública (ISP).","Art. 37 del D.S. 594 de 1999 del Ministerio de Salud y Protocolo de Limpieza y Desinfección de Ambientes Covid-19, establecido en virtud del ORD. B1 Nº2.770, del 15 de julio 2020, del Ministerio de Salud.\n\nFormulario único de fiscalización de medidas preventivas para el COVID-19 en lugares de trabajo."]
[null,20,"Medida obligatoria\nPASO A PASO LABORAL","Se dispone de contenedores (basureros) para la disposición de los residuos (mascarillas desechables, papel de secado de mano, guantes desechables, entre otros) y éstos se encuentran ubicados en las áreas y lugares comunes del centro de trabajo.","Art. 184 del Código del Trabajo.\nFormulario único de fiscalización de medidas preventivas para el COVID-19 en lugares de trabajo."]
[null,21,"Medida obligatoria\nPASO A PASO LABORAL","Las empresas externas de Aplicación de Desinfectantes de Venta Especializada, creadas específicamente para ese fin y que presten servicios a terceros, cuentan con resolución sanitaria de la Seremi de Salud.","Art. 184, incisos 1° y 2°, del Código del Trabajo; ORD. B.32/1313 del 20.04.2020 de la Subsecretaria de Salud Pública; art. 3 del DS 594 del Ministerio de Salud y art. 183- A del Código del Trabajo.\n\nFormulario único de fiscalización de medidas preventivas para el COVID-19 en lugares de trabajo."]
[null,22,"Medida obligatoria\nPASO A PASO LABORAL","Se siguen las acciones determinadas por la autoridad sanitaria frente a situaciones relacionadas con casos sospechosos, contacto estrecho o casos confirmados de COVID-19 en los trabajadores(as) conforme al Protocolo de Actuación en el Lugar de Trabajo.","Art. 3º del D.. 594, de 1999, del Ministerio de Salud y art. 184, incisos 1° y 2°, del Código del Trabajo.\nFormulario único de fiscalización de medidas preventivas para el COVID-19 en lugares de trabajo.\nResolución Exenta N°43 de 15 de enero de 2021 del Ministerio de Salud."]
[null,23,"Medida obligatoria\nPASO A PASO LABORAL","Se informa a todos los trabajadores(as) respecto a los riesgos de COVID-19, vías de transmisión, signos y síntomas, acciones si presenta síntomas, medidas preventivas y de autocuidado, método de trabajo correcto, uso correcto de elementos de protección personal en los casos que corresponda, disposición de desechos (guantes, mascarillas, papel, u otro).","Art. 21 del D.. 40 de 1969 del Ministerio del Trabajo y Previsión Social y art. 184 inciso 1° del Código del Trabajo.\nFormulario único de fiscalización de medidas preventivas para el COVID-19 en lugares de trabajo."]
[null,"23.1","Medida obligatoria\nPASO A PASO LABORAL","Se definen y socializan los CANALES O MEDIOS DE COMUNICACIÓN para la difusión constante y clara de las medidas de prevención y de control que deben conocer y aplicar los trabajadores","Art. 21 del D.. 40 de 1969 del Ministerio del Trabajo y Previsión Social y art. 184 inciso 1° del Código del Trabajo.\nFormulario único de fiscalización de medidas preventivas para el COVID-19 en lugares de trabajo."]
[null,"23.2","Medida obligatoria\nPASO A PASO LABORAL","Se CAPACITA A TODOS LOS TRABAJADORES, donde se explique en qué consiste la enfermedad COVID-19, sus formas de transmisión, síntomas y las medidas de prevención y control que deben aplicar","Art. 21 del D.. 40 de 1969 del Ministerio del Trabajo y Previsión Social y art. 184 inciso 1° del Código del Trabajo.\nFormulario único de fiscalización de medidas preventivas para el COVID-19 en lugares de trabajo."]
[null,"23.3","Medida obligatoria\nPASO A PASO LABORAL","Se lleva REGISTRO ACTUALIZADO de los trabajadores que han recibido la capacitación indicada en el punto anterior, considerando: nombre, cedula de identidad, cargo y firma","Art. 21 del D.. 40 de 1969 del Ministerio del Trabajo y Previsión Social y art. 184 inciso 1° del Código del Trabajo.\nFormulario único de fiscalización de medidas preventivas para el COVID-19 en lugares de trabajo."]
[null,24,"Medida obligatoria\nPASO A PASO LABORAL","La empresa evaluó los riesgos asociados a contagio por COVID-19 (por ejemplo, a través de su Departamento de Prevención de Riesgos o con la asistencia de su organismo administrador del seguro de la ley N° 16.744) y consideró en esta evaluación los riesgos derivados de la interacción entre trabajadores(as) propios, contratistas y clientes.","Para empresa que no cuente con Depto. de Prevención de Riesgos: Art. 184, inciso 1° y 2º, del Código del Trabajo. Para empresa que cuente con Depto. de Prevención de Riesgos: Art. 66 inciso 4° de la ley N° 16.744 en relación con el art. 8 inciso 2º y art. 12 del D.. 40, de 1969, del Ministerio del Trabajo y Previsión Social y el art. 24 del D.. 54, de 1969, del Ministerio del Trabajo y Previsión Social.\n\nFormulario único de fiscalización de medidas preventivas para el COVID-19 en lugares de trabajo."]
[null,25,"Medida obligatoria\nPASO A PASO LABORAL","En caso de contar con Comité Paritario de Higiene y Seguridad y/o Departamento de Prevención de Riesgos, éste cumple con las funciones de su competencia respecto a medidas preventivas relacionadas al contagio por COVID-19 y vigila el cumplimiento de las medidas de prevención, higiene y seguridad mediante labores permanentes.","Art. 24 del D.. 54, de 1969, del Ministerio del Trabajo y Previsión Social; art. 66 de la ley N° 16.744 en relación con el art. 8 inciso 2º y art. 12 del D.S. 40, de 1969, del Ministerio del Trabajo y Previsión Social.\nFormulario único de fiscalización de medidas preventivas para el COVID-19 en lugares de trabajo."]
[null,26,"Medida obligatoria\nPASO A PASO LABORAL","Se actualiza el reglamento interno (de orden), higiene y seguridad de la empresa, incluyendo todas las medidas preventivas y de control asociadas al contexto COVID-19 exigidas por la normativa vigente.","Para empresas con menos de 10 trabajadores (as): Art. 14 y 16 del D.S. 40, de 1969, del Ministerio del Trabajo y Previsión Social. Para empresas con más de 10 trabajadores (as): Art. 153 y 154 del Código del Trabajo.\n\nFormulario único de fiscalización de medidas preventivas para el COVID-19 en lugares de trabajo."]
[null,27,"Medida obligatoria\nPASO A PASO LABORAL","Existe coordinación entre la empresa principal y las empresas contratistas y subcontratistas con el objeto de dar cumplimiento a las normas de protección y prevención de COVID-19. Especial atención existirá respecto de:\n• Información entre las empresas en relación con los riesgos y medidas preventivas por COVID-19.\n• Contar con insumos básicos de higiene\n• Medidas administrativas preventivas para el distanciamiento físico o evitar aglomeraciones.","Art. 6 inciso 1° del D.. 76, de 2007, del Ministerio del Trabajo y Previsión Social en relación con el art. 66 bis de la ley N° 16.744 y art. 183-E del Código del Trabajo.\nFormulario único de fiscalización de medidas preventivas para el COVID-19 en lugares de trabajo."]
[null,28,"Medida obligatoria\nPASO A PASO LABORAL","La empresa principal vigila el cumplimiento de las empresas contratistas y subcontratistas respecto de las normativas de seguridad y salud laboral que deben implementarse en la faena en materia de COVID-19, a partir de su Sistema de Gestión de Seguridad y Salud en el Trabajo, estableciendo los mecanismos para que las empresas contratistas y subcontratistas protejan de forma eficaz la vida y salud de los trabajadores(as).","Art. 9 Nº3 del D.. Nº76 de 2007, del Ministerio del Trabajo y Previsión Social en relación con el art. 66 bis de la ley N° 16.744 y el art. 183-E del Código del Trabajo.\nFormulario único de fiscalización de medidas preventivas para el COVID-19 en lugares de trabajo."]
[null,29,"Medida obligatoria\nPASO A PASO LABORAL","Se incorporan medidas preventivas, procedimientos y protocolos en el reglamento especial para empresas contratistas y subcontratistas como parte del Sistema de Gestión de Seguridad y Salud en el Trabajo. En especial, que contenga las medidas para la prevención y control del riesgo de COVID-19, entre ellas: \n(a) los plazos en que éstas se ejecutarán y sus responsables; \n(b) las acciones de información y formación; \n(c) los procedimientos de control de los riesgos; \n(d) planes de emergencia y \n(e) la investigación de la enfermedad profesional por COVID-19.","Arts. 9, 11 y 13 Nº3 del D.. Nº76 de 2007 del Ministerio del Trabajo y Previsión Social.\n\nFormulario único de fiscalización de medidas preventivas para el COVID-19 en lugares de trabajo."]
[null,30,"Medida obligatoria\nPASO A PASO LABORAL","En caso de no tener la obligación de contar la empresa mandante con Sistema de Gestión de Seguridad y Salud en el Trabajo, se vela por mantener los lugares de trabajo en condiciones sanitarias y ambientales adecuadas para proteger la vida y salud de los trabajadores(as) que en ellos se desempeñen, sean éstos directos suyos o terceros contratistas.","Art. 3º del D.. 594, de 1999, del Ministerio de Salud y art. 183-E del Código del Trabajo.\nFormulario único de fiscalización de medidas preventivas para el COVID-19 en lugares de trabajo."]
[null,"CERO"]
[null,"3.- MEJORES PRACTICAS PARA UNA EFECTIVA PREVENCION EN LOS CENTROS DE TRABAJO"]
[null,"CERO"]
[null,"1_","Recomendación\nPASO A PASO LABORAL","En la implementación de las medidas preventivas, se garantiza la participación de los trabajadores(as), organizaciones sindicales, Comité Paritario de Higiene y Seguridad, Departamento de Prevención de Riesgos, si corresponde.","Protocolo de actuación en lugares de trabajo COVID-19"]
[null,"2_","Recomendación\nPASO A PASO LABORAL","Se solicita ayuda y asistencia técnica al organismo administrador del seguro de la ley N° 16.744 al que se encuentra afiliado el empleador para la implementación de las medidas preventivas.","Protocolo de actuación en lugares de trabajo COVID-19"]
[null,"3_","Recomendación\nPASO A PASO LABORAL","Si se dispone de transporte privado para los trabajadores(as), se realiza control de temperatura personal al ingreso, la distancia mínima recomendada, la correcta limpieza, desinfección y ventilación de los vehículos.","Protocolo de actuación en lugares de trabajo COVID-19"]
[null,"3.1_","Recomendación\nACHS","Se implementan medidas de control (instalación de barrera física en el puesto del conductor, número máximo de personas, uso permanente de mascarilla, entre otros) y se promueve un adecuado DISTANCIAMIENTO social al interior de los buses de acercamiento u otros vehículos utilizados para tales fines","Protocolo de actuación en lugares de trabajo COVID-19"]
[null,"3.2_","Recomendación\nACHS","Se genera CONTROL de temperatura corporal y revisión visual del estado general de la salud a todas las personas antes de subir al vehículo, evitando el ingreso a quienes manifiesten algún síntoma","Protocolo de actuación en lugares de trabajo COVID-19"]
[null,"3.3_","Recomendación\nACHS","Se cuenta con ALCOHOL O ALCOHOL GEL para aplicar en manos de forma obligatoria antes del ingreso y salida de los mismos","Protocolo de actuación en lugares de trabajo COVID-19"]
[null,"3.4_","Recomendación\nACHS","Una vez realizado el traslado del personal, se efectúa la LIMPIEZA Y DESINFECCIÓN de todos los elementos del vehículo utilizado, según el protocolo de limpieza y desinfección del MINSAL","Protocolo de actuación en lugares de trabajo COVID-19"]
[null,"4_","Recomendación\nACHS","Se promueve y refuerza el cumplimiento de medidas de autocuidado en el transporte público.","Sin normativa asociada"]
[null,"5_","Recomendación\nPASO A PASO LABORAL","Se implementa la identificación temprana de casos sospechosos a través de un control diario de síntomas de COVID-19 al ingreso del lugar de trabajo (por ejemplo, control temperatura, declaración voluntaria de síntomas, etc.).","Protocolo de actuación en lugares de trabajo COVID-19"]
[null,"5.1_","Recomendación\nACHS","Existe un CONTROL DE ACCESO para tomar la temperatura corporal y efectuar el control del estado general de salud a todos los trabajadores y personas externas que ingresen al centro de trabajo, con el fin de impedir la entrada de personas con sospecha de contagio de COVID-19?","Protocolo de actuación en lugares de trabajo COVID-19"]
[null,"5.2_","Recomendación\nACHS","Se cumple con habilitar PEDILUVIOS SANITARIOS con desinfectante en el ingreso al lugar de trabajo","Sin normativa asociada"]
[null,"6_","Recomendación\nPASO A PASO LABORAL","Se cuenta con registro de todos los que ingresen a la organización, manteniendo sus datos de contacto.","Protocolo de actuación en lugares de trabajo COVID-19"]
[null,"7_","Recomendación\nPASO A PASO LABORAL","Si se cuenta con dos o más accesos, se habilita uno de manera exclusiva para ingreso y otro de manera exclusiva para salida. Si se cuenta con un solo acceso, se demarca el sentido de circulación para ingreso y salida.","Protocolo de actuación en lugares de trabajo COVID-19"]
[null,"8_","Recomendación\nPASO A PASO LABORAL","Se desinfectan y limpian todos los bienes y/o mercaderías que ingresen a la empresa por terceros externos a la organización.","Sin normativa asociada"]
[null,"9_","Recomendación\nPASO A PASO LABORAL","Se demarca la capacidad máxima del uso de ascensores, garantizando el debido distanciamiento de al menos un metro entre las personas.","Protocolo de actuación en lugares de trabajo COVID-19"]
[null,"10_","Recomendación\nPASO A PASO LABORAL","La ropa de trabajo es de uso personal y exclusiva para operar dentro de las instalaciones de la empresa y se lava diariamente.","Protocolo de actuación en lugares de trabajo COVID-19"]
[null,"11_","Recomendación\nPASO A PASO LABORAL","Los contenedores (basureros) del lugar de trabajo cuentan con tapa y una bolsa en su interior u otro material impermeable.","Protocolo de actuación en lugares de trabajo COVID-19"]
[null,"12_","Recomendación\nPASO A PASO LABORAL","En los lugares que atiendan público, se fomenta el pago sin contacto con tarjetas bancarias o con transferencias electrónicas y se resguarda el acceso preferencial a personas mayores de 60 años, embarazadas, personas con discapacidad y enfermos crónicos.","Sin normativa asociada"]
[null,"13_","Recomendación\nPASO A PASO LABORAL","En los lugares que atiendan público, y en caso de contar con sistema de audio, se anuncian de forma regular las medidas de autocuidado.","Sin normativa asociada"]
[null,"14_","Recomendación\nPASO A PASO LABORAL","Se fomenta el uso de vías telemáticas para la realización de reuniones y capacitaciones. En caso de no ser posible, se consideran aspectos higiénicos mínimos en su realización (reducir el número de participantes al mínimo posible, prohibir consumo de alimentos, conservar los datos personales de los participantes, etc.).","Protocolo de actuación en lugares de trabajo COVID-19"]
[null,"15_","Recomendación\nPASO A PASO LABORAL","Se facilita/fomenta el teletrabajo y el trabajo a distancia.","Protocolo de actuación en lugares de trabajo COVID-19"]
[null,"16_","Recomendación\nPASO A PASO LABORAL","Se implementan retornos diferenciados y/o un sistema de turnos por grupos de trabajadores(as), unidades o áreas (por ejemplo, combinando trabajo presencial con trabajo remoto por grupo de trabajadores(as)).","Protocolo de actuación en lugares de trabajo COVID-19"]
[null,"17_","Recomendación\nPASO A PASO LABORAL","Se implementan bloques de horario flexible de entrada y salida.","Protocolo de actuación en lugares de trabajo COVID-19"]
[null,"18_","Recomendación\nPASO A PASO LABORAL","Se implementan horarios diferenciados por turnos para almuerzo y comida, duchas y vestidores.","Protocolo de actuación en lugares de trabajo COVID-19"]
[null,"19_","Recomendación\nPASO A PASO LABORAL","Se organizan grupos fijos y pequeños de trabajo para reducir el contacto físico entre los trabajadores(as).","Protocolo de actuación en lugares de trabajo COVID-19"]
[null,"20_","Recomendación\nPASO A PASO LABORAL","Se facilitan autorizaciones de permisos con goce de remuneración, compensando dicho tiempo con trabajo dentro de la semana siguiente.","Protocolo de actuación en lugares de trabajo COVID-19"]
[null,"21_","Recomendación\nPASO A PASO LABORAL","Se restringe el número de terceros externos que ingresan a la organización al mínimo indispensable.","Protocolo de actuación en lugares de trabajo COVID-19"]
[null,"22_","Recomendación\nPASO A PASO LABORAL","Se organizan los horarios de ingreso de terceros externos por bandas de manera de reducir al máximo la interacción con los trabajadores(as) de la empresa.","Protocolo de actuación en lugares de trabajo COVID-19"]
[null,"23_","Recomendación\nPASO A PASO LABORAL","Para fortalecer la información entregada a los trabajadores(as), se fija en lugares visibles de la empresa información resumida y concreta sobre las medidas de autocuidado y las medidas preventivas implementadas en la empresa.","Protocolo de actuación en lugares de trabajo COVID-19"]
[null,"24_","Recomendación\nPASO A PASO LABORAL","Se informa a los trabajadores(as) sobre sus derechos y obligaciones, especialmente, sobre su derecho a interrumpir sus labores y de ser necesario, abandonar el lugar de trabajo cuando considere, por motivos razonables y justificados, que continuar con ellas implica un riesgo grave e inminente para su vida o salud.","Sin normativa asociada"]
[null,"25_","Recomendación\nPASO A PASO LABORAL","Se promueven y facilitan diálogos permanentes y comunicación efectiva con los trabajadores(as) y organizaciones sindicales, si corresponde.","Protocolo de actuación en lugares de trabajo COVID-19"]
[null,"26_","Recomendación\nPASO A PASO LABORAL","Se implementan medidas de apoyo para los trabajadores(as) durante la situación de pandemia en relación con las medidas y cambios en la organización del trabajo.","Sin normativa asociada"]
[null,"CERO"]
[null,"4.- CONTINUIDAD OPERACIONAL"]
[null,"CERO"]
[null,"27_","Recomendación\nACHS","Se encuentran identificadas las ACTIVIDADES BÁSICAS necesarias para mantener la continuidad operacional en el centro de trabajo","Sin normativa asociada"]
[null,"28_","Recomendación\nACHS","Se han identificado los TRABAJADORES CRÍTICOS para asegurar la continuidad operacional del centro de trabajo, tomando los resguardos pertinentes para evitar contagio de COVID-19 en este grupo","Sin normativa asociada"]
[null,"29_","Recomendación\nACHS","Se cumple, en caso de ser posible, con establecer SISTEMAS DE TURNOS entre grupos de trabajadores para labores críticas (ej. sistemas de trabajo 14x14). Evitando la superposición entre los trabajadores por turnos","Sin normativa asociada"]
[null,"30_","Recomendación\nACHS","Se mantiene un inventario con las FUENTES y MATERIAS PRIMAS, identificando proveedores alternativos en el caso de ser requeridos","Sin normativa asociada"]
[null,"31_","Recomendación\nACHS","Se ha analizado la EVENTUALIDAD EXTREMA DE CIERRE del centro de trabajo, como resultado de la ausencia masiva de trabajadores por aislamiento o enfermedad","Sin normativa asociada"]
[null,"A"]
[null,"A.- SECTOR TURISMOS (HOTELES) - Protocolo de Manejo y Prevencion ante COVID-19 en Turismo y Alojamiento Versión 3 (08 Feb 2021)"]
[null,"A"]
[null,"A.1.- RESPECTO DE LAS ENTRADAS Y SALIDAS"]
[null,"A.1.1","Medida obligatoria\nPASO A PASO TURISMO Y ALOJAMIENTO V.3","¿Se encuentra DEMARCADO EL DISTANCIAMIENTO de un metro en el piso, a fin de asegurar el distanciamiento entre trabajadores en el ejercicio de sus labores y en áreas de alimentación?","Sin normativa asociada"]
[null,"A.1.2","Medida obligatoria\nPASO A PASO TURISMO Y ALOJAMIENTO V.3","¿El establecimiento dispone de MECANISMO DE DESINFECCIÓN DE MANOS (alcohol o alcohol gel), en las entradas y salidas?","Sin normativa asociada"]
[null,"A.1.3","Medida obligatoria\nPASO A PASO TURISMO Y ALOJAMIENTO V.3","¿Se ha RESTRINGIDO LA CANTIDAD DE ACCESOS disponibles, para dejar habilitados solo los accesos principales?","Sin normativa asociada"]
[null,"A.1.4","Recomendación\nPASO A PASO TURISMO Y ALOJAMIENTO V.3","¿Existe un CONTROL DE ACCESO para tomar la temperatura corporal y/o efectuar el control del estado general de salud a los CLIENTES  USUARIOS que ingresen al establecimiento, con el fin de impedir el ingreso de personas con sospecha de contagio de COVID-19?","Sin normativa asociada"]
[null,"A.2.- RESPECTO DE LAS AREAS COMUNES"]
[null,"A.2.1","Medida obligatoria\nPASO A PASO TURISMO Y ALOJAMIENTO V.3","¿Se ORGANIZAN LAS MESAS, sillas y escritorios de forma que se pueda cumplir con el debido distanciamiento social de un metro entre clientes?","Sin normativa asociada"]
[null,"A.2.2","Recomendación\nPASO A PASO TURISMO Y ALOJAMIENTO V.3","¿Se encuentra DEMARCADO EN EL PISO EL ESPACIO a considerar entre clientes/turistas en distintos lugares para asegurar el distanciamiento mínimo?","Sin normativa asociada"]
[null,"A.2.3","Medida obligatoria\nPASO A PASO TURISMO Y ALOJAMIENTO V.3","¿Se facilita el PRE-REGISTRO de los clientes/turistas por medios digitales?","Sin normativa asociada"]
[null,"A.2.4","Medida obligatoria\nPASO A PASO TURISMO Y ALOJAMIENTO V.3","¿Se dispone de lavamanos con jabón y/o alcohol o alcohol gel para el uso tanto de los CLIENTES/TURISTAS como de los TRABAJADORES?","Sin normativa asociada"]
[null,"A.2.5","Medida obligatoria\nPASO A PASO TURISMO Y ALOJAMIENTO V.3","¿Se han adoptado las medidas necesarias para evitar el INTERCAMBIO DE MATERIAL IMPRESO (revistas, folletos, tarjetas de presentación, etc.) que faciliten la transmisión?","Sin normativa asociada"]
[null,"A.2.6","Medida obligatoria\nPASO A PASO TURISMO Y ALOJAMIENTO V.3","¿Se mantienen los espacios VENTILADOS adecuadamente?","Sin normativa asociada"]
[null,"A.3.- RESPECTO DE LOS SERVICIOS SANITARIOS"]
[null,"A.3.1","Medida obligatoria\nPASO A PASO TURISMO Y ALOJAMIENTO V.3","¿Todos los BAÑOS DEL ESTABLECIMIENTO disponen de inodoros en buen estado de mantención, basureros, lavamanos, jabón y papel higiénico en portarrollos. Además del uso de secador de aire caliente o dispensador de toallas de papel absorbente desechables, para evitar uso de toallas?","Sin normativa asociada"]
[null,"A.3.2","Medida obligatoria\nPASO A PASO TURISMO Y ALOJAMIENTO V.3","¿Se VENTILAN de forma permanente los AMBIENTES CERRADOS?","Sin normativa asociada"]
[null,"A.4.- MEDIDAS RELATIVA A LOS TRABAJADORES"]
[null,"A.4.1","Recomendación\nPASO A PASO TURISMO Y ALOJAMIENTO V.3","¿Se ha convenido la DISTRIBUCIÓN de la jornada en diversos turnos, con el fin de evitar aglomeraciones y limitar la cantidad de trabajadores que comparten un mismo espacio?","Sin normativa asociada"]
[null,"A.4.2","Recomendación\nPASO A PASO TURISMO Y ALOJAMIENTO V.3","A fin de evitar aglomeraciones y asegurar medidas de distanciamiento social de trabajadores, ¿se cumple, en caso de ser posible, con establecer SISTEMAS DE TURNOS entre grupos de trabajadores, evitando la interacción entre grupos?  (ej. sistemas de trabajo 14x14)?","Sin normativa asociada"]
[null,"A.4.3","Recomendación\nPASO A PASO TURISMO Y ALOJAMIENTO V.3","A fin de evitar aglomeraciones y asegurar medidas de distanciamiento social de trabajadores, ¿Se cumple con FLEXIBILIZAR HORARIOS o celebrar pactos sobre horarios diferidos de ingreso y salida de los trabajadores, con el objeto de evitar aglomeraciones y/o adaptarse a la disponibilidad de transporte público?","Sin normativa asociada"]
[null,"A.4.4","Recomendación\nPASO A PASO TURISMO Y ALOJAMIENTO V.3","A fin de evitar aglomeraciones y asegurar medidas de distanciamiento social de trabajadores, ¿Se han EVALUADO FORMAS DE TRASLADO de trabajadores que puedan maximizar medidas de prevención y entregar insumos de prevención para traslado, como mascarillas y alcohol gel?","Sin normativa asociada"]
[null,"A.4.5","Recomendación\nPASO A PASO TURISMO Y ALOJAMIENTO V.3","A fin de evitar aglomeraciones y asegurar medidas de distanciamiento social de trabajadores, ¿se han pactado otras medidas tendientes a evitar la AGLOMERACIÓN, como turnos para colación y descanso?","Sin normativa asociada"]
[null,"A.4.6","Medida obligatoria\nPASO A PASO TURISMO Y ALOJAMIENTO V.3","¿Existe un CONTROL DE ACCESO para tomar la temperatura corporal y efectuar el control del estado general de salud a todos los trabajadores y personas externas que ingresen al centro de trabajo, con el fin de impedir la entrada de personas con sospecha de contagio de COVID-19?","Sin normativa asociada"]
[null,"A.4.7","Medida obligatoria\nPASO A PASO TURISMO Y ALOJAMIENTO V.3","¿Se evita la realización de REUNIONES GRUPALES y de realizarse, se han establecido las medidas preventivas para evitar los contagios de COVID-19?","Sin normativa asociada"]
[null,"A.5.- MEDIDAS RELATIVAS A LOS TURISTAS"]
[null,"A.5.1","Medida obligatoria\nPASO A PASO TURISMO Y ALOJAMIENTO V.3","¿Se INFORMA a los TURISTAS de las prácticas que viene implementando el establecimiento para reducir posibles riesgos, para que contribuyan con éstas y así mejorar su efectividad?","Sin normativa asociada"]
[null,"A.5.2","Medida obligatoria\nPASO A PASO TURISMO Y ALOJAMIENTO V.3","¿Se mantienen disponibles los NÚMEROS TELEFÓNICOS, las DIRECCIONES y los MEDIOS DE TRANSPORTES que podrían prestar el servicio, en caso que los clientes requieran atención médica u orientación en relación a la pandemia?","Sin normativa asociada"]
[null,"A.6.- MEDIDAS RELATIVAS A PROVEEDORES"]
[null,"A.6.1","Medida obligatoria\nPASO A PASO TURISMO Y ALOJAMIENTO V.3","¿Existe un CONTROL DE ACCESO para tomar la temperatura corporal y/o efectuar el control del estado general de salud a los PROVEEDORES que ingresen al establecimiento, solicitando completar la declaración de estado de salud, la que podrá ser enviada por medios electrónicos o ser llenada a la llegada del proveedor, con el fin de impedir el ingreso de personas con sospecha de contagio de COVID-19?","Sin normativa asociada"]
[null,"A.6.2","Medida obligatoria\nPASO A PASO TURISMO Y ALOJAMIENTO V.3","¿Se han establecido mecanismos para asegurar que en la INTERACCIÓN CON EMPRESAS EXTERNAS, se cumpla con las medidas preventivas, informando sobre dichas medidas y solicitando una declaración jurada previa, de que la empresa externa también está cumpliendo con estándares equivalentes?","Sin normativa asociada"]
[null,"A.6.3","Medida obligatoria\nPASO A PASO TURISMO Y ALOJAMIENTO V.3","¿De contar con un INGRESO INDEPENDIENTE PARA PROVEEDORES, se sanitiza y desinfecta frecuentemente de acuerdo a los criterios establecidos en este protocolo?","Sin normativa asociada"]
[null,"A.7.- SERVICIO DE RECEPCIÓN Y ACOGIDA"]
[null,"A.7.1","Recomendación\nPASO A PASO TURISMO Y ALOJAMIENTO V.3","¿Se SOLICITA A LOS CLIENTES al momento de ingresar al establecimiento por primera vez, la presentación de su respectivo PASAPORTE SANITARIO (C19) y PERMISO DE VACACIONES correspondiente, si el origen/destino tiene relación con una comuna en Paso 2? ","Sin normativa asociada"]
[null,"A.7.2","Recomendación\nPASO A PASO LABORAL","¿Se han instalado ELEMENTOS FÍSICOS que aseguren la protección del personal de recepción, de fácil limpieza y desinfección?","Sin normativa asociada"]
[null,"A.7.3","Medida obligatoria\nPASO A PASO TURISMO Y ALOJAMIENTO V.3","¿Se dispone de lugares para el LAVADO DE MANOS con jabón o se cuenta con alcohol o alcohol gel, tanto para clientes como para los trabajadores?","Sin normativa asociada"]
[null,"A.7.4","Medida obligatoria\nPASO A PASO TURISMO Y ALOJAMIENTO V.3","¿Se han adoptado las medidas necesarias para evitar la  disponibilidad de OBJETOS MANIPULABLES (lápices, folletos, revistas, etc.) que puedan facilitar la transmisión?","Sin normativa asociada"]
[null,"A.7.5","Medida obligatoria\nPASO A PASO TURISMO Y ALOJAMIENTO V.3","¿Se recomienda a los CLIENTES/TURISTAS EVITAR el uso de dinero en efectivo, privilegiando otros métodos de pago, desinfectando los POS de forma permanente?","Sin normativa asociada"]
[null,"A.7.6","Medida obligatoria\nPASO A PASO TURISMO Y ALOJAMIENTO V.3","En el caso de que existan TARJETAS O LLAVES, ¿éstas se depositan en un RECIPIENTE CON DESINFECTANTE al finalizar la estancia o tras cada uso si se depositan en la recepción?","Sin normativa asociada"]
[null,"A.7.7","Medida obligatoria\nPASO A PASO TURISMO Y ALOJAMIENTO V.3","¿Se dispone de TOALLITAS DESINFECTANTES para limpiar asas, manillas, etc., cuando el personal preste el servicio de transporte de equipaje del cliente?","Sin normativa asociada"]
[null,"A.8.- RELATIVAS A LAS ZONAS DE USO COMÚN"]
[null,"A.8.1","Medida obligatoria\nPASO A PASO TURISMO Y ALOJAMIENTO V.3","¿Se privilegia la realización de ACTIVIDADES DE ANIMACIÓN al AIRE LIBRE siempre que sea posible, evitando el intercambio de objetos?","Sin normativa asociada"]
[null,"A.8.2","Medida obligatoria\nPASO A PASO TURISMO Y ALOJAMIENTO V.3","¿Se han cerrado o eliminado las ÁREAS INFANTILES Y JUEGOS DE NIÑOS?","Sin normativa asociada"]
[null,"A.9.- RELATIVAS AL SERVICIO DE CAFETERÍA / RESTAURANTE"]
[null,"A.9.1","Medida obligatoria\nPASO A PASO TURISMO Y ALOJAMIENTO V.3","¿Se adoptan medidas para evitar la MANIPULACIÓN de los alimentos directamente por los clientes y minimizar el autoservicio?","Sin normativa asociada"]
[null,"A.9.2","Medida obligatoria\nPASO A PASO TURISMO Y ALOJAMIENTO V.3","¿Se han adoptado medidas de seguridad sanitaria en la tipología de servicio BUFFETS?","Sin normativa asociada"]
[null,"A.10.- PROTOCOLO DE ACTUACIÓN ANTE HUESPEDES EN CUARENTENA"]
[null,"A.10.1","Medida obligatoria\nPASO A PASO TURISMO Y ALOJAMIENTO V.3","¿Tiene SOSPECHA FUNDADA de que una PERSONA ALOJADA pueda estar afectada de COVID-19?","Sin normativa asociada"]
[null,"A.11.- PROCEDIMIENTOS DE LIMPIEZA EN ESTABLECIMIENTOS CON UN CASO CONFIRMADO"]
[null,"A.11.1","Medida obligatoria\nPASO A PASO TURISMO Y ALOJAMIENTO V.3","Cuando se realiza el aseo de habitaciones con casos sospechosos o confirmados, ¿se utilizan UTENSILIOS EXCLUSIVOS para dichas habitaciones, a fin de evitar riesgos de contaminación cruzada?","Sin normativa asociada"]
[null,"A.11.2","Medida obligatoria\nPASO A PASO TURISMO Y ALOJAMIENTO V.3","¿Se dispone de Elementos de Protección Personal (EPP) DESECHABLES para trabajadores que limpian cada habitación, ante la existencia de casos confirmados?","Sin normativa asociada"]
[null,"A.11.3","Medida obligatoria\nPASO A PASO TURISMO Y ALOJAMIENTO V.3","¿Se han establecido medidas ante la eventualidad que el PERSONAL DEL HOTEL deba ingresar a la habitación, por alguna situación excepcional, estando presente el cliente (huésped) con caso confirmado?","Sin normativa asociada"]
[null,"A.11.4","Medida obligatoria\nPASO A PASO TURISMO Y ALOJAMIENTO V.3","¿Se ingresa el CARRO de LIMPIEZA en la habitación de un huésped con caso confirmado?","Sin normativa asociada"]
[null,"A.11.5","Medida obligatoria\nPASO A PASO TURISMO Y ALOJAMIENTO V.3","¿Se han establecido medidas para el RETIRO de la ROPA de CAMA, TOALLAS u otros textiles, de una habitación con presencia de un caso confirmado?","Sin normativa asociada"]
[null,"A.11.6","Medida obligatoria\nPASO A PASO TURISMO Y ALOJAMIENTO V.3","¿El MATERIAL DESECHABLE utilizado por la persona enferma, es eliminado al interior de una BOLSA de PLÁSTICO con cierre hermético y desechada posteriormente en un basurero con tapa y bolsa plástica?","Sin normativa asociada"]
[null,"A.11.7","Medida obligatoria\nPASO A PASO TURISMO Y ALOJAMIENTO V.3","¿Se RETIRAN, DESECHAN y SUSTITUYEN todas las facilidades de aseo (amenities, rollos de papel higiénico, bolsas de aseo, etc.), una vez que el CLIENTE ABANDONA definitivamente la habitación?","Sin normativa asociada"]
[null,"A.11.8","Medida obligatoria\nPASO A PASO TURISMO Y ALOJAMIENTO V.3","¿Se realiza una LIMPIEZA y DESINFECCIÓN profunda (terminal), una vez que el cliente abandona definitivamente la habitación?","Sin normativa asociada"]
[null,"A"]
[null,"B.- RESTAURANTES - Protocolo de Manejo y Prevencion ante COVID-19 en Restaurantes, cafés y otros establecimientos análogos Versión 5 (08 Feb 2021)"]
[null,"A"]
[null,"B.1.- RELATIVAS AL LUGAR"]
[null,"B.1.1","Medida obligatoria\nPASO A PASO RESTAURANTES V.5","¿La administración ha definido, implementado y monitoreado un PLAN DE LIMPIEZA Y DESINFECCIÓN, y establecido un responsable de llevar a efecto esta actividad?","Sin normativa asociada"]
[null,"B.2.- RESPECTO DE LAS ENTRADAS Y SALIDAS"]
[null,"B.2.1","Medida obligatoria\nPASO A PASO RESTAURANTES V.5","¿Se han establecido mecanismos adicionales a los obligatorios para que clientes que esperan ingresar al establecimiento mantengan el DISTANCIAMIENTO FISICO MÍNIMO, como por ejemplo la entrega de números de atención o reservas anticipadas?","Sin normativa asociada"]
[null,"B.2.2","Medida obligatoria\nPASO A PASO RESTAURANTES V.5","¿Se ha RESTRINGIDO LA CANTIDAD DE ACCESOS disponibles, para dejar habilitados solo los accesos principales?","Sin normativa asociada"]
[null,"B.2.3","Medida obligatoria\nPASO A PASO RESTAURANTES V.5","¿El establecimiento dispone de MECANISMO DE DESINFECCIÓN DE MANOS (alcohol o alcohol gel), en las entradas y salidas?","Sin normativa asociada"]
[null,"B.3- RESPECTO DE LAS AREAS COMUNES"]
[null,"B.3.1","Medida obligatoria\nPASO A PASO RESTAURANTES V.5","¿Se ORGANIZAN LAS MESAS, de forma que se pueda cumplir con el debido distanciamiento social de un metro entre clientes?","Sin normativa asociada"]
[null,"B.3.2","Medida obligatoria\nPASO A PASO RESTAURANTES V.5","¿Se adoptan medidas para asegurar que los asistentes se mantengan SENTADOS la mayor parte del tiempo y que NO PUEDAN INTERACTUAR con los asistentes de otras mesas?","Sin normativa asociada"]
[null,"B.3.3","Recomendación\nPASO A PASO RESTAURANTES V.5","En caso de disponer de música, ¿esta se mantiene con volumen moderado, de manera que las PERSONAS puedan CONVERSAR y NO GRITAR?","Sin normativa asociada"]
[null,"B.3.4","Medida obligatoria\nPASO A PASO RESTAURANTES V.5","¿En servicios de buffet, se han HABILITADO BARRERAS FÍSICAS para proteger los alimentos, como láminas de plástico verticales, y disponer colaboradores para entregar comida a los clientes, evitando el autoservicio?","Sin normativa asociada"]
[null,"B.3.5","Medida obligatoria\nPASO A PASO RESTAURANTES V.5","¿Se ha Instalado BARRERAS FÍSICAS, como láminas de acrílico transparente, en la caja?","Sin normativa asociada"]
[null,"B.3.6","Medida obligatoria\nPASO A PASO RESTAURANTES V.5","¿Se han ELIMINADO de la carta los PLATOS COMPARTIDOS?","Sin normativa asociada"]
[null,"B.3.7","Medida obligatoria\nPASO A PASO RESTAURANTES V.5","¿Se realiza la LIMPIEZA y DESINFECCIÓN de ALCUZAS entre cada servicio, evitando además el uso del servilletero compartido?","Sin normativa asociada"]
[null,"B.3.8","Medida obligatoria\nPASO A PASO RESTAURANTES V.5","¿Se han ELIMINADO las CARTAS DE MENÚ o han sido SUSTITUIDAS por otra forma de mostrar la oferta de cada establecimiento?","Sin normativa asociada"]
[null,"B.3.9","Medida obligatoria\nPASO A PASO RESTAURANTES V.5","¿Se generan FLUJOS DE CIRCULACIÓN dentro de los recintos, que permitan reducir al máximo la interacción entre clientes?","Sin normativa asociada"]
[null,"B.3.10","Medida obligatoria\nPASO A PASO RESTAURANTES V.5","¿Se han cerrado o eliminado las ÁREAS INFANTILES Y JUEGOS DE NIÑOS?","Sin normativa asociada"]
[null,"B.3.11","Medida obligatoria\nPASO A PASO RESTAURANTES V.5","¿Se promueve el USO DE PAPEL ABSORBENTE o servilletas para evitar el contacto directo al MANIPULAR MANILLAS u otras superficies de uso común?","Sin normativa asociada"]
[null,"B.3.12","Medida obligatoria\nPASO A PASO RESTAURANTES V.5","¿El establecimiento cuenta con las CANTIDADES NECESARIAS DE UTENSILIOS, vajilla, cristalería, cubiertos y mantelería sanitizadas para cubrir las necesidades de máxima ocupación y permitir su limpieza adecuada?","Sin normativa asociada"]
[null,"B.4 - RESPECTO DE LOS SERVICIOS SANITARIOS"]
[null,"B.4.1","Medida obligatoria\nPASO A PASO RESTAURANTES V.5","¿Todos los BAÑOS DEL ESTABLECIMIENTO disponen de inodoros en buen estado de mantención, basureros, lavamanos, jabón y papel higiénico en portarrollos. Además del uso de secador de aire caliente o dispensador de toallas de papel absorbente desechables, para evitar uso de toallas?","Sin normativa asociada"]
[null,"B.4.2","Medida obligatoria\nPASO A PASO RESTAURANTES V.5","¿Se evita el uso de TOALLAS no desechables, de uso comunitarios?","Sin normativa asociada"]
[null,"B.4.3","Medida obligatoria\nPASO A PASO RESTAURANTES V.5","¿Durante el funcionamiento del establecimiento, se LIMPIAN Y DESINFECTAN LOS SERVICIOS HIGIÉNICOS tanto como sea posible?","Sin normativa asociada"]
[null,"B.5.- RESPECTO DE LA COCINA"]
[null,"B.5.1","Medida obligatoria\nPASO A PASO RESTAURANTES V.5","¿Se cuenta con áreas de TRABAJO DIFERENCIADAS Y DELIMITADAS para la preparación o elaboración de alimentos, MARCANDO EN EL PISO la distancia mínima de distanciamiento de un metro para los trabajadores?","Sin normativa asociada"]
[null,"B.5.2","Medida obligatoria\nPASO A PASO RESTAURANTES V.5","¿Se promueve en los trabajadores, el LAVADO DE MANOS CONSTANTE, independiente del uso de guantes si la función lo requiere, además de equipar la cocina con desinfectante para manos?","Sin normativa asociada"]
[null,"B.5.3","Medida obligatoria\nPASO A PASO RESTAURANTES V.5","¿Se ha restringido o prohibido el USO DE TELÉFONO CELULAR u otros objetos personales, al personal de cocina, mientras realiza sus labores y en caso de hacerlo se lava las manos posteriormente por al menos 20 segundos?","Sin normativa asociada"]
[null,"B.5.4","Medida obligatoria\nPASO A PASO RESTAURANTES V.5","¿Existe un PROCEDIMIENTO DE DESINFECCIÓN DE LA VAJILLA, donde se establezca que los platos, cubiertos y demás utensilios idealmente deberán lavarse en máquinas lavavajillas, a una temperatura superior a 80°C en el enjuague. O en su defecto el lavado manual deberá ser profundo, cumpliendo con las temperatura definida y secando con papel absorbente?","Sin normativa asociada"]
[null,"B.5.5","Medida obligatoria\nPASO A PASO RESTAURANTES V.5","¿Se LIMPIAN Y DESINFECTAN especialmente los desagües de la cocina, elementos con grasa y cualquier contenedor de comidas?","Sin normativa asociada"]
[null,"B.7.- MEDIDAS RELATIVA A LOS TRABAJADORES"]
[null,"B.7.1","Medida obligatoria\nPASO A PASO RESTAURANTES V.5","Existe un CONTROL DE ACCESO para tomar la temperatura corporal y efectuar el control del estado general de salud a todos los trabajadores y personas externas que ingresen al centro de trabajo, con el fin de impedir la entrada de personas con sospecha de contagio de COVID-19?","Sin normativa asociada"]
[null,"B.7.2","Recomendación\nPASO A PASO RESTAURANTES V.5","¿Se ha convenido la DISTRIBUCIÓN de la jornada en diversos turnos, con el fin de evitar aglomeraciones y limitar la cantidad de trabajadores que comparten un mismo espacio?","Sin normativa asociada"]
[null,"B.7.3","Recomendación\nPASO A PASO RESTAURANTES V.5","A fin de evitar aglomeraciones y asegurar medidas de distanciamiento social de trabajadores, ¿se cumple, en caso de ser posible, con establecer SISTEMAS DE TURNOS entre grupos de trabajadores para labores críticas (ej. sistemas de trabajo 14x14). Evitando la superposición entre los trabajadores por turnos? ","Sin normativa asociada"]
[null,"B.7.4","Recomendación\nPASO A PASO RESTAURANTES V.5","A fin de evitar aglomeraciones y asegurar medidas de distanciamiento social de trabajadores, ¿Se cumple con FLEXIBILIZAR HORARIOS o celebrar pactos sobre horarios diferidos de ingreso y salida de los trabajadores, con el objeto de evitar aglomeraciones y/o adaptarse a la disponibilidad de transporte público?","Sin normativa asociada"]
[null,"B.7.5","Recomendación\nPASO A PASO RESTAURANTES V.5","A fin de evitar aglomeraciones y asegurar medidas de distanciamiento social de trabajadores, ¿Se han EVALUADO FORMAS DE TRASLADO de trabajadores que puedan maximizar medidas de prevención y entregar insumos de prevención para traslado, como mascarillas y alcohol gel?","Sin normativa asociada"]
[null,"B.7.6","Recomendación\nPASO A PASO RESTAURANTES V.5","A fin de evitar aglomeraciones y asegurar medidas de distanciamiento social de trabajadores, ¿se han pactado otras medidas tendientes a evitar la AGLOMERACIÓN, como turnos para colación y descanso?","Sin normativa asociada"]
[null,"B.7.7","Medida obligatoria\nPASO A PASO RESTAURANTES V.5","¿Se ha confeccionado, implementado y difundido un PROTOCOLO DE LIMPIEZA DE TRABAJADORES para ingresar al establecimiento?","Sin normativa asociada"]
[null,"B.7.8","Medida obligatoria\nPASO A PASO RESTAURANTES V.5","Con la finalidad de mantener un estricto cuidado e higiene personal, ¿se facilitan las condiciones e implementos necesarios para asegurar la HIGIENIZACIÓN FRECUENTE Y LAVADO DE MANOS de los trabajadores?","Sin normativa asociada"]
[null,"B.7.9","Medida obligatoria\nPASO A PASO RESTAURANTES V.5","¿Se evita la realización de REUNIONES GRUPALES y de realizarse, se han establecido las medidas preventivas para evitar los contagios de COVID-19?","Sin normativa asociada"]
[null,"B.8.- MEDIDAS RELATIVAS A CLIENTES O USUARIOS"]
[null,"B.8.1","Recomendación\nPASO A PASO RESTAURANTES V.5","¿Existe un CONTROL DE ACCESO para tomar la temperatura corporal y/o efectuar el control del estado general de salud a los CLIENTES  USUARIOS que ingresen al establecimiento, con el fin de impedir el ingreso de personas con sospecha de contagio de COVID-19?","Sin normativa asociada"]
[null,"B.8.2","Medida obligatoria\nPASO A PASO RESTAURANTES V.5","¿Se solicita a los CLIENTES desinfectar SUS MANOS con alcohol o alcohol gel y/o lavar con agua y jabón en lavaderos al ingreso y/o en sus mesas?","Sin normativa asociada"]
[null,"B.8.3","Medida obligatoria\nPASO A PASO RESTAURANTES V.5","¿Se informa a los clientes la forma correcta de GUARDAR sus MASCARILLAS, mientras consumen sus alimentos?","Sin normativa asociada"]
[null,"B.8.4","Medida obligatoria\nPASO A PASO RESTAURANTES V.5","¿Se han limitado las RESERVAS DE CLIENTES de acuerdo con la capacidad de aforo del establecimiento?","Sin normativa asociada"]
[null,"B.9.- MEDIDAS RELATIVAS A EXTERNOS"]
[null,"B.9.1","Medida obligatoria\nPASO A PASO RESTAURANTES V.5","¿Existe un CONTROL DE ACCESO para tomar la temperatura corporal y/o efectuar el control del estado general de salud a los PROVEEDORES que ingresen al establecimiento, solicitando completar la declaración de estado de salud, la que podrá ser enviada por medios electrónicos o ser llenada a la llegada del proveedor, con el fin de impedir el ingreso de personas con sospecha de contagio de COVID-19?","Sin normativa asociada"]
[null,"B.9.2","Medida obligatoria\nPASO A PASO RESTAURANTES V.5","¿Se han establecido mecanismos para asegurar que en la INTERACCIÓN CON EMPRESAS EXTERNAS, se cumpla con las medidas preventivas, informando sobre dichas medidas y solicitando una declaración jurada previa, de que la empresa externa también está cumpliendo con estándares equivalentes?","Sin normativa asociada"]
[null,"B.9.3","Medida obligatoria\nPASO A PASO RESTAURANTES V.5","¿De contar con un INGRESO INDEPENDIENTE PARA PROVEEDORES, se sanitiza y desinfecta frecuentemente de acuerdo a los criterios establecidos en este protocolo?","Sin normativa asociada"]
[null,"A"]
[null,"C.- CASINOS DE JUEGO - Protocolo de Manejo y Prevencion ante COVID-19 en Casinos y establecimientos de juegos y entretención Versión 3 (19 Feb 2021)"]
[null,"A"]
[null,"C.1.- FASES PASO A PASO"]
[null,"C.1.1","Medida obligatoria\nPASO A PASO \nCASINOS V.3","¿Se encuentra prohibido el CONSUMO DE ALIMENTOS Y BEBIDAS, en los lugares de máquinas de juego y en los lugares de mesas de juego?","Sin normativa asociada"]
[null,"C.1.2","Medida obligatoria\nPASO A PASO \nCASINOS V.3","¿Se ORGANIZAN LAS MÁQUINAS DE JUEGO de forma que se pueda cumplir con el debido distanciamiento social de un metro entre clientes, además de disponer de BARRERAS FÍSICAS de separación que impidan el contacto directo entre personas; o dos metros lineales entre los asientos de cada máquina?","Sin normativa asociada"]
[null,"C.2.- RELATIVAS AL LUGAR"]
[null,"C.2.1","Medida obligatoria\nPASO A PASO \nCASINOS V.3","¿La administración ha definido, implementado y monitoreado un PLAN DE LIMPIEZA Y DESINFECCIÓN, de acuerdo a las indicaciones del Protocolo de Limpieza y Desinfección de Ambientes establecido en el Protocolo Nacional “Modo de Vida COVID”?","Sin normativa asociada"]
[null,"C.3.- ENTRADAS Y SALIDAS DEL CASINO"]
[null,"C.3.1","Medida obligatoria\nPASO A PASO \nCASINOS V.3","¿Se adoptan MEDIDAS con los clientes en la RECEPCIÓN?","Sin normativa asociada"]
[null,"C.3.2","Recomendación\nPASO A PASO \nCASINOS V.3","De existir GUARDARROPÍA, ¿se adoptan medidas para minimizar la probabilidad de contagio?","Sin normativa asociada"]
[null,"C.3.3","Medida obligatoria\nPASO A PASO \nCASINOS V.3","¿Se ha RESTRINGIDO LA CANTIDAD DE ACCESOS disponibles, dejando habilitadas las entradas y salidas separadas?","Sin normativa asociada"]
[null,"C.4.- SALAS DE MAQUINAS, MESAS Y BINGOS"]
[null,"C.4.1","Medida obligatoria\nPASO A PASO \nCASINOS V.3","¿Se realiza la LIMPIEZA y DESINFECCIÓN de las máquinas de juego, al inicio y al término de la jornada, instalando un distintivo que indique dicha condición?","Sin normativa asociada"]
[null,"C.4.2","Medida obligatoria\nPASO A PASO \nCASINOS V.3","¿Se han DEMARCADO LAS MESAS manteniendo una distancia de separación de al menos un metro lineal entre personas?","Sin normativa asociada"]
[null,"C.4.3","Medida obligatoria\nPASO A PASO \nCASINOS V.3","¿Las MÁQUINAS DE JUEGO se encuentran separadas, por al menos dos metros lineales entre ellas?","Sin normativa asociada"]
[null,"C.5.- BARES, RESTAURANTES Y COCINAS DENTRO DEL CASINO"]
[null,"C.5.1","Medida obligatoria\nPASO A PASO \nCASINOS V.3","¿Exsiten BARES, RESTAURANTES o COCINAS al interior del casino?","Sin normativa asociada"]
[null,"C.6.- SHOWS"]
[null,"C.6.1","Medida obligatoria\nPASO A PASO \nCASINOS V.3","¿Se realizan espectaculos o SHOWS con la presencia de público?","Sin normativa asociada"]
[null,"C.7.- RESPECTO DE LOS SERVICIOS SANITARIOS"]
[null,"C.7.1","Medida obligatoria\nPASO A PASO \nCASINOS V.3","¿Todos los BAÑOS DEL ESTABLECIMIENTO disponen de inodoros en buen estado de mantención, basureros, lavamanos, jabón y papel higiénico en portarrollos. Además del uso de secador de aire caliente o dispensador de toallas de papel absorbente desechables, para evitar uso de toallas?","Sin normativa asociada"]
[null,"C.7.2","Medida obligatoria\nPASO A PASO \nCASINOS V.3","¿Durante el funcionamiento del establecimiento, se LIMPIAN Y DESINFECTAN LOS SERVICIOS HIGIÉNICOS tanto como sea posible?","Sin normativa asociada"]
[null,"C.7.3","Medida obligatoria\nPASO A PASO \nCASINOS V.3","¿Se dispone de SEÑALIZACIÓN GRÁFICA relacionada con el proceso de lavado de manos, uso de jabón y el distanciamiento entre personas?","Sin normativa asociada"]
[null,"C.8.- RESPECTO DE LA VENTILACIÓN"]
[null,"C.8.1","Medida obligatoria\nPASO A PASO \nCASINOS V.3","¿Se mantienen VENTILADOS los AMBIENTES CERRADOS de forma permanente?","Sin normativa asociada"]
[null,"C.9.- PARA LA ENTREGA DE PREMIOS"]
[null,"C.9.1","Medida obligatoria\nPASO A PASO \nCASINOS V.3","¿Se MANEJA todo MOVIMIENTO de DINERO en las cajas de casino sin excepción?","Sin normativa asociada"]
[null,"C.9.2","Medida obligatoria\nPASO A PASO \nCASINOS V.3","¿Se ha definido una metodología y lugar para la ENTREGA de PREMIOS?","Sin normativa asociada"]
[null,"C.10.- MEDIDAS RELATIVA A LOS TRABAJADORES"]
[null,"C.10.1","Medida obligatoria\nPASO A PASO \nCASINOS V.3","¿Los trabajadores(as) que realizan TAREAS DE LIMPIEZA Y DESINFECCIÓN fueron informados del procedimiento para la limpieza y desinfección, en el correcto uso y retiro de los elementos de protección personal, su desinfección o eliminación?","Art. 21 del D.. 40 de 1969 del Ministerio del Trabajo y Previsión Social."]
[null,"C.10.2","Medida obligatoria\nPASO A PASO \nCASINOS V.3","Se entrega a los trabajadores(as) que realizan la limpieza y desinfección de los lugares de trabajo y espacios comunes, elementos de protección personal, conforme al Protocolo Modo Covid de Vida, tales como: \n• Guantes desechables o reutilizables, que sean resistentes impermeables, manga larga (no quirúrgicos); \n• Mascarilla para evitar propagación del virus COVID-19.\n• Pechera desechable o reutilizable.","Resolución N°591 del 23 de julio de 2020 del Ministerio de Salud."]
[null,"C.11.- TRABAJADORES INTERNOS"]
[null,"C.11.1","Medida obligatoria\nPASO A PASO \nCASINOS V.3","¿Existe un CONTROL DE ACCESO para tomar la temperatura corporal y efectuar el control del estado general de salud a todos los trabajadores y personas externas que ingresen al centro de trabajo, con el fin de impedir la entrada de personas con sospecha de contagio de COVID-19?","Sin normativa asociada"]
[null,"C.11.2","Medida obligatoria\nPASO A PASO \nCASINOS V.3","¿Se ha convenido la DISTRIBUCIÓN de la jornada en diversos turnos, con el fin de evitar aglomeraciones y limitar la cantidad de trabajadores que comparten un mismo espacio?","Sin normativa asociada"]
[null,"C.11.3","Medida obligatoria\nPASO A PASO \nCASINOS V.3","A fin de evitar aglomeraciones y asegurar medidas de distanciamiento social de trabajadores, ¿se cumple, en caso de ser posible, con establecer SISTEMAS DE TURNOS entre grupos de trabajadores, evitando la interacción entre grupos?  (ej. sistemas de trabajo 14x14)?","Sin normativa asociada"]
[null,"C.11.4","Medida obligatoria\nPASO A PASO \nCASINOS V.3","A fin de evitar aglomeraciones y asegurar medidas de distanciamiento social de trabajadores, ¿Se cumple con FLEXIBILIZAR HORARIOS o celebrar pactos sobre horarios diferidos de ingreso y salida de los trabajadores, con el objeto de evitar aglomeraciones y/o adaptarse a la disponibilidad de transporte público?","Sin normativa asociada"]
[null,"C.11.5","Medida obligatoria\nPASO A PASO \nCASINOS V.3","A fin de evitar aglomeraciones y asegurar medidas de distanciamiento social de trabajadores, ¿Se han EVALUADO FORMAS DE TRASLADO de trabajadores que puedan maximizar medidas de prevención y entregar insumos de prevención para traslado, como mascarillas y alcohol gel?","Sin normativa asociada"]
[null,"C.11.6","Medida obligatoria\nPASO A PASO \nCASINOS V.3","A fin de evitar aglomeraciones y asegurar medidas de distanciamiento social de trabajadores, ¿se han pactado otras medidas tendientes a evitar la AGLOMERACIÓN, como turnos para colación y descanso?","Sin normativa asociada"]
[null,"C.11.7","Medida obligatoria\nPASO A PASO \nCASINOS V.3","¿Se ha confeccionado, implementado y difundido un PROTOCOLO DE LIMPIEZA DE TRABAJADORES para ingresar al establecimiento?","Sin normativa asociada"]
[null,"C.11.8","Medida obligatoria\nPASO A PASO \nCASINOS V.3","¿Se evita la realización de REUNIONES GRUPALES y de realizarse, se han establecido las medidas preventivas para evitar los contagios de COVID-19?","Sin normativa asociada"]
[null,"C.12.- RESPECTO A EXTERNOS"]
[null,"C.12.1","Medida obligatoria\nPASO A PASO \nCASINOS V.3","¿Existe un CONTROL DE ACCESO para tomar la temperatura corporal y/o efectuar el control del estado general de salud a los PROVEEDORES que ingresen al establecimiento, solicitando completar la declaración de estado de salud, la que podrá ser enviada por medios electrónicos o ser llenada a la llegada del proveedor, con el fin de impedir el ingreso de personas con sospecha de contagio de COVID-19?","Sin normativa asociada"]
[null,"C.12.2","Medida obligatoria\nPASO A PASO \nCASINOS V.3","¿Se han establecido mecanismos para asegurar que en la INTERACCIÓN CON EMPRESAS EXTERNAS, se cumpla con las medidas preventivas, informando sobre dichas medidas y solicitando una declaración jurada previa, de que la empresa externa también está cumpliendo con estándares equivalentes?","Sin normativa asociada"]
[null,"C.12.3","Medida obligatoria\nPASO A PASO \nCASINOS V.3","¿De contar con un INGRESO INDEPENDIENTE PARA PROVEEDORES, se sanitiza y desinfecta frecuentemente de acuerdo a los criterios establecidos en este protocolo?","Sin normativa asociada"]

{"sheet":"INFO CENTRO","index":3,"n_rows":26,"n_cols":16,"rows_kept":26,"cut":false,"hidden":false,"merged":[[14,15,14,17],[16,15,16,17],[0,1,1,18],[2,1,5,18],[12,1,12,2],[14,1,14,2],[16,1,16,2],[12,12,12,17],[14,3,14,8],[16,3,16,8],[14,11,14,13],[12,10,12,11],[12,3,12,8],[16,11,16,13],[23,2,23,4],[23,6,23,8],[25,2,25,4],[25,6,25,8],[21,3,21,8],[21,1,21,2]]}
[null,"LISTA DE VERIFICACIÓN - SERIE COVID-19"]
[]
[null,"MEDIDAS PREVENTIVAS EN CENTROS DE TRABAJO\nFRENTE AL COVID-19"]
[]
[]
[]
[]
[null,"INFORMACIÓN DEL CENTRO DE TRABAJO EVALUADO"]
[]
[null,"Entidad empleadora",null,null,null,null,null,null,null,null,"Dirección del centro"]
[]
[]
[null,"RAZÓN SOCIAL",null,{"$f":"+IF(DATOS!D15=\"\",\"SIN INFORMACIÓN\",DATOS!D15)","v":"SIN INFORMACIÓN"},null,null,null,null,null,null,"DIRECCIÓN",null,{"$f":"+IF(DATOS!I21=\"\",\"SIN INFORMACIÓN\",DATOS!I21)","v":"SIN INFORMACIÓN"}]
[]
[null,"RUT",null,{"$f":"+IF(DATOS!L15=\"\",\"SIN INFORMACIÓN\",DATOS!L15)","v":"SIN INFORMACIÓN"},null,null,null,null,null,null,"NUMERO",{"$f":"+IF(DATOS!Q21=\"\",\"SIN INFORMACIÓN\",DATOS!Q21)","v":"SIN INFORMACIÓN"},null,null,"LOCALIDAD",{"$f":"+IF(DATOS!D23=\"\",\"SIN INFORMACIÓN\",DATOS!D23)","v":"SIN INFORMACIÓN"}]
[]
[null,"CIIU PRINCIPAL",null,{"$f":"+IF(DATOS!Q15=\"\",\"SIN INFORMACIÓN\",DATOS!Q15)","v":"SIN INFORMACIÓN"},null,null,null,null,null,null,"COMUNA",{"$f":"+IF(DATOS!L23=\"\",\"SIN INFORMACIÓN\",DATOS!L23)","v":"SIN INFORMACIÓN"},null,null,"REGIÓN",{"$f":"+IF(DATOS!Q23=\"\",\"SIN INFORMACIÓN\",DATOS!Q23)","v":"SIN INFORMACIÓN"}]
[]
[null,"Responsable de aplicación"]
[]
[]
[null,"NOMBRE COMPLETO",null,{"$f":"+IF(DATOS!D29=\"\",\"SIN INFORMACIÓN\",DATOS!D29)","v":"SIN INFORMACIÓN"}]
[]
[null,"RUT",{"$f":"+IF(DATOS!L29=\"\",\"SIN INFORMACIÓN\",DATOS!L29)","v":"SIN INFORMACIÓN"},null,null,"CARGO",{"$f":"+IF(DATOS!Q29=\"\",\"SIN INFORMACIÓN\",DATOS!Q29)","v":"SIN INFORMACIÓN"}]
[]
[null,"TELÉFONO",{"$f":"+IF(DATOS!L31=\"\",\"SIN INFORMACIÓN\",DATOS!L31)","v":"SIN INFORMACIÓN"},null,null,"MAIL",{"$f":"+IF(DATOS!Q31=\"\",\"SIN INFORMACIÓN\",DATOS!Q31)","v":"SIN INFORMACIÓN"}]

{"sheet":"PLAN DE MEDIDAS","index":4,"n_rows":248,"n_cols":12,"rows_kept":248,"cut":false,"hidden":false,"merged":[[2,1,5,9],[0,1,1,9],[7,1,8,9],[6,1,6,9],[10,7,10,9]]}
[null,"LISTA DE VERIFICACIÓN - SERIE COVID-19"]
[]
[null,"PLAN DE MEDIDAS PREVENTIVAS EN CENTROS DE TRABAJO\nFRENTE AL COVID-19"]
[]
[]
[]
[]
[null,"SOBRE EL PLAN DE MEDIDAS:\nPara las siguientes actividades se debe establecer RESPONSABLE y FECHA DE IMPLEMENTACIÓN, generando los registros de evidencias solicitados. Considerar que los puntos que establece este plan de acción puede ser fiscalizado por la autoridad."]
[]
[]
[null,"N°","TIPO","MEDIDA DE CONTROL","EVIDENCIA DE CUMPLIMIENTO","RESPONSABLE","FECHA IMPLEMENTACIÓN","MATERIAL DE APOYO",null,null,"EVALUACIÓN"]
[null,"CERO",null,null,null,null,null,null,null,null,{"$f":"+VLOOKUP(B12,EVALUACION!$B$12:$F$1000,5,FALSE)","v":0}]
[null,"1.- ORGANIZACIÓN Y RESPONSABILIDADES EN EL CENTRO",null,null,null,null,null,null,null,null,{"$f":"+VLOOKUP(B13,EVALUACION!$B$12:$F$1000,5,FALSE)","v":0}]
[null,"CERO",null,null,null,null,null,null,null,null,{"$f":"+VLOOKUP(B14,EVALUACION!$B$12:$F$1000,5,FALSE)","v":0}]
[null,1,"Medida obligatoria\nPASO A PASO LABORAL","Se debe considerar la estrategia “PASO A PASO” que dispuso la autoridad sanitaria para generar el desconfinamiento gradual establecido por la pandemia del COVID 19.\n\nPara esto, la organización debe revisar la etapa (cuarentena, transición, preparación, apertura inicial, apertura avanzada) en que se encuentra la comuna donde se emplaza cada uno de sus centro de trabajo, verificando las obligaciones y restricciones relacionadas con la actividad económica desarrollada.\n\nAdemás, en función de esta estrategia, se debe planificar el retorno de los trabajadores a cada centro, considerando los aforos máximos por instalación y la procedencia de cada uno de ellos, verificando que la comuna de su domicilio particular se encuentra en etapa que permite su desplazamiento. \nConsideración: \nEl nuevo documento sobre la nueva estrategia gradual paso a paso 2021, establece que en el Paso 1 - Cuarentena, respecto de la obtención de Permisos Únicos Colectivos (PUC): \"Las empresas deberán informar al Comité Paritario, cuando existiere, el listado de personas que accederán al PUC\"","• Registro actualizado de domicilio particular de cada trabajador.\n• Plan de retorno por cada centro de trabajo.",null,null,"https://www.gob.cl/coronavirus/pasoapaso/","https://www.minsal.cl/conoce-el-plan-paso-a-paso/"," ",{"$f":"+VLOOKUP(B15,EVALUACION!$B$12:$F$1000,5,FALSE)","v":0}," "]
[null,"1.1","Medida obligatoria\nPASO A PASO LABORAL","Se debe considerar la generación de un plan de ACCIONES PARA LA GESTIÓN PREVENTIVA DEL COVID-19, el cual se debe tener por contenido mínimo lo dispuesto en el programa modelo elaborado por la Intendencia de Seguridad y Salud en el Trabajo.\n\nEste plan debe ser difundido a todos los trabajadores, línea de mando, sindicatos, CPHS, contratistas y subcontratistas, dejando registro o evidencia de esta acción.","• Plan de acción para la gestión preventiva del COVID-19.\n• Registro de difusión del plan a línea de mando, sindicatos, CPHS, contratistas, etc., según proceda.",null,null,"https://coronavirus.achs.cl/docs/default-source/default-document-library/achs_plan_de_respuesta_control_y_prevencion.docx?sfvrsn=f918cbe1_2"," "," ",{"$f":"+VLOOKUP(B16,EVALUACION!$B$12:$F$1000,5,FALSE)","v":0}," "]
[null,"1.2","Medida obligatoria\nPASO A PASO LABORAL","Se debe constituir un EQUIPO DE TRABAJO, con representatividad de trabajadores y empleadores, para gestionar todas las acciones preventivas frente al COVID-19 que debe implementar la organización. Este equipo se debe reunir a lo menos una vez por semana para:\n\n• Verificar el cumplimiento y eficacia de las medidas implementadas, dejando el registro que evidencie esas acciones.\n• Generar la retroalimentación y monitoreo de la situación en la empresa.\n• Proponer las mejoras que se requieran para tratar las desviaciones observadas, efectuando el seguimiento de las mismas.\n\nAdemás, se deberá delegar en el Comités Paritarios de Higiene y Seguridad (cuando corresponda), el monitoreo del cumplimiento de las medidas establecidas en el plan de acción para la gestión preventiva del COVID-19.","• Designación de integrantes del equipo de trabajo en el plan de acción.\n• Descripción de las funciones específicas de los integrantes.\n• Registro de reuniones semanales.",null,null,"https://coronavirus.achs.cl/docs/default-source/default-document-library/achs_plan_de_respuesta_control_y_prevencion.docx?sfvrsn=f918cbe1_2"," "," ",{"$f":"+VLOOKUP(B17,EVALUACION!$B$12:$F$1000,5,FALSE)","v":0}," "]
[null,"1.3","Medida obligatoria\nPASO A PASO LABORAL","Se debe ASIGNAR un RESPONSABLE de asegurar el stock de los ELEMENTOS BÁSICOS DE HIGIENE y los EPP (elementos de protección personal) requeridos para el correcto funcionamiento del centro de trabajo.\nLos elementos básicos de higiene:\n• Jabón, alcohol o alcohol gel.\n• Toalla de papel para el secado de manos. \n• Contenedores de basura con tapa.\nLos elementos de protección personal:\n• Dependen de la exposición de los trabajadores del centro. Su entrega debe quedar registrada, indicando \"No compartir los elementos de protección personal, estos son de uso exclusivo para cada trabajador que lo requiere\". \n","• Registro que indique la asignación de la persona responsable en el plan de respuesta.",null,null," "," "," ",{"$f":"+VLOOKUP(B18,EVALUACION!$B$12:$F$1000,5,FALSE)","v":0}," "]
[null,"CERO",null,null,null,null,null,null,null,null,{"$f":"+VLOOKUP(B19,EVALUACION!$B$12:$F$1000,5,FALSE)","v":0}," "]
[null,"2.- MEDIDAS PREVENTIVAS APLICABLES AL CENTRO",null,null,null,null,null,null,null,null,{"$f":"+VLOOKUP(B20,EVALUACION!$B$12:$F$1000,5,FALSE)","v":0}," "]
[null,"CERO",null,null,null,null,null,null,null,null,{"$f":"+VLOOKUP(B21,EVALUACION!$B$12:$F$1000,5,FALSE)","v":0}," "]
[null,2,"Medida obligatoria\nPASO A PASO LABORAL","Se debe HABILITAR LAVAMANOS CON AGUA POTABLE, jabón y elementos desechables para el secado de manos (ej.: toallas de papel), sobre todo en los sectores donde exista contacto con superficies de uso común: pasamanos, manillas de puertas, dispensadores de agua, fotocopiadoras, libro o reloj de control asistencia, etc.\n\nAdemás, se debe elaborar un INSTRUCTIVO DE LAVADO DE MANOS, el cual debe ser informado a todos los trabajadores (utilizando los canales disponibles), además de ser publicado en lugares visibles de todas las áreas de trabajo. El contenido de este instructivo debe responder como mínimo las siguientes preguntas:\n• ¿Cada cuánto se debe realizar?\n• ¿Cómo se debe realizar?\n• ¿Dónde se debe realizar?\n\nNota: Para el caso de trabajadores extranjeros se debe considerar la disponibilidad de este instructivo en el/los idiomas correspondientes.","• Instructivo de lavado de manos\n• Registro con la difusión realizada a los trabajadores, a través de los medios de comunicación utilizados.",null,null,"https://coronavirus.achs.cl/docs/default-source/default-document-library/achs_lavado_manos.pdf?sfvrsn=7e98272c_0","https://coronavirus.achs.cl/docs/default-source/default-document-library/achs_-recomendaciones-para-evitar-dermatitis-debido-al-lavado-de-manos-para-prevenir-contagio-por-covid19-v04_01.pdf?sfvrsn=78a1d260_0","https://coronavirus.achs.cl/videos/default-source/default-video-library/conoce_la_tecnica_de_higiene_de_manos_con_agua_y_jabon_sigue_las_recomendaciones_de_la_achs26cc9a0a414e4ad787c28124f4881643.mp4?sfvrsn=e682d09e_0",{"$f":"+VLOOKUP(B22,EVALUACION!$B$12:$F$1000,5,FALSE)","v":0}," "]
[null,3,"Medida obligatoria\nPASO A PASO LABORAL","Se debe disponer de SOLUCIÓN DE ALCOHOL GEL (al 70% como mínimo), en todos aquellos lugares donde no se puede habilitar lavamanos con agua potable, como en el transporte privado de trabajadores(as) provisto por la empresa.","• Registro fotográfico de los puntos de ubicación de los dispensadores.",null,null," "," "," ",{"$f":"+VLOOKUP(B23,EVALUACION!$B$12:$F$1000,5,FALSE)","v":0}," "]
[null,4,"Medida obligatoria\nPASO A PASO LABORAL","Se debe disponer de medios para el lavado de manos o en su defecto dispensadores de solución de alcohol al 70%, en TODAS LAS ÁREAS COMUNES (de uso compartido). \n\nConsidere a lo menos la obligatoriedad de higiene de manos, utilizando señalización, en los siguientes puntos: \n•\tIngreso al centro de trabajo (considerando los trabajadores y personas externas)\n•\tAcceso al casino o comedor\n•\tAcceso a las salas de reuniones\n•\tAcceso a bodega\n•\tOtros acceso donde se utilicen áreas comunes","• Registro gráfico de la existencia de estos medios.",null,null,"https://coronavirus.achs.cl/docs/default-source/default-document-library/achs_uso_de_alcohol_gel_para_desinfeccion_de_manos.pdf?sfvrsn=d7be0546_0"," "," ",{"$f":"+VLOOKUP(B24,EVALUACION!$B$12:$F$1000,5,FALSE)","v":0}," "]
[null,5,"Medida obligatoria\nPASO A PASO LABORAL","Las instalaciones del establecimiento se deben mantener VENTILADAS, propiciando un recambio de aire periódico. Considere a lo menos:\n• Ventilar las instalaciones al comienzo de las labores diarias.\n• Ventilar cuando se utilizan productos químicos en la limpieza y desinfección.\n• Ventilar las instalaciones por medio de la apertura de las puertas de acceso, siempre y cuando no sean parte de las vías de evacuación existentes en el recinto, y no disponga de otros medios de ventilación.\n\nAdemás, en aquellas instalaciones que poseen ventilación mecánica, se debe verificar el correcto funcionamiento de los sistemas de inyección y/o extracción de aire, evitando la recirculación del mismo. \n\nSegún la Res. Exe. N° 43, del 15 enero 2021, se entiende por Ventilación adecuada y permanente: \ni. Natural. Aquella que consiste en, al menos, una ventana o puerta que permita la entrada de aire y luz del exterior, de un tamaño mínimo del 4% de toda el área utilizada por los usuarios, debiendo permanecer abiertas y libres de obstrucciones durante todo el funcionamiento de dicho lugar.\nii. Artificial. Aquella que consiste en sistemas de extracción de aire que cumplan con el estándar Ashrae 62.1-2019, siempre que estos sistemas estén en funcionamiento permanente.","• Registros de ventilación diaria de las instalaciones antes de la apertura a público.\n• Registro de verificación del sistema de ventilación del lugar de trabajo, cuando corresponda.\n• Registro de otros medidas adoptadas.",null,null," "," "," ",{"$f":"+VLOOKUP(B25,EVALUACION!$B$12:$F$1000,5,FALSE)","v":0}," "]
[null,6,"Medida obligatoria\nPASO A PASO LABORAL","Se debe disponer y entregar MASCARILLAS a todos los trabajadores de la organización, indicando su obligatoriedad de uso en el contexto de la pandemia, considerando que \"Se entenderá por mascarilla cualquier material que cubra la nariz y boca para evitar la propagación del virus, ya sea de fabricación artesanal o industrial.\"\n\nExcepciones al uso de mascarillas son:\n- Trabajadores(as) que se encuentren solos en un espacio cerrado o con un máximo de dos personas, siempre que entre ellos exista una separación física que impida el contacto estrecho. \n- Trabajadores(as) que estén comiendo en lugares especialmente habilitados para ello. \n- Trabajadores que utilicen el rostro o la voz como medio de expresión, tales como filmaciones, grabaciones, presentaciones escénicas o musicales, entre otras, por un máximo de dos horas y solo respecto de un máximo de 10 trabajadores que desarrollen dichas actividades, en un mismo lugar, sea abierto o cerrado.","• Registro de entrega de mascarilla a los trabajadores.",null,null," "," "," ",{"$f":"+VLOOKUP(B26,EVALUACION!$B$12:$F$1000,5,FALSE)","v":0}," "]
[null,7,"Medida obligatoria\nPASO A PASO LABORAL","Se debe informar en el/los ingreso(s) de los clientes, usuarios, trabajadores y externos, utilizando medios gráficos (infografías, carteles, afiches o cualquier otro medio informativo) sobre:\n\nA- Las MEDIDAS DE AUTOCUIDADO al permanecer al interior de las instalaciones de la empresa, en el transporte privado de trabajadores (en caso de que este sea provisto por la empresa), en los ascensores o funiculares y los demás espacios cerrados.\n\nB.- La OBLIGACIÓN DE USAR MASCARILLA bajo las siguientes condiciones o lugares: \n• Al movilizarse en el transporte público o el transporte privado sujeto a pago, incluyendo a quienes operen o trabajen en estos.\n• Al utilizar ascensores o funiculares, independiente del carácter público o privado de éstos y de la cantidad de personas que los estén utilizando, incluyendo a quienes operen o trabajen en estos.\n• Al permanecer en espacios cerrados, independiente de la naturaleza del espacio y de la actividad que ahí se realice.\n• En los espacios comunes de condominios.\n• Al transitar en la vía pública de zonas urbanas o pobladas, así como en espacios públicos o comunitarios.\n• Uso obligatorio de mascarillas en todos los lugares de trabajo, sea en espacios abiertos o cerrados.\n\nSin perjuicio de lo dispuesto precedentemente, se exceptúan del uso de mascarillas:\n- Personas comiendo en lugares especialmente habilitados para esto.\n- Integrantes que habiten en la misma residencia o domicilio.\n- Personas que se encuentren solas en un espacio cerrado.\n- Cuando hay solo dos personas en un espacio cerrado, siempre que entre ellas exista una\nseparación física que impida el contacto estrecho.\n- Personas que se encuentre ejecutando alguna actividad deportiva autorizada.\n- Personas que desarrollen actividades donde se utilice el rostro o la voz como medio de expresión, tales como filmaciones, grabaciones, presentaciones escénicas o musicales, entre otras, por un período de 2 horas con un máximo de 10 personas.\n- Personas que se encuentren en espacios abiertos de playas y piscinas, que no estén en\nmovimiento y que estén a 2 o más metros de distancia de otra persona.\n- Personas que estén haciendo uso de las zonas de baño como el mar o piscinas, mientras se encuentren en su interior.","• Registro gráfico de señalización instalada.",null,null," "," "," ",{"$f":"+VLOOKUP(B27,EVALUACION!$B$12:$F$1000,5,FALSE)","v":0}," "]
[null,8,"Medida obligatoria\nPASO A PASO LABORAL","La empresa deberá considerar que en aquellos lugares donde, por la naturaleza de los servicios que se prestan, se formen filas o aglomeraciones, se deberá DEMARCAR LA DISTANCIA de un metro lineal, que debe existir entre cada persona. \nEsta obligación deberá cumplirse ya sea que la fila o aglomeración se forme dentro o fuera del centro de trabajo, utilizando demarcación de un material resistente a la limpieza y químicos de desinfección. En el caso que la demarcación deba hacerse en la vía pública, esta deberá ser fácilmente removible.\n\nSe debe considerar a los menos, la demarcación en los siguientes puntos:\n• Ingreso/salida del lugar de trabajo \n• Espera para el uso de ascensores\n• Ingreso a las líneas de proceso\n• Ingreso del público o usuarios al establecimiento\n• Ingreso a casinos o comedores\n• Ingreso a guardarropías o vestidores \n• Área donde se contacta el trabajador y el encargado de entregar los alimentos\n• Área para el pago de productos (cajas de pago) o atención / servicio al cliente\n• Cualquier otro donde se puedan aglomerar las personas","• Registro gráfico de la demarcaciones en pisos de los puntos de aglomeraciones.",null,null," "," "," ",{"$f":"+VLOOKUP(B28,EVALUACION!$B$12:$F$1000,5,FALSE)","v":0}," "]
[null,9,"Medida obligatoria\nPASO A PASO LABORAL","Se debe informar claramente por medio de señalización visible y permanente (infografías, carteles, afiches o cualquier otro medio informativo) la obligación de mantener el DISTANCIAMIENTO SOCIAL entre trabajadores(as) propios, contratistas, proveedores y clientes que se encuentran en las instalaciones.\n\nAdemás, se debe asegurar que exista señalización visible y permanente en lugares como: buses utilizados para el traslado de colaboradores, dormitorios de campamentos, casinos o comedores, líneas de procesos, entre otros.\n\nSe exceptúan de lo anterior: \na. Las personas que se encuentren en una misma residencia o domicilio.\nb. Las personas que se encuentren en un medio de transporte.\nc. Las personas que, por la naturaleza de las actividades laborales que realizan, no puedan cumplir con esta medida durante el ejercicio de sus labores.\nd. Las personas que realicen actividades que, por su naturaleza, no se puedan realizar con la distancia señalada.\ne. Las personas entre las cuales exista una separación física que impida el contacto directo entre ellas.\nf. Las personas que se encuentren en establecimientos de salud, las que seregirán por las normativas particulares de éstos.","• Registro gráfico de señalización instalada.",null,null," "," "," ",{"$f":"+VLOOKUP(B29,EVALUACION!$B$12:$F$1000,5,FALSE)","v":0}," "]
[null,10,"Medida obligatoria\nPASO A PASO LABORAL","Se debe instalar BARRERAS FÍSICAS para trabajadores que tienen gran interacción con demás trabajadores, contratistas, proveedores, entre otros, y donde no sea posible mantener el distanciamiento minimo de seguridad. Estas barreras divisorias deben ser de material acrílico, policarbonato, vidrio u otro similar que propicie la limpieza y desinfección periódica.","• Identificación de puestos de trabajo y registro gráfico de barreras físicas instaladas.",null,null," "," "," ",{"$f":"+VLOOKUP(B30,EVALUACION!$B$12:$F$1000,5,FALSE)","v":0}," "]
[null,11,"Medida obligatoria\nPASO A PASO LABORAL","En todos los recintos cerrados que atiendan público se debe:\n\nDeterminar la CAPACIDAD MÁXIMA de personas que pueda permanecer simultáneamente en el interior del establecimiento, cumpliendo con el distanciamiento social de un metro entre los usuarios y los trabajadores, previniendo la generación de aglomeraciones.\n\nSeñalizar el AFORO MÁXIMO PERMITIDO mediante medios gráficos instalados en el ingreso (carteles, avisos, paneles, otros). Una vez alcanzada la capacidad máxima para público, no se permitirá el ingreso de nuevos clientes o usuarios. Para cumplir con este objetivo se debe disponer de personal que controle el acceso y salida de los clientes del establecimiento. \n\nAdicionalmente, se debe señalizar mediante medios gráficos instalados en el ingreso la obligación de respetar el distanciamiento de 1 metro entre personas y las obligaciones y recomendaciones generales de autocuidado.","• Registros gráfico de infografías (carteles, avisos, paneles, otros), informando el número máximo de clientes al interior del local.\n• Registro del conteo de clientes al interior del establecimiento en un momento determinado.",null,null,"https://coronavirus.achs.cl/docs/default-source/default-document-library/medidas_de_prevencion_para_actividades_comerciales_(covid-19).pdf?sfvrsn=7acf1b4f_0"," "," ",{"$f":"+VLOOKUP(B31,EVALUACION!$B$12:$F$1000,5,FALSE)","v":0}," "]
[null,12,"Medida obligatoria\nPASO A PASO LABORAL","Se deben demarcar o señalizar los lugares de acceso de los clientes o usuarios, disponiendo ALCOHOL GEL, solicitando su aplicación para higienizar las manos, como requisito de ingreso. La solución de alcohol debe ser de al menos un 70%. \n\nSe debe informar a los clientes o usuarios sobre esta obligación, utilizando infografías (carteles, afiches o cualquier otro medio informativo).","• Registro gráfico de dispensadores de alcohol o alcohol gel en los accesos a público.\n• Registro gráfico de personal aplicando el sanitizante de manos al ingreso del local.",null,null," "," "," ",{"$f":"+VLOOKUP(B32,EVALUACION!$B$12:$F$1000,5,FALSE)","v":0}," "]
[null,13,"Medida obligatoria\nPASO A PASO LABORAL","Considerando los ajustes que se efectúan a las instalaciones de la empresa, en el contexto del COVID-19, se debe revisar de forma periódica las rutas de entrada y salida o VÍAS DE ESCAPE o evacuación, verificando que se encuentran bien señalizadas y libres de obstáculos u obstrucciones.","• Registro de verificación periódica de las vías de evacuación y salidas de emergencias.",null,null," "," "," ",{"$f":"+VLOOKUP(B33,EVALUACION!$B$12:$F$1000,5,FALSE)","v":0}," "]
[null,14,"Medida obligatoria\nPASO A PASO LABORAL","En el contexto de la actual pandemia, el PLAN DE EMERGENCIA Y EVACUACIÓN del centro de trabajo debe ser actualizado, considerando los cambios efectuados a las instalaciones a partir de la nueva distribución de los puestos de trabajo, el aforo reducido y las eventuales nuevas vías de acceso, circulación y zonas de seguridad, considerando las medidas preventivas que se han dictado por la autoridad para disminuir el riesgo de propagación de COVID-19 entre los trabajadores.\n\nUna vez actualizado el plan, se debe comunicar a todos los colaboradores, dejando registro por escrito de esta actividad.","• Plan de emergencia y evacuación actualizado por temas COVID-19.\n• Registro de difusión de la actualización del plan de respuesta.",null,null," "," "," ",{"$f":"+VLOOKUP(B34,EVALUACION!$B$12:$F$1000,5,FALSE)","v":0}," "]
[null,15,"Medida obligatoria\nPASO A PASO LABORAL","La empresa debe seguir las instrucciones para la limpieza y desinfección del lugar de trabajo y espacios comunes conforme al PROTOCOLO MODO COVID DE VIDA, el cual entrega las indicaciones mínimas necesarias para el cumplimiento de la resolución sanitaria que mandata la limpieza y desinfección de todos los espacios, contenidos en el Ord. B1 Nº 2770 del 15 de Julio de 2020. A considerar:\n\n• Utilizar un desinfectante cuente con registro del Instituto de Salud Pública (ISP) quien asegura la eficacia de su producto. Registro del ISP, http://registrosanitario.ispch.gob.cl/. \n• Realizar la desinfección según las instrucciones de la etiqueta, utilizando rociadores, toallas, paños de fibra o microfibra o trapeadores, entre otros artículos. Privilegie el uso de utensilios desechables. En el caso de utilizar utensilios reutilizables en estas tareas, estos deben desinfectarse. \n• Leer las instrucciones del modo de uso y precauciones a tomar establecidas en la etiqueta del producto, antes de comenzar con la desinfección. Verificando la dilución que debe realizar. \n• Guardar el desinfectante en lugar seguro, manteniendo las tapas de estos productos sellados firmemente y almacenados fuera del alcance de los niños.\n• Se debe priorizar la limpieza y desinfección de todas aquellas superficies que son manipuladas por los usuarios con alta frecuencia, como lo es: manillas, pasamanos, taza del inodoro, llaves de agua, superficies de las mesas, escritorios, superficies de apoyo, entre otras.","• Incorporación en el procedimiento de trabajo seguro para la limpieza y desinfección de las instalaciones, específico para COVID-19.",null,null," "," "," ",{"$f":"+VLOOKUP(B35,EVALUACION!$B$12:$F$1000,5,FALSE)","v":0}," "]
[null,16,"Medida obligatoria\nPASO A PASO LABORAL","Se debe elaborar un PROCEDIMIENTO DE TRABAJO SEGURO, basado en el protocolo establecido por el Ministerio de Salud para estos efectos, que considere - al menos - los siguientes puntos:\n• Formas de efectuar estas labores y los controles relacionados\n• Medidas preventivas asociadas a los productos de limpieza y desinfección ocupados\n• Elementos de protección personal requeridos, indicando como deben ser utilizados\n• Limpieza y desinfección de elementos y EPP reutilizables\n• Información de las hojas de seguridad (HDS)\n• Manipulación y disposición de residuos, EPP desechables utilizados y otros elementos que deban eliminar\n\nUna vez elaborado, se debe INFORMAR y CAPACITAR sobre el procedimiento de trabajo seguro a todos los trabajadores y trabajadoras que realizan las tareas de limpieza y desinfección de las instalaciones.\n\nSe debe mantener un registro actualizado (medio de verificación) de los trabajadores que se han capacitado en este tema, el que deberá estar disponible en todo momento para ser presentado a la autoridad de salud cuando ésta lo requiera.\n\nEste PTS deberá estar disponible en todo momento para ser presentado a la autoridad de salud cuando ésta lo requiera.","• Registro del procedimiento de trabajo seguro para la limpieza y desinfección de las instalaciones, específico para COVID-19.\n• Registro de colaboradores capacitados (considerando como mínimo, nombre, RUT, cargo y firma del trabajador).",null,null,"https://coronavirus.achs.cl/docs/default-source/default-document-library/achs_procedimiento_covid-19_limpieza_y_desinfeccion.docx?sfvrsn=77a19fd8_0","https://coronavirus.achs.cl/docs/default-source/default-document-library/ficha_limpieza_y_desinfeccion_de_ambientes3cbeb152f28a4221a2aff4fd357a31f0.pdf?sfvrsn=3a34f383_0","https://coronavirus.achs.cl/videos/default-source/default-video-library/recomendaciones_personal_limpieza.mp4?sfvrsn=b6409396_0",{"$f":"+VLOOKUP(B36,EVALUACION!$B$12:$F$1000,5,FALSE)","v":0}," "]
[null,17,"Medida obligatoria\nPASO A PASO LABORAL","Los lugares de trabajo deberán ser limpiados y desinfectados, al menos una vez al día, todos los espacios, superficies y elementos expuestos al flujo de personas, ya sea de trabajadores o clientes. \n\nSe debe disponer de un PROGRAMA, para asegurar la limpieza y desinfección de las instalaciones del centro de trabajo, el cual considere:\n• Responsable(s) de efectuar la verificación del cumplimiento del programa.\n• Frecuencia en que se debe aplicar la limpieza y desinfección, considerando:\n(a) todos los espacios, superficies y elementos expuestos al flujo de personas, ya sea de trabajadores(as) o clientes, \n(b) las herramientas y elementos de trabajo (y cada vez que sean intercambiadas)\n(c) los espacios cerrados de uso comunitario, como comedores, baños, ascensores, entre otros.\n\nEn estos lugares se debe enfocar la limpieza y desinfección de todas aquellas superficies que son manipuladas por los usuarios con alta frecuencia, como lo es: manillas, pasamanos, taza del inodoro, llaves de agua, superficies de las mesas, escritorios, superficies de apoyo, entre otras. \n\nSe debe considerar además, que se deberá desinfectar y limpiar todos los bienes y/o mercaderías que ingresen a la empresa por terceros externos a la organización.\n\nAdemás, este medio debe considerar el cómo responder en aquellas áreas donde se tenga certeza que ha permanecido un caso sospechoso o confirmado de COVID-19, evitando su utilización hasta su completa limpieza y desinfección.\n\nLas herramientas y elementos de trabajo deberán ser limpiadas y desinfectadas al menos una vez al día, y cada vez que sean intercambiadas; así tambien los espacios cerrados de uso comunitario, como comedores, baños, ascensores, entre otros, deberán ser limpiados y desinfectados al menos una vez al día. ","• Programa de limpieza y desinfección por COVID-19 del centro de trabajo.",null,null," "," "," ",{"$f":"+VLOOKUP(B37,EVALUACION!$B$12:$F$1000,5,FALSE)","v":0}," "]
[null,18,"Medida obligatoria\nPASO A PASO LABORAL","Se deben ENTREGAR periódicamente los ELEMENTOS PROTECCIÓN PERSONAL (EPP) a todos los trabajadores que realicen labores de limpieza y desinfección en el centro, considerando a lo menos:\n\n• Guantes desechables o reutilizables, que sean resistentes impermeables, manga larga (no quirúrgicos); \n• Mascarilla para evitar propagación del virus COVID-19.\n• Pechera desechable o reutilizable.\n•  Otros, conforme a los peligros presentes y los indicado en las Hojas de Seguridad (HDS) de los productos utilizados. ","• Registro de nómina o matriz de EPP asignados por cargo, función, peligro o de acuerdo a como la empresa lo tenga definido.\n• Registros de entrega de EPP a los trabajadores.\n• Registros de observaciones de seguridad (uso de los EPP).",null,null,"https://coronavirus.achs.cl/docs/default-source/default-document-library/achs_ficha_prevencion_de_lesiones.pdf?sfvrsn=c9d4fe1c_0"," "," ",{"$f":"+VLOOKUP(B38,EVALUACION!$B$12:$F$1000,5,FALSE)","v":0}," "]
[null,19,"Medida obligatoria\nPASO A PASO LABORAL","Se debe asegurar la DISPONIBILIDAD de productos de limpieza (detergentes) y desinfectantes de uso ambiental, considerando los siguientes puntos:\n• Mantener una cantidad suficiente en relación al tamaño de las instalaciones que se deben limpiar y desinfectar, que cuenten con registro del Instituto de Salud Pública (ISP).\n• Privilegiar el uso de hipoclorito de sodio al 0.1% por sobre los otros productos químicos desinfectantes disponibles (hipoclorito de sodio, amonios cuaternarios, peróxido de hidrógeno o fenoles, otros.).\n• Para las superficies que podrían ser dañadas por el hipoclorito de sodio, utilizar una concentración de etanol del 70%.\n• Solicitar y mantener las Hojas de Seguridad (HDS) de los productos adquiridos.\n• Solicitar y mantener las fichas técnicas del fabricante del producto donde se indica la preparación y aplicación.\n\nEn el caso de utilizar otro tipo de desinfectante, se recomienda observar lo señalado en el Anexo N° 1 de la Circular C37 N° 10 del 05 de diciembre de 2018 del Ministerio de Salud. En este caso, se deben seguir las recomendaciones del fabricante del desinfectante para su preparación y aplicación.","• Registro del inventario de productos utilizados existencia.\n• Registros de la Hojas de Seguridad (HDS).\n",null,null,"https://coronavirus.achs.cl/docs/default-source/default-document-library/ficha_uso_de_desinfectantes_en_lugares_de_trabajo.pdf?sfvrsn=67b8f3f4_0"," "," ",{"$f":"+VLOOKUP(B39,EVALUACION!$B$12:$F$1000,5,FALSE)","v":0}," "]
[null,20,"Medida obligatoria\nPASO A PASO LABORAL","Se debe disponer de BASUREROS CON TAPA, o contenedores que cumplan esta función, de preferencia sin contacto manual, para para la disposición de los residuos (mascarillas desechables, papel de secado de mano, guantes desechables, entre otros) ubicados en las áreas y lugares de uso común del centro de trabajo.","• Registro gráfico de la existencia de estos medios.",null,null," "," "," ",{"$f":"+VLOOKUP(B40,EVALUACION!$B$12:$F$1000,5,FALSE)","v":0}," "]
[null,21,"Medida obligatoria\nPASO A PASO LABORAL","La organización debe adquirir desinfectantes en empresas de venta especializada, creadas específicamente para ese fin, que cuentan con RESOLUCIÓN SANITARIA DE LA SEREMI DE SALUD.\nDe la misma manera, al contratar servicios de aplicación de desinfectantes, debe verificar que estas cuentan con resolución sanitaria de la Seremi de Salud.","• Registro resolución sanitaria de la Seremi Salud.",null,null," "," "," ",{"$f":"+VLOOKUP(B41,EVALUACION!$B$12:$F$1000,5,FALSE)","v":0}," "]
[null,22,"Medida obligatoria\nPASO A PASO LABORAL","La organización deberá contar con un plan de acción (instructivo, procedimiento)  frente a situaciones relacionadas con casos sospechosos, contacto estrecho o casos confirmados de COVID-19 en lel lugar de trabajo acorde a las disposiciones sanitarias legales vigentes.","• Procedimientos de la organización para responder a casos sospechosos, contacto estrecho o casos confirmados de COVID-19.",null,null," "," "," ",{"$f":"+VLOOKUP(B42,EVALUACION!$B$12:$F$1000,5,FALSE)","v":0}," "]
[null,"23.1","Medida obligatoria\nPASO A PASO LABORAL","Se debe disponer del mayor número de CANALES O MEDIOS DE COMUNICACIÓN al cual tengan acceso todos los integrantes del centro de trabajo, difundiendo permanentemente y de forma clara las medidas de prevención y de control, generadas por el comité o la autoridad competente. Los canales o medios de comunicación que se deben considerar son:\n• Correo electrónico\n• Mensajería de texto\n• Redes sociales de la empresa (LinkedIn, Twitter, WhatsApp, Instagram, etc.)\n• Intranet\n• Página web\n• Otras\n\n-Se deberá enviar información sobre el COVID-19 y medidas preventivas al correo institucional de cada trabajador, o bien, entregarles un ejemplar impreso de los protocolos internos y del programa de gestión preventiva en la empresa.\n- Se sugiere fijar información, simple y clara, en al menos dos sitios visibles del lugar de trabajo, acerca de las medidas preventivas para evitar el contagio del COVID-19.\n","• Documento que evidencie cuáles son los canales o medios de comunicación.\n• Documento que evidencie la(s) actividad(es) de difusión permanente realizada.",null,null,"https://coronavirus.achs.cl/docs/default-source/default-document-library/achs_coronavirus_ws25faa309c3ad4c5185e6055b19b83cd9.jpg?sfvrsn=e357ef81_0","https://coronavirus.achs.cl/docs/default-source/default-document-library/achs_recomendaciones-transporte.pdf?sfvrsn=96ae9b8e_0"," ",{"$f":"+VLOOKUP(B43,EVALUACION!$B$12:$F$1000,5,FALSE)","v":0}," "]
[null,"23.2","Medida obligatoria\nPASO A PASO LABORAL","Se debe CAPACITAR a todos los trabajadores del centro, explicando en qué consiste la enfermedad COVID-19, sus formas de transmisión, síntomas, medidas de prevención y medidas de control. También se debe capacitar a los trabajadores, respecto de los protocolos existentes para prevenir o reducir la probabilidad de contagio. Además del uso de elementos de protección personal en los casos que corresponda.\nPara esta actividad se puede utilizar los soporte generados por la ACHS (fichas técnicas, cápsulas informativas y videos), disponibles en la página web.\n","• Registro de colaboradores capacitados (considerando como mínimo, nombre, RUT, cargo y firma del trabajador).",null,null,"https://coronavirus.achs.cl/docs/default-source/default-document-library/achs_instructivo_covid-19_obligacion_de_informar_(odi).docx?sfvrsn=ae61665_0","https://coronavirus.achs.cl/docs/default-source/default-document-library/achs_medidas_generales_para_prevenir_el_covid-19.pdf?sfvrsn=e0df381e_0","https://coronavirus.achs.cl/docs/default-source/default-document-library/achs-antecedentes-generales-medidas-preventivas.pdf?sfvrsn=1a77bd95_0",{"$f":"+VLOOKUP(B44,EVALUACION!$B$12:$F$1000,5,FALSE)","v":0}," "]
[null,"23.3","Medida obligatoria\nPASO A PASO LABORAL","Se debe mantener un REGISTRO ACTUALIZADO de los trabajadores que se han capacitado en los temas relacionados con el COVID-19, considerando los siguientes datos mínimos:\n• Nombre completo\n• N° cedula de identidad\n• Cargo u ocupación\n• Firma\n","• Registro de colaboradores capacitados (considerando como mínimo, nombre, RUT, cargo y firma del trabajador).",null,null," "," "," ",{"$f":"+VLOOKUP(B45,EVALUACION!$B$12:$F$1000,5,FALSE)","v":0}," "]
[null,24,"Medida obligatoria\nPASO A PASO LABORAL","La empresa deberá EVALUAR LOS RIESGOS de COVID-19 y considerar especialmente a los trabajadores definidos como \"personas de alto riesgo de presentar cuadro grave de infección.\n\nEsta evaluación debe ser efectuada por el Departamento de Prevención de Riesgos o con la asistencia de su organismo administrador del seguro de la ley N° 16.744, considerando en esta evaluación los riesgos derivados de la interacción entre trabajadores(as) propios, contratistas y clientes.","• Registro vigente con la información de trabajadores de alto riesgo.\n• Matriz IPER actualizada.\n• Plan de medidas de prevención específicas para trabajadores de alto riesgo.",null,null," "," "," ",{"$f":"+VLOOKUP(B46,EVALUACION!$B$12:$F$1000,5,FALSE)","v":0}," "]
[null,25,"Medida obligatoria\nPASO A PASO LABORAL","En el caso de contar con Comité Paritario de Higiene y Seguridad y/o Departamento de Prevención de Riesgos, la organización debe verificar que éste cumple con las funciones de su competencia respecto a medidas preventivas relacionadas al contagio por COVID-19 y vigila el cumplimiento de las medidas de prevención, higiene y seguridad mediante labores permanentes.","• Plan de trabajo por COVID-19 del CPHS y/o del Dpto. de Prevención.",null,null," "," "," ",{"$f":"+VLOOKUP(B47,EVALUACION!$B$12:$F$1000,5,FALSE)","v":0}," "]
[null,26,"Medida obligatoria\nPASO A PASO LABORAL","La organización deberá actualizar, según corresponda, el REGLAMENTO INTERNO de Seguridad e Higiene o Reglamento Interno de Orden, Seguridad e Higiene, incluyendo todas las medidas preventivas y de control asociadas al contexto COVID-19 exigidas por la normativa vigente.","• Reglamento interno actualizado por COVID-19 y comunicado a los trabajadores.",null,null," "," "," ",{"$f":"+VLOOKUP(B48,EVALUACION!$B$12:$F$1000,5,FALSE)","v":0}," "]
[null,27,"Medida obligatoria\nPASO A PASO LABORAL","Se debe efectuar la coordinación respecto del riesgo de COVID-19 con todas las EMPRESAS CONTRATISTAS Y SUBCONTRATISTAS, con relación a:\n• Información de los riesgos de COVID-19 que se debe entregar a los trabajadores.\n• Indicación de los insumos mínimos de higiene que se deben mantener.\n• Indicación de las medidas administrativas (horarios de colación diferida, horarios para el uso de duchas diferidas, horarios de ingreso, entre otros).\n\nAdemás, la empresa debe vigilar el cumplimiento de las empresas contratistas y subcontratistas respecto a estas normativas de SST en materia de COVID-19.","• Registro de información comunicada a las empresas contratistas y subcontratistas respecto a la gestión de SST que deben efectuar para controlar la exposición a COVID-19.",null,null," "," "," ",{"$f":"+VLOOKUP(B49,EVALUACION!$B$12:$F$1000,5,FALSE)","v":0}," "]
[null,28,"Medida obligatoria\nPASO A PASO LABORAL","Además, la empresa debe vigilar el cumplimiento de las EMPRESAS CONTRATISTAS Y SUBCONTRATISTAS respecto a estas normativas de SST en materia de COVID-19.\n\nLa empresa deberá incorporar medidas preventivas, procedimientos y protocolos en el reglamento especial para empresas contratistas y subcontratistas como parte del sistema de Gestión de Seguridad y Salud en el Trabajo. Respecto de las empresas no obligadas a implementar este sistema, coordinar protocolos de prevención y vigilar el cumplimiento de las medidas de higiene y seguridad del establecimiento, tanto en el ingreso al establecimiento como en el desarrollo de los servicios.","• Registro de información comunicada a las empresas contratistas y subcontratistas respecto a la gestión de SST que deben efectuar para controlar la exposición a COVID-19.",null,null," "," "," ",{"$f":"+VLOOKUP(B50,EVALUACION!$B$12:$F$1000,5,FALSE)","v":0}," "]
[null,29,"Medida obligatoria\nPASO A PASO LABORAL","La organización debe considerar las medidas preventivas, procedimientos y protocolos en el REGLAMENTO ESPECIAL PARA EMPRESAS CONTRATISTAS Y SUBCONTRATISTAS como parte del Sistema de Gestión de Seguridad y Salud en el Trabajo. En especial, que contenga las medidas para la prevención y control del riesgo de COVID-19, entre ellas: \n(a) los plazos en que éstas se ejecutarán y sus responsables; \n(b) las acciones de información y formación; \n(c) los procedimientos de control de los riesgos; \n(d) planes de emergencia y \n(e) la investigación de la enfermedad profesional por COVID-19.","• Registro de información en el reglamento especial para empresas contratistas y subcontratistas.",null,null," "," "," ",{"$f":"+VLOOKUP(B51,EVALUACION!$B$12:$F$1000,5,FALSE)","v":0}," "]
[null,30,"Medida obligatoria\nPASO A PASO LABORAL","La organización debe velar por mantener los lugares de trabajo en condiciones sanitarias y ambientales adecuadas para proteger la vida y salud de los trabajadores(as) que en ellos se desempeñen, sean éstos directos suyos o de EMPRESAS CONTRATISTAS Y SUBCONTRATISTAS.","• Gestiones efectuadas por la empresa principal respecto a las contratistas y subcontratistas.",null,null," "," "," ",{"$f":"+VLOOKUP(B52,EVALUACION!$B$12:$F$1000,5,FALSE)","v":0}," "]
[null,"CERO",null,null,null,null,null,null,null,null,{"$f":"+VLOOKUP(B53,EVALUACION!$B$12:$F$1000,5,FALSE)","v":0}," "]
[null,"3.- MEJORES PRACTICAS PARA UNA EFECTIVA PREVENCION EN LOS CENTROS DE TRABAJO",null,null,null,null,null,null,null,null,{"$f":"+VLOOKUP(B54,EVALUACION!$B$12:$F$1000,5,FALSE)","v":0}," "]
[null,"CERO",null,null,null,null,null,null,null,null,{"$f":"+VLOOKUP(B55,EVALUACION!$B$12:$F$1000,5,FALSE)","v":0}," "]
[null,"1_","Recomendación\nPASO A PASO LABORAL","La empresa deberá fomentar la PARTICIPACIÓN en la toma de decisiones de trabajadores, organizaciones sindicales, comités paritarios de higiene y seguridad, expertos en prevención y departamentos de prevención de riesgos, así como de los organismos administradores de la Ley 16.744 sobre accidentes del trabajo y enfermedades profesionales. En este sentido, el rol de los comités paritarios de higiene y seguridad, atendido su carácter bipartito, resulta vital para el levantamiento de información, así como para la toma de decisiones al interior de las empresas en materias asociadas al contexto COVID-19.","• Registro de minutas de reuniones y acuerdos.\n• Registro de actividades del plan con participación conjunta.\n• Registro de actividades de inspección conjunta para verificar la efectividad de las medidas de control.",null,null," "," "," ",{"$f":"+VLOOKUP(B56,EVALUACION!$B$12:$F$1000,5,FALSE)","v":0}," "]
[null,"2_","Recomendación\nPASO A PASO LABORAL","La organización debe solicitar ayuda y asistencia técnica al organismo administrador del seguro de la ley N° 16.744 al que se encuentra afiliado el empleador para la implementación de las medidas preventivas.","• Registro de solicitud de asesoría técnica.",null,null," "," "," ",{"$f":"+VLOOKUP(B57,EVALUACION!$B$12:$F$1000,5,FALSE)","v":0}," "]
[null,"3.1_","Recomendación\nACHS","Se debe implementar medidas de control y resguardar el DISTANCIAMIENTO social al interior del bus de traslado u otros vehículos utilizados para este fin, tomando las medidas necesarias para tales efectos, considerando como mínimo:\n\n• Instalación de barrera física en el puesto del conductor.\n• Obligación de mantener distancia de 1 metro entre los pasajeros y con el conductor.\n• Número máximo de personas.\n• Bloqueos de asientos.\n• Obligación de uso permanente de mascarilla (incluyendo al conductor).\n• Señalización en el piso del vehículo.\n• Uso de ventilación natural.\n• Prohibición de transportar pasajeros (trabajadores) de pie.","• Registro con las medidas de control en el uso de vehículos de la empresa, registradas en el plan de respuesta.",null,null," "," "," ",{"$f":"+VLOOKUP(B58,EVALUACION!$B$12:$F$1000,5,FALSE)","v":0}," "]
[null,"3.2_","Recomendación\nACHS","Se deben implementar acciones de control de acceso a los VEHÍCULOS utilizados para el traslado de trabajadores, mediante la toma de temperatura corporal y el control visual del estado general de salud. Las personas con síntomas no deben ingresar al vehículo, aplicando el procedimiento de casos sospechosos.","• Documento que evidencie el registro diario del control de acceso aplicado a los trabajadores antes de subir a los vehículos de traslados.",null,null," "," "," ",{"$f":"+VLOOKUP(B59,EVALUACION!$B$12:$F$1000,5,FALSE)","v":0}," "]
[null,"3.3_","Recomendación\nACHS","Se debe disponer de ALCOHOL O ALCOHOL GEL con la indicación señalizada que se debe aplicar en manos de forma obligatoria antes de subir y al bajar del bus.","• Registro gráfico del dispensador de alcohol o alcohol gel y señalización de obligatoriedad antes de subir y al bajar del bus.",null,null," "," "," ",{"$f":"+VLOOKUP(B60,EVALUACION!$B$12:$F$1000,5,FALSE)","v":0}," "]
[null,"3.4_","Recomendación\nACHS","Se debe definir e IMPLEMENTAR un apartado específico en el PROCEDIMIENTO de LIMPIEZA Y DESINFECCIÓN en donde se detalle esta acción en los VEHÍCULOS, con la periodicidad de desinfección, elementos de higienización, elementos de protección personal para su aplicación, entre otros, basándose en el protocolo de esta temática del MINSAL.\n","• Procedimiento de trabajo para la limpieza y desinfección de las instalaciones, específico para COVID-19.",null,null," "," "," ",{"$f":"+VLOOKUP(B61,EVALUACION!$B$12:$F$1000,5,FALSE)","v":0}," "]
[null,"4_","Recomendación\nACHS","La empresa debe difundir a los trabajadores, a través de sus diferentes canales de comunicación e información definidos, las medidas preventivas frente al COVID-19 durante el uso del TRASPORTE PÚBLICO y las que deben ser consideradas en el HOGAR.","• Documento que evidencie la(s) actividad(es) de difusión permanente realizada.",null,null," "," "," ",{"$f":"+VLOOKUP(B62,EVALUACION!$B$12:$F$1000,5,FALSE)","v":0}," "]
[null,"5.1_","Recomendación\nACHS","Se debe elaborar un Instructivo para efectuar el CONTROL DE ACCESO para todos los trabajadores y personas externas que necesiten ingresar al centro de trabajo, el cual debe contener como mínimo:\n-El control de  temperatura corporal al ingreso, exigir uso de mascarilla y solicitar declaración voluntaria de sintomatología asociada a COVID-19 y datos de contacto para efectos de trazabilidad. En caso de presentar sintomatología, prohibir ingreso.\n- Señalización de la ruta de ingreso y salida de los trabajadores al centro de trabajo, considerando que existen uno o varios accesos a los espacios de trabajo.","• Procedimiento de control de ingreso del centro de trabajo en el contexto del COVID-19.\n• Registros de control de temperatura y estado de salud.",null,null," "," "," ",{"$f":"+VLOOKUP(B63,EVALUACION!$B$12:$F$1000,5,FALSE)","v":0}," "]
[null,"5.2_","Recomendación\nACHS","Se habilita PEDILUVIOS SANITARIOS con desinfectante en el ingreso al lugar de trabajo.","• Registro gráfico de la existencia de estos medios.",null,null," "," "," ",{"$f":"+VLOOKUP(B64,EVALUACION!$B$12:$F$1000,5,FALSE)","v":0}," "]
[null,"6_","Recomendación\nPASO A PASO LABORAL","Se debe efectuar el CONTROL DE ACCESO para todos los trabajadores y personas externas que necesiten ingresar al centro de trabajo, el cual debe contener los datos de contacto para efectos de trazabilidad. En caso de presentar sintomatología, se debe prohibir ingreso.","• Registros de control de estado de salud.",null,null," "," "," ",{"$f":"+VLOOKUP(B65,EVALUACION!$B$12:$F$1000,5,FALSE)","v":0}," "]
[null,"7_","Recomendación\nPASO A PASO LABORAL","Se debe señalizar la ruta de ingreso y salida de los trabajadores al centro de trabajo, considerando lo siguiente:\n• Si cuenta con dos o más accesos, se debe habilitar uno de manera exclusiva para ingreso y otro de manera exclusiva para salida. \n• Si se cuenta con un solo acceso, se debe demarcar el sentido de circulación para ingreso y salida.","• Registro fotográfico.",null,null," "," "," ",{"$f":"+VLOOKUP(B66,EVALUACION!$B$12:$F$1000,5,FALSE)","v":0}," "]
[null,"8_","Recomendación\nPASO A PASO LABORAL","La organización debe tener establecido un instructivo específico para la limpieza y desinfección de todos los bienes y/o mercaderías que ingresen a la empresa.\nLa desinfección se debe efectuar siguiendo los pasos del procedimiento establecidos para tales efectos.","• Instructivo de desinfección de bienes o mercaderías que ingresan a la empresa.",null,null," "," "," ",{"$f":"+VLOOKUP(B67,EVALUACION!$B$12:$F$1000,5,FALSE)","v":0}," "]
[null,"9_","Recomendación\nPASO A PASO LABORAL","La empresa deberá demarcar la capacidad máxima del uso de ascensores, garantizando el debido distanciamiento de al menos 1 metro entre las personas.","• Registro gráfico de la capacidad máxima permitida del ascensor y demarcación en piso para asegurar distanciamiento social.",null,null," "," "," ",{"$f":"+VLOOKUP(B68,EVALUACION!$B$12:$F$1000,5,FALSE)","v":0}," "]
[null,"10_","Recomendación\nPASO A PASO LABORAL","Se debe reforzar a los trabajadores que el UNIFORME o ROPAS DE TRABAJO es de uso exclusivo en las instalaciones del centro, no debiendo utilizarse en el traslados entre este y el lugar habitación.\n\nAdemás, se debe establecer la higienización diaria de estos uniformes/ropa de trabajo y de cualquier otro textil que se utilice (por ejemplo, ropa de cama, cortinas, etc.) en el mismo centro, lavándose con un ciclo de agua caliente (90 ° C) y agregar detergente para la ropa.\n","• Registro de higienización de uniforme y ropas de trabajo.",null,null," "," "," ",{"$f":"+VLOOKUP(B69,EVALUACION!$B$12:$F$1000,5,FALSE)","v":0}," "]
[null,"11_","Recomendación\nPASO A PASO LABORAL","Se debe disponer de BASUREROS CON TAPA y bolsa en su interior, de preferencia sin contacto manual, para la eliminación de mascarillas desechables, papel de secado de mano, guantes, entre otros.","• Registro gráfico de la existencia de estos medios.",null,null," "," "," ",{"$f":"+VLOOKUP(B70,EVALUACION!$B$12:$F$1000,5,FALSE)","v":0}," "]
[null,"12_","Recomendación\nPASO A PASO LABORAL","Se debe recomendar a los clientes o usuarios EVITAR el uso de dinero en efectivo, privilegiando los métodos de pago electrónico. Para esto:\n• Instruya al personal de cajas y dependientes, en orientar la decisión de pago del cliente con medios electrónicos.\n• Establezca promociones por pago medios electrónicos: ofertas, descuentos, puntos, otros.\n• Disponga los medios necesarios para sanitizar el POS, con regularidad.","• Registro gráfico de infografías, avisos, cartelería con llamados a privilegiar el uso de medios electrónicos de pago.",null,null," "," "," ",{"$f":"+VLOOKUP(B71,EVALUACION!$B$12:$F$1000,5,FALSE)","v":0}," "]
[null,"13_","Recomendación\nPASO A PASO LABORAL","Por medio del sistema de megafonía que posee el establecimiento se debe DIFUNDIR, de forma regular, las obligaciones y recomendaciones generales de autocuidado a las personas que permanecen en el establecimiento, local u oficina de atención. Considere a lo menos informar sobre las medidas básicas indicadas por el Ministerio de Salud:\n• Mantener en todo momento una distancia de al menos 1 metro entre personas.\n• Cubrir nariz y boca con antebrazo al toser o estornudar, o cubrir con pañuelo desechable. En dicho caso, botar inmediatamente después de su uso en contenedor con tapa.\n• Fomentar el lavado frecuente de manos con agua y jabón, por 20 segundos, o, en su defecto uso de alcohol o alcohol gel disponible.\n• Saludo sin contacto físico y con distanciamiento.\n• Evitar tocarse la cara.\n• Uso obligatorio de mascarillas.","• Registro de la información difundida por los sistemas de audio.",null,null," "," "," ",{"$f":"+VLOOKUP(B72,EVALUACION!$B$12:$F$1000,5,FALSE)","v":0}," "]
[null,"14_","Recomendación\nPASO A PASO LABORAL","Se deben FOMENTAR el uso de vías telemáticas para realizar las actividades grupales (reuniones, charlas, capacitaciones, mesas de trabajo), favoreciendo las actividades vía videoconferencia, llamadas telefónicas o correos electrónicos, con el objeto de evitar la aglomeración de personas.\nEn el estricto caso de ser requeridas estas actividades, se deben considerar las siguientes medidas:\n• Uso de lugares amplios que aseguren el espacio necesario para mantener el distanciamiento social. (de manera que los participantes estén al menos a 1 metro de distancia entre sí).\n• Reducir el número de personas a las estrictamente necesarias.\n• Contar con acceso a lavado de manos o en su defecto solución de alcohol gel, antes del ingreso a las instalaciones\n• Mantener ventilación constante \n• Uso de mascarilla\n• Evitar disponer de alimentos y bebestibles durante la reunión\n• Conservar los nombres, RUT y teléfonos de los participantes de la reunión durante al menos 1 mes\n• Desinfección de las instalaciones después de su uso","• Registro o comunicado de esta restricción.\n• Registro de medidas preventivas en caso de realizar actividades grupales.",null,null," "," "," ",{"$f":"+VLOOKUP(B73,EVALUACION!$B$12:$F$1000,5,FALSE)","v":0}," "]
[null,"15_","Recomendación\nPASO A PASO LABORAL","Se debe analizar la posibilidad de que los trabajadores puedan realizar sus labores en TRABAJO A DISTANCIA o TELETRABAJO, manteniendo de esta manera una cuarentena preventiva.\n\nDe preferencia, se debe considerar esta opción de trabajo para las personas de alto riesgo, considerando los siguientes factores:\n• Mayores a 60 años\n• Embarazadas\n• Enfermedades cardiovasculares, hipertensión, diabetes, enfermedad pulmonar crónica u otras afecciones pulmonares graves (como fibrosis quística o asma no controlada) o enfermedad renal con requerimiento de diálisis o similar\n• Trasplantados(as) y con medicamentos de inmunosupresión\n• Con cáncer, que están bajo tratamiento\n• Con un sistema inmunitario disminuido o medicamentos como inmunosupresores o corticoides\n\nSe debe mantener registro de estos trabajadores con los antecedentes personales y dirección (distinta a la del centro de trabajo) en la que se ejecutan sus labores.","• Registro vigente de trabajadores en modalidad de trabajo a distancia o teletrabajo.",null,null," "," "," ",{"$f":"+VLOOKUP(B74,EVALUACION!$B$12:$F$1000,5,FALSE)","v":0}," "]
[null,"16_","Recomendación\nPASO A PASO LABORAL","Se debe analizar la posibilidad de que los trabajadores puedan realizar RETORNOS DIFERENCIADOS y/o un sistema de turnos por grupos de trabajadores(as), unidades o áreas, combinando trabajo presencial con trabajo a distancia o teletrabajo.","• Registro de planificación de retornos diferenciados.",null,null," "," "," ",{"$f":"+VLOOKUP(B75,EVALUACION!$B$12:$F$1000,5,FALSE)","v":0}," "]
[null,"17_","Recomendación\nPASO A PASO LABORAL","La Organización deberá FLEXIBILIZAR HORARIOS o celebrar pactos sobre horarios diferidos de ingreso y salida de los trabajadores, con el objeto de evitar aglomeraciones y/o adaptarse a la disponibilidad de transporte público.","• Registro de distribución de jornadas de trabajo.",null,null," "," "," ",{"$f":"+VLOOKUP(B76,EVALUACION!$B$12:$F$1000,5,FALSE)","v":0}," "]
[null,"18_","Recomendación\nPASO A PASO LABORAL","Se deben implementar medidas para asegurar el DISTANCIAMIENTO de los trabajadores al consumir sus alimentos o en el uso de duchas y vestidores. Considerando a lo menos:\n• N° máximo de personas que pueden utilizar el recinto en un mismo tiempo\n• Generación de turnos (horarios diferidos)\n• Distanciamiento de mesas\n• Uso intercalado de sillas\n• Entre otros.","• Registro con las medidas de control de distanciamiento registradas en el plan de respuesta.",null,null," "," "," ",{"$f":"+VLOOKUP(B77,EVALUACION!$B$12:$F$1000,5,FALSE)","v":0}," "]
[null,"19_","Recomendación\nPASO A PASO LABORAL","Se deben generar las medidas necesarias para AISLAR los GRUPOS DE TRABAJO e impedir que entren en contacto innecesario con otras áreas, oficinas o secciones, mediante señalización de restricción, permisos especiales, mecanismos de control de acceso u otras acciones similares.\n","• Registro de las medidas administrativas para aislar grupos de trabajo.",null,null," "," "," ",{"$f":"+VLOOKUP(B78,EVALUACION!$B$12:$F$1000,5,FALSE)","v":0}," "]
[null,"20_","Recomendación\nPASO A PASO LABORAL","Se debe analizar la posibilidad de que los trabajadores puedan permisos con goce de remuneración, compensando dicho tiempo con trabajo dentro de la semana siguiente.","• Registro de autorizaciones de permisos con goce de remuneración.",null,null," "," "," ",{"$f":"+VLOOKUP(B79,EVALUACION!$B$12:$F$1000,5,FALSE)","v":0}," "]
[null,"21_","Recomendación\nPASO A PASO LABORAL","La organización debe RESTRINGIR el número de terceros externos que ingresan a las instalaciones al mínimo indispensable.","• Registro de ingreso de externos a las instalaciones.",null,null," "," "," ",{"$f":"+VLOOKUP(B80,EVALUACION!$B$12:$F$1000,5,FALSE)","v":0}," "]
[null,"22_","Recomendación\nPASO A PASO LABORAL","La organización debe organizar bandas de HORARIOS DE INGRESO DE TERCEROS EXTERNOS, de manera de reducir al máximo la interacción con los trabajadores(as) de la empresa.","• Registro de ingreso de externos a las instalaciones.",null,null," "," "," ",{"$f":"+VLOOKUP(B81,EVALUACION!$B$12:$F$1000,5,FALSE)","v":0}," "]
[null,"23_","Recomendación\nPASO A PASO LABORAL","Para fortalecer la información entregada a los trabajadores(as), se debe señalizar mediante medios gráficos instalados en el ingreso (carteles, avisos, paneles, otros), INFORMACIÓN RESUMIDA Y CONCRETA sobre las medidas de autocuidado y las medidas preventivas implementadas en la empresa.","• Registro fotográfico.",null,null," "," "," ",{"$f":"+VLOOKUP(B82,EVALUACION!$B$12:$F$1000,5,FALSE)","v":0}," "]
[null,"24_","Recomendación\nPASO A PASO LABORAL","Se debe informar a los trabajadores(as) sobre sus derechos y obligaciones, especialmente, sobre su derecho a interrumpir sus labores y de ser necesario, abandonar el lugar de trabajo cuando considere, por motivos razonables y justificados, que continuar con ellas implica un riesgo grave e inminente para su vida o salud.","• Registro de información a los trabajadores.",null,null," "," "," ",{"$f":"+VLOOKUP(B83,EVALUACION!$B$12:$F$1000,5,FALSE)","v":0}," "]
[null,"25_","Recomendación\nPASO A PASO LABORAL","La organización debe promover y facilitar diálogos permanentes y comunicación efectiva con los trabajadores(as) y organizaciones sindicales, en el caso que corresponda, para analizar las medidas preventivas que se deben tomar por el COVID-19.","• Registro de reuniones efectuadas.",null,null," "," "," ",{"$f":"+VLOOKUP(B84,EVALUACION!$B$12:$F$1000,5,FALSE)","v":0}," "]
[null,"26_","Recomendación\nPASO A PASO LABORAL","La organización debe implementar medidas de apoyo para los trabajadores(as) durante la situación de pandemia en relación con las medidas y cambios en la organización del trabajo.","• Registro de medidas de apoyo tomadas.",null,null," "," "," ",{"$f":"+VLOOKUP(B85,EVALUACION!$B$12:$F$1000,5,FALSE)","v":0}," "]
[null,"CERO",null,null,null,null,null,null,null,null,{"$f":"+VLOOKUP(B86,EVALUACION!$B$12:$F$1000,5,FALSE)","v":0}," "]
[null,"4.- CONTINUIDAD OPERACIONAL",null,null,null,null,null,null,null,null,{"$f":"+VLOOKUP(B87,EVALUACION!$B$12:$F$1000,5,FALSE)","v":0}," "]
[null,"CERO",null,null,null,null,null,null,null,null,{"$f":"+VLOOKUP(B88,EVALUACION!$B$12:$F$1000,5,FALSE)","v":0}," "]
[null,"27_","Recomendación\nACHS","Se debe IDENTIFICAR LAS ACTIVIDADES BÁSICAS (también denominadas actividades críticas) que deben efectuarse para que el centro de trabajo mantenga la continuidad operativa, es decir, mantenga la capacidad de entregar los productos, bienes y/o servicios que desarrolla.\nPara esto, se deben analizar todos los procesos, determinando los impactos que tiene cada una de las actividades que lo conforman, señalando cuáles de ellas son prioritarias y requisito para la continuidad del negocio. \nCon lo anterior, se debe determinar las medidas mitigadoras y los planes de contingencia que permitan hacer frente a la emergencia sanitaria, asegurando la continuidad operacional y resguardando la seguridad y salud de los trabajadores.\n","• Registro de actividades básicas identificadas, necesarias para la continuidad operacional del centro de trabajo.",null,null," "," "," ",{"$f":"+VLOOKUP(B89,EVALUACION!$B$12:$F$1000,5,FALSE)","v":0}," "]
[null,"28_","Recomendación\nACHS","Se debe identificar los TRABAJADORES CRÍTICOS, los cuales corresponden a aquellos involucrados en las actividades básicas identificadas, necesarios para mantener la continuidad operacional del centro de trabajo.\nPara este grupo de trabajadores se debe generar:\n• Plan de medidas preventivas adicionales, con el objeto de disminuir al máximo la posibilidad de contagio\n• Plan alternativo para el caso que esto último suceda\n","• Registro de trabajadores críticos.\n• Plan de medidas preventivas específicas para trabajadores críticos.",null,null," "," "," ",{"$f":"+VLOOKUP(B90,EVALUACION!$B$12:$F$1000,5,FALSE)","v":0}," "]
[null,"29_","Recomendación\nACHS","La Organización, en lo posible, deberá establecer SISTEMAS DE TURNOS entre grupos de trabajadores para labores críticas (ej. sistemas de trabajo 14x14). Evitando la superposición entre los trabajadores por turnos. ","• Registro de turnos en el plan de respuesta del centro de trabajo.",null,null," "," "," ",{"$f":"+VLOOKUP(B91,EVALUACION!$B$12:$F$1000,5,FALSE)","v":0}," "]
[null,"30_","Recomendación\nACHS","Se debe identificar los proveedores, MATERIAS PRIMAS e insumos que son necesarios para la continuidad operativa del centro de trabajo. Además, se debe efectuar un levantamiento de las fuentes de provisión alternativos, con un monitoreo continuo del envío y transporte que aseguren el abastecimiento.\n","• Inventario de materias primas e insumos requeridos para la continuidad operativa.\n• Lista de fuentes de provisión alternativos (con información de contactos).",null,null," "," "," ",{"$f":"+VLOOKUP(B92,EVALUACION!$B$12:$F$1000,5,FALSE)","v":0}," "]
[null,"31_","Recomendación\nACHS","Se debe elaborar un PLAN DE CIERRE como resultado de la ausencia masiva de trabajadores por aislamiento o enfermedad, en donde se detallen los posibles escenarios que se pueden enfrentar, considerando medidas para la suspensión y la reapertura del centro de trabajo.\n","• Medidas de cierre, con acciones para la suspensión y reapertura del centro de trabajo (incorporadas en el plan de respuesta).",null,null," "," "," ",{"$f":"+VLOOKUP(B93,EVALUACION!$B$12:$F$1000,5,FALSE)","v":0}," "]
[null,"A",null,null,null,null,null,null,null,null,{"$f":"+VLOOKUP(B94,EVALUACION!$B$12:$F$1000,5,FALSE)","v":0}," "]
[null,"A.- SECTOR TURISMOS (HOTELES) - Protocolo de Manejo y Prevencion ante COVID-19 en Turismo y Alojamiento Versión 3 (08 Feb 2021)",null,null,null,null,null,null,null,null,{"$f":"+VLOOKUP(B95,EVALUACION!$B$12:$F$1000,5,FALSE)","v":0}," "]
[null,"A",null,null,null,null,null,null,null,null,{"$f":"+VLOOKUP(B96,EVALUACION!$B$12:$F$1000,5,FALSE)","v":0}," "]
[null,"A.1.- RESPECTO DE LAS ENTRADAS Y SALIDAS",null,null,null,null,null,null,null,null,{"$f":"+VLOOKUP(B97,EVALUACION!$B$12:$F$1000,5,FALSE)","v":0}," "]
[null,"A.1.1","Medida obligatoria\nPASO A PASO LABORAL","Se debe DEMARCAR EL DISTANCIAMIENTO de un metro en el piso, a fin de asegurar el distanciamiento entre trabajadores en el ejerccio de sus labores y en áreas de alimentación.","• Registro gráfico de la medida implementada",null,null," "," "," ",{"$f":"+VLOOKUP(B98,EVALUACION!$B$12:$F$1000,5,FALSE)","v":0}," "]
[null,"A.1.2","Medida obligatoria\nPASO A PASO LABORAL","Se deben demarcar o señalizar los accesos y salida de los clientes, además de disponer en estos MECANISMO DE DESINFECCIÓN DE MANOS (alcohol o alcohol-gel), solicitando su aplicación para higienizar las manos, como requisito de ingreso. La solución de alcohol debe ser de al menos un 60%. \n\nSe debe informar a los clientes esta obligación, utilizando infografías (carteles, afiches o cualquier otro medio informativo).","• Presencia física de dispensadores de alcohol o alcohol gel en entradas y salidas de clientes\n• Registro de imágenes con presencia de personal aplicando el sanitizante de manos al ingreso y salida del local.",null,null," "," "," ",{"$f":"+VLOOKUP(B99,EVALUACION!$B$12:$F$1000,5,FALSE)","v":0}," "]
[null,"A.1.3","Medida obligatoria\nPASO A PASO LABORAL","Se deberá RESTRINGIR LA CANTIDAD DE ACCESOS disponibles y sólo dejar habilitados los accesos principales. Uno para entrada y otro para salida.","• Registro de imágenes de accesos principales (entrada y salida).",null,null," "," "," ",{"$f":"+VLOOKUP(B100,EVALUACION!$B$12:$F$1000,5,FALSE)","v":0}," "]
[null,"A.1.4","Recomendación\nPASO A PASO LABORAL","Se debe elaborar un Instructivo sobre el CONTROL DE ACCESO para los CLIENTES / USUARIOS que deseen ingresar al establecimiento. Se sugiere, efectuar el control de temperatura corporal, mediante un termómetro infrarrojo y/o realizar una revisión visual de su estado de salud, aplicando las directrices establecidas por el MINSAL para estos efectos.\n\nA las personas que presenten síntomas se debe aplicar el procedimiento para casos sospechosos, evitando que ingresen al establecimiento.\n\nEs recomendable informar la existencia y aplicación de esta medida, al momento de realizar la reserva, de manera que los clientes / usuarios, tengan pleno conocimiento de su aplicación, evitando con esto inconvenientes al momentos del arribo. ","• Instructivo sobre la forma de implementar el control de acceso al establecimiento en el contexto del COVID-19\n• Registros de control de temperatura y estado de salud.\n• Registro de difusión de la medida a clientes.",null,null," "," "," ",{"$f":"+VLOOKUP(B101,EVALUACION!$B$12:$F$1000,5,FALSE)","v":0}," "]
[null,"A.2.- RESPECTO DE LAS AREAS COMUNES",null,null,null,null,null,null,null,null,{"$f":"+VLOOKUP(B102,EVALUACION!$B$12:$F$1000,5,FALSE)","v":0}," "]
[null,"B.3.1","Medida obligatoria\nPASO A PASO LABORAL","Se deberán ORGANIZAR LAS MESAS, sillas y escritorios de forma que se pueda cumplir con el debido distanciamiento social de un metro entre clientes. Considerado a lo menos:\n• N° máximo de personas que pueden utilizar el recinto en un mismo tiempo\n• Distanciamiento de mesas\n• Uso intercalado de sillas","• Registro gráfico de la redistribución de mesas en el local.",null,null," "," "," ",{"$f":"+VLOOKUP(B103,EVALUACION!$B$12:$F$1000,5,FALSE)","v":0}," "]
[null,"A.2.2","Recomendación\nPASO A PASO LABORAL","Se recomienda MARCAR EN EL PISO EL ESPACIO a considerar entre clientes/turistas en distintos lugares para asegurar el distanciamiento mínimo.","• Registro gráfico de la medida implementada",null,null," "," "," ",{"$f":"+VLOOKUP(B104,EVALUACION!$B$12:$F$1000,5,FALSE)","v":0}," "]
[null,"A.2.3","Obligación","Será necesario facilitar el PRE-REGISTRO de los clientes/turistas por medios digitales.","• Registro gráfico de la medida implementada",null,null," "," "," ",{"$f":"+VLOOKUP(B105,EVALUACION!$B$12:$F$1000,5,FALSE)","v":0}," "]
[null,"A.2.4","Medida obligatoria\nPASO A PASO LABORAL","Se debe disponer de elementos que permitan la higienización de manos, tanto de CLIENTES/TURISTAS, como TRABAJADORES, ya sea con un lavamanos con agua y jabón o un dispensador de alcohol o alcohol gel. La higienización de manos también podría ser realizada en la mesa que ocupe el cliente.\n\nSe debe señalizar la obligatoriedad de esta acción antes del ingreso.","• Registro fotográfico de los elementos para la higiene de manos y la señalización correspondiente.",null,null," "," "," ",{"$f":"+VLOOKUP(B106,EVALUACION!$B$12:$F$1000,5,FALSE)","v":0}," "]
[null,"A.2.5","Medida obligatoria\nPASO A PASO LABORAL","Es necesario adoptar las medidas necesarias para evitar el INTERCAMBIO DE MATERIAL IMPRESO (revistas, folletos, tarjetas de presentación, etc.) que faciliten la transmisión.","• Registro gráfico de la medida implementada",null,null," "," "," ",{"$f":"+VLOOKUP(B107,EVALUACION!$B$12:$F$1000,5,FALSE)","v":0}," "]
[null,"B.3.11","Medida obligatoria\nPASO A PASO LABORAL","Se debe VENTILAR de forma permanente los AMBIENTES CERRADOS, potenciando el sistema de ventilación. En lo posible, contar con un sistema de ventilación o renovación del aire adecuado a las dimensiones del espacio del sanitario. Los sistemas de aire acondicionado no constituyen un sistema de ventilación.","• Registro del cumplimiento de la medida\n• Registro de antecedentes técnicos del sistema de ventilación existente.",null,null," "," "," ",{"$f":"+VLOOKUP(B108,EVALUACION!$B$12:$F$1000,5,FALSE)","v":0}," "]
[null,"A.3.- RESPECTO DE LOS SERVICIOS SANITARIOS",null,null,null,null,null,null,null,null,{"$f":"+VLOOKUP(B109,EVALUACION!$B$12:$F$1000,5,FALSE)","v":0}," "]
[null,"A.3.1","Medida obligatoria\nPASO A PASO LABORAL","Todos los BAÑOS DEL ESTABLECIMIENTO deben disponer de: inodoros en buen estado de mantención con tapas, basureros con tapa, lavamanos, iluminación, jabón y papel higiénico en portarrollos. Evitar uso de toallas, mediante secador de aire caliente o dispensador de toallas de papel absorbente desechables.","• Registro gráfico de los requisitos y condiciones de higiene que deben cumplir todos los baños del establecimiento.",null,null," "," "," ",{"$f":"+VLOOKUP(B110,EVALUACION!$B$12:$F$1000,5,FALSE)","v":0}," "]
[null,"A.3.2","Medida obligatoria\nPASO A PASO LABORAL","Se debe VENTILAR de forma permanente los AMBIENTES CERRADOS, potenciando el sistema de ventilación. En lo posible, contar con un sistema de ventilación o renovación del aire adecuado a las dimensiones del espacio del sanitario. Los sistemas de aire acondicionado no constituyen un sistema de ventilación.","• Registro del cumplimiento de la medida\n• Registro de antecedentes técnicos del sistema de ventilación existente.",null,null," "," "," ",{"$f":"+VLOOKUP(B111,EVALUACION!$B$12:$F$1000,5,FALSE)","v":0}," "]
[null,"A.4.- MEDIDAS RELATIVA A LOS TRABAJADORES",null,null,null,null,null,null,null,null,{"$f":"+VLOOKUP(B112,EVALUACION!$B$12:$F$1000,5,FALSE)","v":0}," "]
[null,"A.4.1","Recomendación\nPASO A PASO LABORAL","Se sugiere convenir la DISTRIBUCIÓN DE LA JORNADA en diversos turnos, con el fin de evitar aglomeraciones y limitar la cantidad de trabajadores que comparten un mismo espacio, mientras dure la contingencia por COVID-19, asegurando un número menor a 50 personas compartiendo un mismo espacio laboral (área, oficina, piso, sección, etc.) y/o para adaptarse a la disponibilidad de transporte público. \n\nSe debe mantener un registro que incluya horarios de inicio y término de los turnos, con el número de trabajadores que lo componen.","• Registro de la distribución de la jornada de trabajo de cada espacio laboral",null,null," "," "," ",{"$f":"+VLOOKUP(B113,EVALUACION!$B$12:$F$1000,5,FALSE)","v":0}," "]
[null,"A.4.2","Recomendación\nPASO A PASO LABORAL","El establecimiento, en lo posible, deberá establecer SISTEMAS DE TURNOS entre grupos de trabajadores, evitando la interacción entre grupos. (ej. sistemas de trabajo 14x14).","• Copia instructivo administrativo que regula medida y difusión de este a trabajadores. Detalle sistema de turnos.",null,null," "," "," ",{"$f":"+VLOOKUP(B114,EVALUACION!$B$12:$F$1000,5,FALSE)","v":0}," "]
[null,"A.4.3","Recomendación\nPASO A PASO LABORAL","El establecimiento deberá FLEXIBILIZAR HORARIOS o celebrar pactos sobre horarios diferidos de ingreso y salida de los trabajadores, con el objeto de evitar aglomeraciones y/o adaptarse a la disponibilidad de transporte público.","• Copia instructivo administrativo que regula medida y difusión de este a trabajadores. Detalle distribución de horarios.",null,null," "," "," ",{"$f":"+VLOOKUP(B115,EVALUACION!$B$12:$F$1000,5,FALSE)","v":0}," "]
[null,"A.4.4","Recomendación\nPASO A PASO LABORAL","El establecimiento deberá EVALUAR FORMAS DE TRASLADO de trabajadores, con la finalidad de maximizar las medidas de prevención a aplicar y entregar insumos para el traslado, como mascarillas y alcohol gel.","• Copia instructivo administrativo que regula medida y difusión de este a trabajadores. Detalle evaluación de formas de traslado.",null,null," "," "," ",{"$f":"+VLOOKUP(B116,EVALUACION!$B$12:$F$1000,5,FALSE)","v":0}," "]
[null,"A.4.5","Recomendación\nPASO A PASO LABORAL","Se deben identificar los puntos críticos de AGLOMERACIÓN, mediante un layout operacional del centro de trabajo, los cuales deben ser controlados de manera estricta. \nSe deben establecer medidas para evitar dichos puntos (por ejemplo: distribución de turnos de descansos, pausas de trabajo, turnos en horario de colación, etc.), asegurando se respete el distanciamiento social de seguridad.","• Registro layout operacional del centro de trabajo con identificación de puntos críticos de aglomeración.\n• Medidas preventivas para evitar dichos puntos de aglomeración.",null,null," "," "," ",{"$f":"+VLOOKUP(B117,EVALUACION!$B$12:$F$1000,5,FALSE)","v":0}," "]
[null,"A.4.6","Medida obligatoria\nPASO A PASO LABORAL","Se debe elaborar un Instructivo para efectuar el CONTROL DE ACCESO para todos los trabajadores y personas externas que necesiten ingresar al centro de trabajo, el cual debe contener como mínimo:\n• El control de  temperatura corporal al ingreso, exigir uso de mascarilla y solicitar declaración voluntaria de sintomatología asociada a COVID-19 y datos de contacto para efectos de trazabilidad. En caso de presentar sintomatología, prohibir ingreso.\n• Señalización de la ruta de ingreso y salida de los trabajadores al centro de trabajo, considerando que existen uno o varios accesos a los espacios de trabajo.","• Procedimiento de control de ingreso del centro de trabajo en el contexto del COVID-19.\n• Registros de control de temperatura y estado de salud.",null,null," "," "," ",{"$f":"+VLOOKUP(B118,EVALUACION!$B$12:$F$1000,5,FALSE)","v":0}," "]
[null,"A.4.7","Medida obligatoria\nPASO A PASO LABORAL","Se deben EVITAR LAS REUNIONES GRUPALES: reuniones, charlas, capacitaciones, mesas de trabajo, etc,  favoreciendo las actividades vía videoconferencia, llamadas telefónicas o correos electrónicos.\n\nEn el estricto caso de ser requeridas estas actividades, se deben considerar las siguientes medidas:\n• Uso de lugares amplios que aseguren el espacio necesario para mantener el distanciamiento social. (de manera que los participantes estén al menos a 1 metro de distancia entre si).\n• Reducir el numero de personas a las estrictamente necesarias.\n• Contar con acceso a lavado de manos o en su defecto solución de alcohol gel, antes del ingreso a las instalaciones.\n• Mantener ventilación constante \n• Uso de mascarilla permanente\n• Evitar disponer de alimentos y bebestibles durante la reunión\n• Conservar los nombres, RUT y teléfonos de los participantes de la reunión durante al menos 1 mes.\n• Desinfección de las instalaciones después de su uso.","• Registro o comunicado de esta restricción\n• Documento con las medidas preventivas en caso de realizar actividades grupales",null,null," "," "," ",{"$f":"+VLOOKUP(B119,EVALUACION!$B$12:$F$1000,5,FALSE)","v":0}," "]
[null,"A.5.- MEDIDAS RELATIVAS A LOS TURISTAS",null,null,null,null,null,null,null,null,{"$f":"+VLOOKUP(B120,EVALUACION!$B$12:$F$1000,5,FALSE)","v":0}," "]
[null,"A.5.1","Medida obligatoria\nPASO A PASO LABORAL","Se debe INFORMAR a los TURISTAS de las prácticas que viene implementando el establecimiento para reducir posibles riesgos, para que contribuyan con éstas y así mejorar su efectividad. Para esto se debe instalar señalética (gráficas, infografías u otro material visual), en todas las entradas y las áreas comunes de los establecimientos, con el objeto de difundir y reforzar las obligaciones y recomendaciones generales de autocuidado (medidas preventivas o de autocuidado).\n\nConsidere a lo menos informar sobre las medidas básicas indicadas por el Ministerio de Salud:\n• Mantener en todo momento una distancia de al menos 1 metro entre personas.\n• Cubrir nariz y boca con antebrazo al toser o estornudar, o cubrir con pañuelo desechable. En dicho caso, botar inmediatamente después de su uso en contenedor con tapa.\n• Fomentar el lavado frecuente de manos con agua y jabón, por 20 segundos, o, en su defecto uso de alcohol o alcohol gel disponible.\n• Saludo sin contacto físico y con distanciamiento.\n• Evitar tocarse la cara.\n• Entre otras","• Registro gráfico o documental de la medida implementada (infografías, señalización, cartelería, fotografía, otros)",null,null," "," "," ",{"$f":"+VLOOKUP(B121,EVALUACION!$B$12:$F$1000,5,FALSE)","v":0}," "]
[null,"A.5.2","Medida obligatoria\nPASO A PASO LABORAL","Será necesario que el establecimiento disponga de los medios necesarios, que permitan a los clientes/turistas, conocer los servicios de salud a los que puedan recurrir en caso de requerir atención médica, teniendo disponible los NÚMEROS TELEFÓNICOS, las DIRECCIONES y los MEDIOS DE TRANSPORTES que podrían prestar el servicio, en caso que los clientes / turistas requieran orientación.","• Registro gráfico o documental de la medida implementada (infografías, señalización, cartelería, fotografía, folletería, otros)",null,null," "," "," ",{"$f":"+VLOOKUP(B122,EVALUACION!$B$12:$F$1000,5,FALSE)","v":0}," "]
[null,"A.6.- MEDIDAS RELATIVAS A PROVEEDORES",null,null,null,null,null,null,null,null,{"$f":"+VLOOKUP(B123,EVALUACION!$B$12:$F$1000,5,FALSE)","v":0}," "]
[null,"A.6.1","Medida obligatoria\nPASO A PASO LABORAL","Se debe elaborar un Instructivo sobre el CONTROL DE ACCESO para los PROVEEDORES que deseen ingresar al establecimiento. En lo posible, se debe efectuar el control de temperatura corporal, mediante un termómetro infrarrojo y/o realizar una revisión visual de su estado de salud, aplicando las directrices establecidas por el MINSAL para estos efectos.\n\nSe deberá solicitar al proveedor completar la declaración de estado de salud (ver anexo), la que podrá ser enviada por medios electrónicos o ser llenada a la llegada del proveedor.\n\nA los proveedores que presenten síntomas se debe aplicar el procedimiento para casos sospechosos, evitando que ingresen al centro de trabajo.","• Instructivo sobre la forma de implementar el control de acceso al establecimiento en el contexto del COVID-19\n• Registros de control de temperatura y estado de salud.",null,null," "," "," ",{"$f":"+VLOOKUP(B124,EVALUACION!$B$12:$F$1000,5,FALSE)","v":0}," "]
[null,"A.6.2","Medida obligatoria\nPASO A PASO LABORAL","En caso de INTERACCIÓN CON EMPRESAS EXTERNAS, hay que asegurar que en la interacción se cumpla con medidas preventivas. Informar sobre dichas medidas y pedir declaración jurada previa de que la empresa externa también está cumpliendo con estándares equivalentes, la que podrá ser enviada por medios electrónicos o ser llenada a la llegada del proveedor.","• Registros de medidas implementadas para asegurar  la debida interacción con empresas externas.\n• Registros de declaración jurada de empresas externas",null,null," "," "," ",{"$f":"+VLOOKUP(B125,EVALUACION!$B$12:$F$1000,5,FALSE)","v":0}," "]
[null,"A.6.3","Medida obligatoria\nPASO A PASO LABORAL","De ser necesario, establecer un punto de INGRESO INDEPENDIENTE PARA PROVEEDORES y horas de entregas escalonadas para evitar aforos. Este punto de ingreso se sanitizará y desinfectará frecuentemente de acuerdo a los criterios establecidos en este protocolo.\n\nCon la finalidad de asegurar la realización de la limpieza y desinfección de las superficies y ambientes en los lugares de recepción de proveedores, es recomendable establecer una programación que indique la frecuencia en que se debe efectuar, aplicando el procedimiento confeccionado por la empresa para estos efectos, según se establece en el Protocolo de Limpieza y Desinfección de Ambientes COVID-19.\n\nEsta programación debe considerar la limpieza y desinfección varias veces al día de las superficies de contacto más frecuente, tales como:\n\n• Manillas de las puertas de entrada\n• Pasamanos de las vías de acceso\n• Pasamanos de las escalas mecánicas\n• Ascensores y los botones de llamada, \n• Zonas de cajas y mesones de atención\n• Zonas de autoservicio\n• Baños (llaves de lavamanos y WC)\n• Áreas de recepción de mercaderías\n• Recipientes, wencos, pallets, u otras superficies para traslado de mercadería. \n• Entre otros","• Registro de la programación de limpieza y desinfección de las instalaciones",null,null," "," "," ",{"$f":"+VLOOKUP(B126,EVALUACION!$B$12:$F$1000,5,FALSE)","v":0}," "]
[null,"A.7.- SERVICIO DE RECEPCIÓN Y ACOGIDA",null,null,null,null,null,null,null,null,{"$f":"+VLOOKUP(B127,EVALUACION!$B$12:$F$1000,5,FALSE)","v":0}," "]
[null,"A.7.1","Recomendación\nPASO A PASO LABORAL","El establecimiento deberá SOLICITAR el PASAPORTE SANITARIO (C19) y PERMISO DE VACACIONES correspondiente, a los CLIENTES que ingresen al establecimiento por primera vez?","• Registro gráfico de la medida implementada",null,null," "," "," ",{"$f":"+VLOOKUP(B128,EVALUACION!$B$12:$F$1000,5,FALSE)","v":0}," "]
[null,"A.7.1","Recomendación\nPASO A PASO LABORAL","Se recomienda la instalación de ELEMENTOS FÍSICOS (barreras de acrílico o plástico transparente), que aseguren la protección del personal de recepción, de fácil limpieza y desinfección, asegurando el distanciamiento social.","• Registro gráfico de la medida implementada",null,null," "," "," ",{"$f":"+VLOOKUP(B129,EVALUACION!$B$12:$F$1000,5,FALSE)","v":0}," "]
[null,"A.7.2","Medida obligatoria\nPASO A PASO LABORAL","Se debe disponer de lugares para LAVADO DE MANOS con jabón, o contar con alcohol o alcohol gel, tanto para los clientes como para los trabajadores.\n\nSe debe disponer de agua, jabón y toalla de manos desechable en baños y otros lugares dispuesto para este fin. Además, se debe instalar señalización (cartelería) con el método correcto del lavado de manos.\n\nDe no ser posible lo anterior, se debe disponer de dispensadores de alcohol o alcohol gel en cantidad suficiente, para cumplir con este objetivo. Considerar que la solución de alcohol debe ser de al menos un 60%.","• Registro gráfico de la medida implementada\n• Registro de infografía para el correcto lavado de manos.\n• Programa de limpieza con reposición de jabón y toalla de manos desechable",null,null," "," "," ",{"$f":"+VLOOKUP(B130,EVALUACION!$B$12:$F$1000,5,FALSE)","v":0}," "]
[null,"A.7.3","Medida obligatoria\nPASO A PASO LABORAL","Debe evitarse la disponibilidad de OBJETOS MANIPULABLES como lápices, folletos, revistas, etc., que puedan facilitar la transmisión.","• Registro gráfico de la medida implementada",null,null," "," "," ",{"$f":"+VLOOKUP(B131,EVALUACION!$B$12:$F$1000,5,FALSE)","v":0}]
[null,"A.7.4","Medida obligatoria\nPASO A PASO LABORAL","Se debe recomendar a los CLIENTES/TURISTAS EVITAR el uso de dinero en efectivo, privilegiando los métodos de pago electrónico sin contacto, con tarjetas bancarias o transferencias electrónicas. Limpiar el POS de pago frecuentemente. Para esto:\n\n• Instruya al personal en orientar la decisión de pago del cliente con medios electrónicos.\n• Establezca promociones por pago medios electrónicos: ofertas, descuentos, puntos, otros.\n• Disponga los medios necesarios para sanitizar el POS, tras cada uso en el que exista contacto.","• Registro de infografías, avisos, cartelería con llamados a privilegiar el uso de medios electrónicos de pago.\n• Registro gráfico de medidas implementadas.",null,null," "," "," ",{"$f":"+VLOOKUP(B132,EVALUACION!$B$12:$F$1000,5,FALSE)","v":0}]
[null,"A.7.5","Medida obligatoria\nPASO A PASO LABORAL","En el caso de que existan TARJETAS O LLAVES, éstas deben depositarse en un RECIPIENTE CON DESINFECTANTE al finalizar la estancia o tras cada uso si se depositan en la recepción.","• Registro gráfico de la medida implementada",null,null," "," "," ",{"$f":"+VLOOKUP(B133,EVALUACION!$B$12:$F$1000,5,FALSE)","v":0}]
[null,"A.7.6","Medida obligatoria\nPASO A PASO LABORAL","Cuando el personal preste el servicio de transporte de equipaje del cliente, debe realizarse con TOALLITAS DESINFECTANTES para limpiar asas, manillas, etc.","• Registro gráfico de la medida implementada",null,null," "," "," ",{"$f":"+VLOOKUP(B134,EVALUACION!$B$12:$F$1000,5,FALSE)","v":0}]
[null,"A.8.- RELATIVAS A LAS ZONAS DE USO COMÚN",null,null,null,null,null,null,null,null,{"$f":"+VLOOKUP(B135,EVALUACION!$B$12:$F$1000,5,FALSE)","v":0}]
[null,"A.8.1","Medida obligatoria\nPASO A PASO LABORAL","Se deben realizar las ACTIVIDADES DE ANIMACIÓN al AIRE LIBRE, siempre que sea posible y evitar en ellas el intercambio de objetos.","• Registro gráfico de la medida implementada.",null,null," "," "," ",{"$f":"+VLOOKUP(B136,EVALUACION!$B$12:$F$1000,5,FALSE)","v":0}]
[null,"A.8.2","Medida obligatoria\nPASO A PASO LABORAL","Se deberán Cerrar / Eliminar ÁREAS INFANTILES Y JUEGOS DE NIÑOS.","• Registro gráfico de la medida implementada",null,null," "," "," ",{"$f":"+VLOOKUP(B137,EVALUACION!$B$12:$F$1000,5,FALSE)","v":0}]
[null,"A.9.- RELATIVAS AL SERVICIO DE CAFETERÍA / RESTAURANTE",null,null,null,null,null,null,null,null,{"$f":"+VLOOKUP(B138,EVALUACION!$B$12:$F$1000,5,FALSE)","v":0}]
[null,"A.9.1","Medida obligatoria\nPASO A PASO LABORAL","Se debe evitar la MANIPULACIÓN de los alimentos directamente por los clientes y minimizar el autoservicio. Considere la suspensión del autoservicio o bien reemplácelo por servicio asistido o atención a la mesa.","• Registro gráfico de la medida implementada",null,null," "," "," ",{"$f":"+VLOOKUP(B139,EVALUACION!$B$12:$F$1000,5,FALSE)","v":0}]
[null,"A.9.2","Medida obligatoria\nPASO A PASO LABORAL","Se recomienda eliminar los BUFFETS y servir el desayuno directamente en las mesas del comedor o cafetería debidamente distanciadas. En el caso de que no se pueda eliminar la tipología buffet, se deben implementar fórmulas como, por ejemplo, el buffet asistido con pantalla de protección, a través de emplatados individuales y/o monodosis tapados también con pantalla de protección.","• Registro gráfico de las medidas implementadas, así como del personal dispuesto para la entrega de comida.",null,null," "," "," ",{"$f":"+VLOOKUP(B140,EVALUACION!$B$12:$F$1000,5,FALSE)","v":0}]
[null,"A.10.- PROTOCOLO DE ACTUACIÓN ANTE HUESPEDES EN CUARENTENA",null,null,null,null,null,null,null,null,{"$f":"+VLOOKUP(B141,EVALUACION!$B$12:$F$1000,5,FALSE)","v":0}]
[null,"A.10.1","Medida obligatoria\nPASO A PASO LABORAL","Si se tiene SOSPECHA FUNDADA de que una PERSONA ALOJADA pueda estar afectada de COVID-19 es conveniente, en primer lugar:\n\n✓ Aislar a dicha persona en su habitación. En lo posible, designar un área exclusiva al interior del hotel (piso, ala, zona), donde pernoctarán pacientes positivos o sospechosos.\n✓ Que la recepción lo asesore en el contacto con la autoridad sanitaria y/o servicio de salud.\n✓ Que la recepción lo asesore a gestionar un traslado seguro de ser necesario. En caso de que el cliente se niegue, el alojamiento turístico debe comunicarlo al servicio sanitario para que puedan adoptar las medidas correspondientes.\n✓ Si se le toma examen PCR al huésped, este deberá hacer cuarentena hasta obtener resultados. Si el resultado es negativo, el turista podrá retomar sus actividades regulares. Si el resultado es positivo, deberá hacer cuarentena por 14 días desde iniciados los síntomas o si no presenta síntomas, 14 días desde el diagnóstico positivo.\n\n• La autoridad sanitaria procederá a identificar los contactos estrechos e indicar las personas a quienes les corresponderá una cuarentena obligatoria.\n\n• El costo de la estadía durante el tiempo que se mantenga el aislamiento debe ser financiado por cada visitante.","• Registro de huéspedes con casos sospechosos ",null,null," "," "," ",{"$f":"+VLOOKUP(B142,EVALUACION!$B$12:$F$1000,5,FALSE)","v":0}]
[null,"A.11.- PROCEDIMIENTOS DE LIMPIEZA EN ESTABLECIMIENTOS CON UN CASO CONFIRMADO",null,null,null,null,null,null,null,null,{"$f":"+VLOOKUP(B143,EVALUACION!$B$12:$F$1000,5,FALSE)","v":0}]
[null,"A.11.1","Medida obligatoria\nPASO A PASO LABORAL","Cuando se realice el aseo de habitaciones con casos sospechosos o confirmados, se debe utilizar UTENSILIOS EXCLUSIVOS para dichas habitaciones, a fin de evitar riesgos de contaminación cruzada.","• Registro gráfico de la medida implementada",null,null," "," "," ",{"$f":"+VLOOKUP(B144,EVALUACION!$B$12:$F$1000,5,FALSE)","v":0}]
[null,"A.11.2","Medida obligatoria\nPASO A PASO LABORAL","Medidas de protección individual desechables (EPP) para trabajadores que limpian cada habitación.\n✓ Debe disponerse de mascarillas quirúrgicas, guantes desechables, escudos faciales y cambio de uniforme para limpieza de cada habitación de un cliente con contagio confirmado.\n✓ Ventilar/airear espacios comunes y habitaciones con la mayor frecuencia posible.\n✓ Se recomienda disponer de vasos desechables para el aseo/enjuague bucal y contar con gel desinfectante en las habitaciones con clientes que sean casos confirmados.","• Registro gráfico de la medida implementada",null,null," "," "," ",{"$f":"+VLOOKUP(B145,EVALUACION!$B$12:$F$1000,5,FALSE)","v":0}]
[null,"A.11.3","Medida obligatoria\nPASO A PASO LABORAL","Todo el PERSONAL DEL HOTEL que tenga que acceder por alguna situación excepcional a una habitación cuando esté presente el cliente, deberá:\n\n✓ Llevar mascarillas y elementos de protección personal adicionales tales como escudo facial (sobre la mascarilla), guantes y trajes de protección, \n✓ Lavarse o desinfectarse adecuadamente las manos al entrar y al salir y\n✓ Mantener una distancia de al menos un metro y medio del cliente, asegurándose que éste último lleve puesta su mascarilla, haya ventilado el lugar previamente y evitando cualquier contacto (si la habitación tiene baño, en la medida que su salud lo permita el cliente deberá permanecer en su interior).\n\nEs recomendable establecer y difundir un instructivo con las medidas que deberá adoptar el personal, ante la eventualidad de tener que ingresar a una habitación con presencia de un cliente (huésped) con caso confirmado.","• Registro de instructivo con medidas para personal\n• Registro de difusión del instructivo al personal",null,null," "," "," ",{"$f":"+VLOOKUP(B146,EVALUACION!$B$12:$F$1000,5,FALSE)","v":0}]
[null,"A.11.4","Medida obligatoria\nPASO A PASO LABORAL","No se debe ingresar el CARRO de LIMPIEZA  en la habitación. Así también ningún otro equipo o insumo que luego pueda ser transportado a otras dependencias.","• Registro gráfico de la medida implementada",null,null," "," "," ",{"$f":"+VLOOKUP(B147,EVALUACION!$B$12:$F$1000,5,FALSE)","v":0}]
[null,"A.11.5","Medida obligatoria\nPASO A PASO LABORAL","Retirar la ropa de cama y las toallas y ponerlas en una bolsa identificada y herméticamente cerrada hasta el momento de lavarlas, advirtiendo de ello al personal de lavandería para su manipulación higiénica (no sacudir la ropa sucia y evitar el contacto directo con la piel). Lavar a máquina a 60° – 90°C con detergente ordinario.\n\nEs recomendable establecer y difundir un instructivo con las medidas que deberá adoptar el personal, para el RETIRO de la ROPA de CAMA, TOALLAS y otros textiles de una habitación con caso confirmado.","• Registro de instructivo con medidas para retiro de textiles (ropa de cama, toallas, otros)\n• Registro de difusión del instructivo al personal",null,null," "," "," ",{"$f":"+VLOOKUP(B148,EVALUACION!$B$12:$F$1000,5,FALSE)","v":0}]
[null,"A.11.6","Medida obligatoria\nPASO A PASO LABORAL","El MATERIAL DESECHABLE utilizado por la persona enferma (pañuelos, mascarillas, vasos, etc.) se eliminará mediante su introducción en una BOLSA de PLÁSTICO que cierre herméticamente y se desechará en basurero con tapa cerrada y bolsa en su interior.","• Registro gráfico de la medida implementada",null,null," "," "," ",{"$f":"+VLOOKUP(B149,EVALUACION!$B$12:$F$1000,5,FALSE)","v":0}]
[null,"A.11.7","Medida obligatoria\nPASO A PASO LABORAL","Cuando el CLIENTE ABANDONE definitivamente la habitación, hay que RETIRAR y SUSTITUIR todas las facilidades de aseo (amenities, rollos de papel higiénico, bolsas de aseo, etc.) y DESECHARLAS.","• Registro gráfico de la medida implementada",null,null," "," "," ",{"$f":"+VLOOKUP(B150,EVALUACION!$B$12:$F$1000,5,FALSE)","v":0}]
[null,"A.11.8","Medida obligatoria\nPASO A PASO LABORAL","Cuando el cliente abandone definitivamente la habitación, se debe hacer una LIMPIEZA adecuada y una DESINFECCIÓN posterior con solución de desinfectante. Para el caso de la desinfección, se recomienda:\n\n✓ Preparar una solución de hipoclorito de sodio (cloro comercial) en una concentración de 0,1%. Use siempre papel desechable para hacer la limpieza.\n✓ Para conseguir las concentraciones recomendadas a partir de Hipoclorito de Sodio (Cloro comercial):\n- Si se usa cloro comercial de una concentración 50g/L (5%): añadir 20 ml. de cloro en 1 litro de agua (lo anterior, también se traduce en una parte de cloro, por 49 partes de agua).\n- A modo de referencia, una “cucharada de sopa” equivale a 15 ml.\n- En el caso de utilizar Hipoclorito de Sodio (cloro comercial) a otras concentraciones, se puede utilizar el siguiente documento para preparar la solución: “Formula para diluir una solución de hipoclorito de sodio para desinfección de ambiente y superficies para el cumplimiento de recomendaciones en prevención de infecciones asociadas a la atención de salud – IAAS”. Disponible en: https://web.minsal.cl/sites/default/files/files/dilucion%20de%20hipoclorito%20de%20sodio%20(%20cloro)%20.docx\n- En superficies que no se pueda utilizar cloro, puede también utilizarse etanol al 70%.\n\nSe debe elaborar un PROCEDIMIENTO DE TRABAJO SEGURO (PTS), para la limpieza y desinfección de todos los espacios del establecimiento. Dicho PTS, debe estar basado en el protocolo establecido por el Ministerio de Salud para estos efectos. El PTS deberá estar disponible en todo momento para ser presentado a la autoridad de salud cuando ésta lo requiera.","• Registro del procedimiento de trabajo seguro que establece las formas de trabajo y medidas preventivas al momento de realizar tareas de limpieza y desinfección de ambientes.",null,null," "," "," ",{"$f":"+VLOOKUP(B151,EVALUACION!$B$12:$F$1000,5,FALSE)","v":0}]
[null,"A",null,null,null,null,null,null,null,null,{"$f":"+VLOOKUP(B152,EVALUACION!$B$12:$F$1000,5,FALSE)","v":0}," "]
[null,"B.- RESTAURANTES - Protocolo de Manejo y Prevencion ante COVID-19 en Restaurantes, cafés y otros establecimientos análogos Versión 5 (08 Feb 2021)",null,null,null,null,null,null,null,null,{"$f":"+VLOOKUP(B153,EVALUACION!$B$12:$F$1000,5,FALSE)","v":0}]
[null,"A",null,null,null,null,null,null,null,null,{"$f":"+VLOOKUP(B154,EVALUACION!$B$12:$F$1000,5,FALSE)","v":0}," "]
[null,"B.1.- RELATIVAS AL LUGAR",null,null,null,null,null,null,null,null,{"$f":"+VLOOKUP(B155,EVALUACION!$B$12:$F$1000,5,FALSE)","v":0}]
[null,"B.1.1","Medida obligatoria\nPASO A PASO RESTAURANTES V.5","La administración debe definir, implementar y monitorear un PLAN DE LIMPIEZA Y DESINFECCIÓN, así como establecer un responsable de llevar a efecto esta actividad, considerando:\n\n• Rutina de limpieza para superficies, mobiliario, elementos decorativos y otros objetos del restaurante.\n• Limpiar y desinfectar permanentemente mesas, sillas, barras y cualquier superficie o accesorio que sea manipulado por los clientes.\n• Lavar manteles, servilletas y ropa de trabajo a más de 60º C.\n• En caso de pago con tarjeta, limpiar el POS de forma permanente. En caso de pago con efectivo, lavar las manos después de recibir el dinero y entregar el vuelto.","• Plan de limpieza, desinfección y sanitización de los espacios del local.",null,null," "," "," ",{"$f":"+VLOOKUP(B156,EVALUACION!$B$12:$F$1000,5,FALSE)","v":0}]
[null,"B.2.- RESPECTO DE LAS ENTRADAS Y SALIDAS",null,null,null,null,null,null,null,null,{"$f":"+VLOOKUP(B157,EVALUACION!$B$12:$F$1000,5,FALSE)","v":0}]
[null,"B.2.1","Medida obligatoria\nPASO A PASO RESTAURANTES V.5","El establecimiento deberá diseñar un proceso para garantizar que los CLIENTES/TURISTAS que esperan ingresar al establecimiento se mantengan con la DISTANCIA MÍNIMA ESTABLECIDA (1 metro), como por ejemplo la entrega de números de atención, la demarcación de distanciamiento en el piso, la reserva anticipada  o cualquier otro medio que hayan implementado.","• Registro gráfico de la medida de distanciamiento implementada en la espera.",null,null," "," "," ",{"$f":"+VLOOKUP(B158,EVALUACION!$B$12:$F$1000,5,FALSE)","v":0}]
[null,"B.2.2","Medida obligatoria\nPASO A PASO RESTAURANTES V.5","Se deberá RESTRINGIR LA CANTIDAD DE ACCESOS disponibles y sólo dejar habilitados los accesos principales. Uno para entrada y otro para salida.","• Registro de imágenes de accesos principales (entrada y salida).",null,null," "," "," ",{"$f":"+VLOOKUP(B159,EVALUACION!$B$12:$F$1000,5,FALSE)","v":0}]
[null,"B.2.3","Medida obligatoria\nPASO A PASO RESTAURANTES V.5","Se deben demarcar o señalizar los accesos y salida de los clientes, además de disponer en estos MECANISMO DE DESINFECCIÓN DE MANOS (alcohol o alcohol-gel), solicitando su aplicación para higienizar las manos, como requisito de ingreso. La solución de alcohol debe ser de al menos un 60%. \n\nSe debe informar a los clientes esta obligación, utilizando infografías (carteles, afiches o cualquier otro medio informativo).","• Presencia física de dispensadores de alcohol o alcohol gel en entradas y salidas de clientes\n• Registro de imágenes con presencia de personal aplicando el sanitizante de manos al ingreso y salida del local.",null,null," "," "," ",{"$f":"+VLOOKUP(B160,EVALUACION!$B$12:$F$1000,5,FALSE)","v":0}]
[null,"B.3- RESPECTO DE LAS AREAS COMUNES",null,null,null,null,null,null,null,null,{"$f":"+VLOOKUP(B161,EVALUACION!$B$12:$F$1000,5,FALSE)","v":0}]
[null,"B.3.1","Medida obligatoria\nPASO A PASO RESTAURANTES V.5","Se deberán ORGANIZAR LAS MESAS, de forma que se pueda cumplir con el debido distanciamiento social de un metro entre clientes. Considerado a lo menos:\n• N° máximo de personas que pueden utilizar el recinto en un mismo tiempo\n• Distanciamiento de mesas\n• Uso intercalado de sillas","• Registro gráfico de la redistribución de mesas en el local.",null,null," "," "," ",{"$f":"+VLOOKUP(B162,EVALUACION!$B$12:$F$1000,5,FALSE)","v":0}]
[null,"B.3.2","Medida obligatoria\nPASO A PASO RESTAURANTES V.5","La única actividad permitida en restaurantes y cafés es comer por un tiempo limitado, SENTADOS, y en mesas distanciadas entre ellas y sin interacción entre los asistentes de diferentes mesas.\n\nLos asistentes deben permanecer SENTADOS durante la mayor parte del tiempo y no pueden interactuar con los asistentes de otras mesas.","• Registro gráfico de las medidas adoptadas en el local.",null,null," "," "," ",{"$f":"+VLOOKUP(B163,EVALUACION!$B$12:$F$1000,5,FALSE)","v":0}]
[null,"B.3.3","Recomendación\nPASO A PASO RESTAURANTES V.5","Se recomienda un volumen de música bajo, esto con el objetivo de que las PERSONAS puedan CONVERSAR y NO GRITAR, ya que la información disponible ha demostrado que esto aumenta el riesgo de diseminar la infección.","• Registro gráfico de las medidas adoptadas en el local.",null,null," "," "," ",{"$f":"+VLOOKUP(B164,EVALUACION!$B$12:$F$1000,5,FALSE)","v":0}]
[null,"B.3.4","Medida obligatoria\nPASO A PASO RESTAURANTES V.5","En servicios de buffet, se deberán HABILITAR BARRERAS FÍSICAS para proteger los alimentos, como láminas de plástico o acrílicas  verticales, y disponer colaboradores para entregar comida a los clientes, evitando el autoservicio.","• Registro gráfico de las barreras implementadas, así como del personal dispuesto para la entrega de comida.",null,null," "," "," ",{"$f":"+VLOOKUP(B165,EVALUACION!$B$12:$F$1000,5,FALSE)","v":0}]
[null,"B.3.5","Medida obligatoria\nPASO A PASO RESTAURANTES V.5","Se deben habilitar BARRERAS FÍSICAS transparente en cajas, las que pueden ser: acrílicas, láminas de plástico, policarbonato u otros materiales.","• Registro gráfico de las barreras físicas implementadas en caja.",null,null," "," "," ",{"$f":"+VLOOKUP(B166,EVALUACION!$B$12:$F$1000,5,FALSE)","v":0}]
[null,"B.3.6","Medida obligatoria\nPASO A PASO RESTAURANTES V.5","Se debe ELIMINAR DE LA CARTA los platos compartidos. Se debe privilegiar los platos individuales.","• Registro de la carta con platos individuales",null,null," "," "," ",{"$f":"+VLOOKUP(B167,EVALUACION!$B$12:$F$1000,5,FALSE)","v":0}]
[null,"B.3.7","Medida obligatoria\nPASO A PASO RESTAURANTES V.5","Se deberán LIMPIAR Y DESINFECTAR LAS ALCUZAS entre cada servicio y evitar el uso de servilleteros. Las servilletas deben ir junto con los cubiertos.\nConsidere un aumento en la cantidad de alcuzas disponibles o bien la incorporación de aderezos en sobre unitarios, en reemplazo de las alcuzas.","• Registro gráfico de la medida implementada",null,null," "," "," ",{"$f":"+VLOOKUP(B168,EVALUACION!$B$12:$F$1000,5,FALSE)","v":0}]
[null,"B.3.8","Medida obligatoria\nPASO A PASO RESTAURANTES V.5","Se deben ELIMINAR LAS CARTAS DE MENÚ y sustituirlas por otra forma de mostrar la oferta de cada establecimiento. Se sugiere por ejemplo que el menú se encuentre escrito en una pared, en individuales, o en las redes sociales o página web del establecimiento en donde cada cliente pueda revisarlas desde su celular en forma expedita.","• Registro gráfico de la medida implementada",null,null," "," "," ",{"$f":"+VLOOKUP(B169,EVALUACION!$B$12:$F$1000,5,FALSE)","v":0}]
[null,"B.3.9","Medida obligatoria\nPASO A PASO RESTAURANTES V.5","Se deben generar FLUJOS DE CIRCULACIÓN dentro de los establecimientos que permitan reducir al máximo la interacción entre clientes.","• Registro gráfico de la medida implementada",null,null," "," "," ",{"$f":"+VLOOKUP(B170,EVALUACION!$B$12:$F$1000,5,FALSE)","v":0}]
[null,"B.3.10","Medida obligatoria\nPASO A PASO RESTAURANTES V.5","Se deberán Cerrar / Eliminar ÁREAS INFANTILES Y JUEGOS DE NIÑOS.","• Registro gráfico de la medida implementada",null,null," "," "," ",{"$f":"+VLOOKUP(B171,EVALUACION!$B$12:$F$1000,5,FALSE)","v":0}]
[null,"B.3.11","Medida obligatoria\nPASO A PASO RESTAURANTES V.5","Se debe promover el  USO DE PAPEL ABSORBENTE o servilletas para evitar el contacto directo al MANIPULAR MANILLAS u otras superficies de uso común. Incentive el desinfectar las manos con alcohol gel, luego de manipular manillas u otras superficies de uso común.","• Registro de infografías (carteles, avisos, paneles, otros), promoviendo el uso de papel absorbente o servilletas para manipular manillas u otras superficies de uso común.",null,null," "," "," ",{"$f":"+VLOOKUP(B172,EVALUACION!$B$12:$F$1000,5,FALSE)","v":0}]
[null,"B.3.12","Medida obligatoria\nPASO A PASO RESTAURANTES V.5","El establecimiento debe contar con las CANTIDADES NECESARIAS DE UTENSILIOS, vajilla, cristalería, cubiertos y mantelería sanitizadas para cubrir las necesidades de máxima ocupación y permitir su limpieza adecuada.","• Registro de existencia de utensilios, vajilla, mantelería, cristalería u otros",null,null," "," "," ",{"$f":"+VLOOKUP(B173,EVALUACION!$B$12:$F$1000,5,FALSE)","v":0}]
[null,"B.4 - RESPECTO DE LOS SERVICIOS SANITARIOS",null,null,null,null,null,null,null,null,{"$f":"+VLOOKUP(B174,EVALUACION!$B$12:$F$1000,5,FALSE)","v":0}]
[null,"B.4.1","Medida obligatoria\nPASO A PASO RESTAURANTES V.5","Todos los BAÑOS DEL ESTABLECIMIENTO deben disponer de: inodoros en buen estado de mantención con tapas, basureros con tapa, lavamanos, iluminación, jabón y papel higiénico en portarrollos. Evitar uso de toallas, mediante secador de aire caliente o dispensador de toallas de papel absorbente desechables.","• Registro gráfico de los requisitos y condiciones de higiene que deben cumplir todos los baños del establecimiento.",null,null," "," "," ",{"$f":"+VLOOKUP(B175,EVALUACION!$B$12:$F$1000,5,FALSE)","v":0}]
[null,"B.4.2","Medida obligatoria\nPASO A PASO RESTAURANTES V.5","Se debe evitar uso de TOALLAS no desechables y de uso comunitario. El secado de manos se deberá realizar mediante secador de aire caliente o dispensador de toallas de papel absorbente desechables.","• Registro gráfico de los requisitos y condiciones de higiene que deben cumplir todos los servicios sanitarios.",null,null," "," "," ",{"$f":"+VLOOKUP(B176,EVALUACION!$B$12:$F$1000,5,FALSE)","v":0}]
[null,"B.4.3","Medida obligatoria\nPASO A PASO RESTAURANTES V.5","Durante el funcionamiento del establecimiento, se deben LIMPIAR Y DESINFECTAR LOS SERVICIOS HIGIÉNICOS tanto como sea posible.\n\nSe debe reforzar o establecer un PLAN DE LIMPIEZA Y DESINFECCIÓN de los servicios sanitarios, asegurando su higiene y desinfección antes, durante y después de la prestación del servicio, siguiendo las orientaciones para el proceso de limpieza y desinfección de espacios de uso público y lugares de trabajo indicadas en el “Protocolo de Limpieza y Desinfección de Ambientes COVID-19” del MINSAL. Igualmente, durante el funcionamiento del establecimiento, los servicios higiénicos se deben limpiar y desinfectar tanto como sea posible.","• Plan de limpieza y desinfección de servicios higiénicos.\n• Registros de limpieza y desinfección de servicios sanitarios.",null,null," "," "," ",{"$f":"+VLOOKUP(B177,EVALUACION!$B$12:$F$1000,5,FALSE)","v":0}]
[null,"B.5.- RESPECTO DE LA COCINA",null,null,null,null,null,null,null,null,{"$f":"+VLOOKUP(B178,EVALUACION!$B$12:$F$1000,5,FALSE)","v":0}]
[null,"B.5.1","Medida obligatoria\nPASO A PASO RESTAURANTES V.5","\nSe debe contar con áreas de TRABAJO DIFERENCIADAS Y DELIMITADAS para la preparación o elaboración de alimentos, MARCANDO EN EL PISO la distancia mínima de distanciamiento de un metro para los trabajadores. Esta demarcación debe ser de un material resistente a la limpieza y químicos de desinfección, instalada como mínimo en:\n• Áreas de elaboración y preparación de alimentos \n• Área de espera (donde hacen fila los trabajadores): bodega\n• Área de selección, porcionado y montaje de alimentos\n• Área de expendio de alimentos\n• Otras áreas de producción de alimentos\n","• Registro fotográfico de la demarcación en el piso",null,null," "," "," ",{"$f":"+VLOOKUP(B179,EVALUACION!$B$12:$F$1000,5,FALSE)","v":0}]
[null,"B.5.2","Medida obligatoria\nPASO A PASO RESTAURANTES V.5","Se debe promover en los trabajadores, el LAVADO DE MANOS CONSTANTE, independiente del uso de guantes si la función lo requiere. Además se debe equipar la cocina con desinfectante para manos.","• Registro de medios de promoción o difusión del lavado de manos en trabajadores de la cocina.\n• Registro fotográfico de dispensadores con desinfectante para manos instalados en la cocina.",null,null," "," "," ",{"$f":"+VLOOKUP(B180,EVALUACION!$B$12:$F$1000,5,FALSE)","v":0}]
[null,"B.5.3","Medida obligatoria\nPASO A PASO RESTAURANTES V.5","El personal de la cocina deberá evitar el USO DEL CELULAR u otros objetos personales. De hacerlo, debe lavar posteriormente sus manos por al menos 20 segundos. Será necesario restringir o prohibir su uso al personal de cocina, al menos mientras realiza sus labores.","• Registro de restricción o prohibición del uso del celular al personal de cocina.\n • Registro de verificación del lavado de manos, por al menos 20 segundos.",null,null," "," "," ",{"$f":"+VLOOKUP(B181,EVALUACION!$B$12:$F$1000,5,FALSE)","v":0}]
[null,"B.5.4","Medida obligatoria\nPASO A PASO RESTAURANTES V.5","Se deberá establecer un PROCEDIMIENTO DE DESINFECCIÓN DE LA  VAJILLA. Los platos, cubiertos y demás utensilios idealmente deberán lavarse en máquinas lavavajillas, a ciclo completo, comprobando el correcto funcionamiento de estos, a fin de que sean correctas las temperaturas alcanzadas (superior a 80°C en el enjuague) y la dosificación de productos químicos. De no ser posible lo anterior, el lavado manual deberá ser profundo, debiendo dar cumplimiento a las temperaturas definidas para el correcto lavado. El secado deberá hacerse con papel absorbente desechable. Además deberá detallar el uso de químicos de desinfección, elementos de protección personal, personal autorizado, entre otros aspectos.","• Procedimiento para la limpieza y desinfección de la vajilla",null,null," "," "," ",{"$f":"+VLOOKUP(B182,EVALUACION!$B$12:$F$1000,5,FALSE)","v":0}]
[null,"B.5.5","Medida obligatoria\nPASO A PASO RESTAURANTES V.5","Se deberán LIMPIAR Y DESINFECTAR especialmente los desagües de la cocina, elementos con grasa y cualquier contenedor de comidas. Será necesario establecer un esquema de limpieza y desinfección, indicando las sustancias químicas, los EPP a utilizar, entre otros aspectos.","• Registro de control de limpieza y desinfección de los desagües de la cocina y elementos con grasa.",null,null," "," "," ",{"$f":"+VLOOKUP(B183,EVALUACION!$B$12:$F$1000,5,FALSE)","v":0}]
[null,"B.7.- MEDIDAS RELATIVA A LOS TRABAJADORES",null,null,null,null,null,null,null,null,{"$f":"+VLOOKUP(B184,EVALUACION!$B$12:$F$1000,5,FALSE)","v":0}]
[null,"B.7.1","Medida obligatoria\nPASO A PASO RESTAURANTES V.5","Se debe elaborar un Instructivo para efectuar el CONTROL DE ACCESO para todos los trabajadores y personas externas que necesiten ingresar al centro de trabajo, el cual debe contener como mínimo:\n• El control de  temperatura corporal al ingreso, exigir uso de mascarilla y solicitar declaración voluntaria de sintomatología asociada a COVID-19 y datos de contacto para efectos de trazabilidad. En caso de presentar sintomatología, prohibir ingreso.\n• Señalización de la ruta de ingreso y salida de los trabajadores al centro de trabajo, considerando que existen uno o varios accesos a los espacios de trabajo.","• Procedimiento de control de ingreso del centro de trabajo en el contexto del COVID-19.\n• Registros de control de temperatura y estado de salud.",null,null," "," "," ",{"$f":"+VLOOKUP(B185,EVALUACION!$B$12:$F$1000,5,FALSE)","v":0}]
[null,"B.7.2","Recomendación\nPASO A PASO RESTAURANTES V.5","Se sugiere convenir la DISTRIBUCIÓN DE LA JORNADA en diversos turnos, con el fin de evitar aglomeraciones y limitar la cantidad de trabajadores que comparten un mismo espacio, mientras dure la contingencia por COVID-19, asegurando un número menor a 50 personas compartiendo un mismo espacio laboral (área, oficina, piso, sección, etc.) y/o para adaptarse a la disponibilidad de transporte público. \n\nSe debe mantener un registro que incluya horarios de inicio y término de los turnos, con el número de trabajadores que lo componen.","• Registro de la distribución de la jornada de trabajo de cada espacio laboral",null,null," "," "," ",{"$f":"+VLOOKUP(B186,EVALUACION!$B$12:$F$1000,5,FALSE)","v":0}]
[null,"B.7.3","Recomendación\nPASO A PASO RESTAURANTES V.5","El establecimiento, en lo posible, deberá establecer SISTEMAS DE TURNOS entre grupos de trabajadores para labores críticas (ej. sistemas de trabajo 14x14). Evitando la superposición entre los trabajadores por turnos. ","• Copia instructivo administrativo que regula medida y difusión de este a trabajadores. Detalle sistema de turnos.",null,null," "," "," ",{"$f":"+VLOOKUP(B187,EVALUACION!$B$12:$F$1000,5,FALSE)","v":0}]
[null,"B.7.4","Recomendación\nPASO A PASO RESTAURANTES V.5","El establecimiento deberá FLEXIBILIZAR HORARIOS o celebrar pactos sobre horarios diferidos de ingreso y salida de los trabajadores, con el objeto de evitar aglomeraciones y/o adaptarse a la disponibilidad de transporte público.","• Copia instructivo administrativo que regula medida y difusión de este a trabajadores. Detalle distribución de horarios.",null,null," "," "," ",{"$f":"+VLOOKUP(B188,EVALUACION!$B$12:$F$1000,5,FALSE)","v":0}]
[null,"B.7.5","Recomendación\nPASO A PASO RESTAURANTES V.5","El establecimiento deberá EVALUAR FORMAS DE TRASLADO de trabajadores, con la finalidad de maximizar las medidas de prevención a aplicar y entregar insumos para el traslado, como mascarillas y alcohol gel.","• Copia instructivo administrativo que regula medida y difusión de este a trabajadores. Detalle evaluación de formas de traslado.",null,null," "," "," ",{"$f":"+VLOOKUP(B189,EVALUACION!$B$12:$F$1000,5,FALSE)","v":0}]
[null,"B.7.6","Recomendación\nPASO A PASO RESTAURANTES V.5","Se deben identificar los puntos críticos de AGLOMERACIÓN, mediante un layout operacional del centro de trabajo, los cuales deben ser controlados de manera estricta. \nSe deben establecer medidas para evitar dichos puntos (por ejemplo: distribución de turnos de descansos, pausas de trabajo, turnos en horario de colación, etc.), asegurando se respete el distanciamiento social de seguridad.","• Registro layout operacional del centro de trabajo con identificación de puntos críticos de aglomeración.\n• Medidas preventivas para evitar dichos puntos de aglomeración.",null,null," "," "," ",{"$f":"+VLOOKUP(B190,EVALUACION!$B$12:$F$1000,5,FALSE)","v":0}]
[null,"B.7.7","Medida obligatoria\nPASO A PASO RESTAURANTES V.5","El establecimiento deberá confeccionar, implementar y difundir a sus trabajadores un PROTOCOLO DE LIMPIEZA DE TRABAJADORES para ingresar al establecimiento, consistente en una serie de medidas sanitarias que se deberán ejecutar al momento de ingresar al establecimiento, considerando:\n\n• Llevar un cambio de ropa o muda para las jornada laboral.\n• Entregar delantal o uniforme, que se sugiere guardar y lavar por el establecimiento al término de cada turno para eviatr contcato con el exterior\n• Al llegar al establecimiento, lavar las manos con agua y jabón por a lo menos 20 segundos.\n• Botar mascarillas desechables al llegar y reemplazar por otra nueva durante su jornada laboral. En caso de usar mascarilla reutilizables en el traslado, guardar en una bolsa plástica y utilizar una mascarilla nueva durante la jornada laboral.","• Registro del protocolo de limpieza de trabajadores\n• Registros de difusión del protocolo a los trabajadores.",null,null," "," "," ",{"$f":"+VLOOKUP(B191,EVALUACION!$B$12:$F$1000,5,FALSE)","v":0}]
[null,"B.7.8","Medida obligatoria\nPASO A PASO RESTAURANTES V.5","Se deben facilitar las condiciones e implementos necesarios para asegurar la frecuente HIGIENIZACIÓN Y LAVADO DE MANOS en los trabajadores, siendo obligatorio que lo realicen cuando exista un cambio de actividad, recambio de guantes o en caso de que estos se rompan o cada 30 minutos, en caso de no cumplirse los requisitos anteriores. \n\nPara esto, el establecimiento deberá:\n\n• Contar con disponibilidad de agua, jabón y toalla de manos desechable en baños y otros lugares dispuesto para este fin.\n• Disponer de dispensadores de alcohol o alcohol gel en cantidad suficiente. Se debe considerar que la solución de alcohol debe ser de al menos un 60%.\n• Lavar las manos con agua y jabón cada vez que el profesional cambie de actividad o cada 30 minutos, durante al menos 20 segundos, además de instalar señalización (cartelería) con el método correcto del lavado de manos.\n• Mantener uniforme limpio y contar con uniformes o delantales de recambio en caso que sea necesario.\n• Evitar salir durante el turno\n• Evitar reuniones grupales. De ser necesarias, reducir en lo posible el número de participantes y evitar disponer de alimentos y bebestibles durante la reunión.\n\nAdemás, se debe capacitar a los trabajadores en el método correcto del lavado de manos e instalar señalización (cartelería) con el método.","• Registro gráfico de la medida implementada\n• Registro de infografía para el correcto lavado de manos.\n• Programa de limpieza con reposición de jabón y toalla de manos desechable\n• Registro de capacitación de trabajadores en el correcto lavado de manos",null,null," "," "," ",{"$f":"+VLOOKUP(B192,EVALUACION!$B$12:$F$1000,5,FALSE)","v":0}]
[null,"B.7.9","Medida obligatoria\nPASO A PASO RESTAURANTES V.5","Se deben EVITAR LAS REUNIONES GRUPALES: reuniones, charlas, capacitaciones, mesas de trabajo, etc,  favoreciendo las actividades vía videoconferencia, llamadas telefónicas o correos electrónicos.\n\nEn el estricto caso de ser requeridas estas actividades, se deben considerar las siguientes medidas:\n• Uso de lugares amplios que aseguren el espacio necesario para mantener el distanciamiento social. (de manera que los participantes estén al menos a 1 metro de distancia entre si).\n• Reducir el numero de personas a las estrictamente necesarias.\n• Contar con acceso a lavado de manos o en su defecto solución de alcohol gel, antes del ingreso a las instalaciones.\n• Mantener ventilación constante \n• Uso de mascarilla permanente\n• Evitar disponer de alimentos y bebestibles durante la reunión\n• Conservar los nombres, RUT y teléfonos de los participantes de la reunión durante al menos 1 mes.\n• Desinfección de las instalaciones después de su uso.","• Registro o comunicado de esta restricción\n• Documento con las medidas preventivas en caso de realizar actividades grupales",null,null," "," "," ",{"$f":"+VLOOKUP(B193,EVALUACION!$B$12:$F$1000,5,FALSE)","v":0}]
[null,"B.8.- MEDIDAS RELATIVAS A CLIENTES O USUARIOS",null,null,null,null,null,null,null,null,{"$f":"+VLOOKUP(B194,EVALUACION!$B$12:$F$1000,5,FALSE)","v":0}]
[null,"B.8.1","Recomendación\nPASO A PASO RESTAURANTES V.5","Se debe elaborar un Instructivo sobre el CONTROL DE ACCESO para los CLIENTES / USUARIOS que deseen ingresar al establecimiento. Se sugiere, efectuar el control de temperatura corporal, mediante un termómetro infrarrojo y/o realizar una revisión visual de su estado de salud, aplicando las directrices establecidas por el MINSAL para estos efectos.\n\nA las personas que presenten síntomas se debe aplicar el procedimiento para casos sospechosos, evitando que ingresen al establecimiento.\n\nEs recomendable informar la existencia y aplicación de esta medida, al momento de realizar la reserva, de manera que los clientes / usuarios, tengan pleno conocimiento de su aplicación, evitando con esto inconvenientes al momentos del arribo. ","• Instructivo sobre la forma de implementar el control de acceso al establecimiento en el contexto del COVID-19\n• Registros de control de temperatura y estado de salud.\n• Registro de difusión de la medida a clientes.",null,null," "," "," ",{"$f":"+VLOOKUP(B195,EVALUACION!$B$12:$F$1000,5,FALSE)","v":0}]
[null,"B.8.2","Medida obligatoria\nPASO A PASO RESTAURANTES V.5","Se debe solicitar a los CLIENTES desinfectar SUS MANOS con alcohol o alcohol gel y/o lavar con agua y jabón en lavaderos al ingreso y/o en sus mesas.","• Registro gráfico de la medida implementada",null,null," "," "," ",{"$f":"+VLOOKUP(B196,EVALUACION!$B$12:$F$1000,5,FALSE)","v":0}]
[null,"B.8.3","Medida obligatoria\nPASO A PASO RESTAURANTES V.5","Se deberá solicitar a los clientes GUARDAR sus MASCARILLAS de forma higiénica en bolsillos o carteras, evitando dejarlas en la mesa. Para esto será necesario generar un instructivo que indique al cliente la forma correcta de guardar su mascarilla, mientras consume los alimentos, evitando que la coloque sobre la superficie de la mesa.","• Instructivo sobre la forma correcta (higiénica) de guardar la mascarilla, mientras se consumen alimentos en el establecimiento en el contexto del COVID-19\n• Registro gráfico (cartelería, folletería, volante, etc.), con instrucciones para guardar mascarillas",null,null," "," "," ",{"$f":"+VLOOKUP(B197,EVALUACION!$B$12:$F$1000,5,FALSE)","v":0}]
[null,"B.8.4","Medida obligatoria\nPASO A PASO RESTAURANTES V.5","Se deben limitar las RESERVAS DE CLIENTES de acuerdo con la capacidad de aforo del establecimiento.","• Registro gráfico de la medida implementada",null,null," "," "," ",{"$f":"+VLOOKUP(B198,EVALUACION!$B$12:$F$1000,5,FALSE)","v":0}]
[null,"B.9.- MEDIDAS RELATIVAS A EXTERNOS",null,null,null,null,null,null,null,null,{"$f":"+VLOOKUP(B199,EVALUACION!$B$12:$F$1000,5,FALSE)","v":0}]
[null,"B.9.1","Medida obligatoria\nPASO A PASO RESTAURANTES V.5","Se debe elaborar un Instructivo sobre el CONTROL DE ACCESO para los PROVEEDORES que deseen ingresar al establecimiento. En lo posible, se debe efectuar el control de temperatura corporal, mediante un termómetro infrarrojo y/o realizar una revisión visual de su estado de salud, aplicando las directrices establecidas por el MINSAL para estos efectos.\n\nSe deberá solicitar al proveedor completar la declaración de estado de salud (ver anexo), la que podrá ser enviada por medios electrónicos o ser llenada a la llegada del proveedor.\n\nA los proveedores que presenten síntomas se debe aplicar el procedimiento para casos sospechosos, evitando que ingresen al centro de trabajo.","• Instructivo sobre la forma de implementar el control de acceso al establecimiento en el contexto del COVID-19\n• Registros de control de temperatura y estado de salud.",null,null," "," "," ",{"$f":"+VLOOKUP(B200,EVALUACION!$B$12:$F$1000,5,FALSE)","v":0}]
[null,"B.9.2","Medida obligatoria\nPASO A PASO RESTAURANTES V.5","En caso de INTERACCIÓN CON EMPRESAS EXTERNAS, hay que asegurar que en la interacción se cumpla con medidas preventivas. Informar sobre dichas medidas y pedir declaración jurada previa de que la empresa externa también está cumpliendo con estándares equivalentes, la que podrá ser enviada por medios electrónicos o ser llenada a la llegada del proveedor.","• Registros de medidas implementadas para asegurar  la debida interacción con empresas externas.\n• Registros de declaración jurada de empresas externas",null,null," "," "," ",{"$f":"+VLOOKUP(B201,EVALUACION!$B$12:$F$1000,5,FALSE)","v":0}]
[null,"B.9.3","Medida obligatoria\nPASO A PASO RESTAURANTES V.5","De ser necesario, establecer un punto de INGRESO INDEPENDIENTE PARA PROVEEDORES y horas de entregas escalonadas para evitar aforos. Este punto de ingreso se sanitizará y desinfectará frecuentemente de acuerdo a los criterios establecidos en este protocolo.\n\nCon la finalidad de asegurar la realización de la limpieza y desinfección de las superficies y ambientes en los lugares de recepción de proveedores, es recomendable establecer una programación que indique la frecuencia en que se debe efectuar, aplicando el procedimiento confeccionado por la empresa para estos efectos, según se establece en el Protocolo de Limpieza y Desinfección de Ambientes COVID-19.\n\nEsta programación debe considerar la limpieza y desinfección varias veces al día de las superficies de contacto más frecuente, tales como:\n\n• Manillas de las puertas de entrada\n• Pasamanos de las vías de acceso\n• Pasamanos de las escalas mecánicas\n• Ascensores y los botones de llamada, \n• Zonas de cajas y mesones de atención\n• Zonas de autoservicio\n• Baños (llaves de lavamanos y WC)\n• Áreas de recepción de mercaderías\n• Recipientes, wencos, pallets, u otras superficies para traslado de mercadería. \n• Entre otros","• Registro de la programación de limpieza y desinfección de las instalaciones",null,null," "," "," ",{"$f":"+VLOOKUP(B202,EVALUACION!$B$12:$F$1000,5,FALSE)","v":0}]
[null,"A",null,null,null,null,null,null,null,null,{"$f":"+VLOOKUP(B203,EVALUACION!$B$12:$F$1000,5,FALSE)","v":0}," "]
[null,"C.- CASINOS DE JUEGO - Protocolo de Manejo y Prevencion ante COVID-19 en Casinos y establecimientos de juegos y entretención Versión 3 (19 Feb 2021)",null,null,null,null,null,null,null,null,{"$f":"+VLOOKUP(B204,EVALUACION!$B$12:$F$1000,5,FALSE)","v":0}]
[null,"A",null,null,null,null,null,null,null,null,{"$f":"+VLOOKUP(B205,EVALUACION!$B$12:$F$1000,5,FALSE)","v":0}," "]
[null,"C.1.- FASES PASO A PASO",null,null,null,null,null,null,null,null,{"$f":"+VLOOKUP(B206,EVALUACION!$B$12:$F$1000,5,FALSE)","v":0}]
[null,"C.1.1","Medida obligatoria\nPASO A PASO \nCASINOS V.3","En todos los pasos, se prohíbe el CONSUMO DE ALIMENTOS Y BEBIDAS, en los lugares de máquinas de juego y en los lugares de mesas de juego.","• Registro gráfico de la medida implementada",null,null," "," "," ",{"$f":"+VLOOKUP(B207,EVALUACION!$B$12:$F$1000,5,FALSE)","v":0}]
[null,"C.1.2","Medida obligatoria\nPASO A PASO \nCASINOS V.3","Los requisitos para el funcionamiento de los casinos de juegos dependenderán de la etapa del Plan Paso a Paso en que se encuentre el territorio donde se emplaza el casino o sala de juego.\n\nEn Paso 2 Transición:\n1.- En espacios Abiertos:\nSe permite el funcionamiento de máquinas de juego, bajo las siguientes reglas:\n• Distanciamiento mínimo de al menos un metro lineal entre los asientos de cada máquina de juego, disponiendo además de barreras físicas al costado de cada una de las máquinas, de manera que exista una separación física que impida el contacto directo entre personas; o, dos metros lineales entre los asientos de cada máquina.\n\nNo se permite el funcionamiento de mesas de juego, ni actividades en espacios cerrados.\n\nEn Paso 3 Preparación:\n1.- En espacios Abiertos.\nSe permite el funcionamiento de máquinas de juego, bajo las siguientes reglas:\n• Distanciamiento mínimo de al menos un metro lineal entre los asientos de cada máquina de juego, disponiendo además de barreras físicas al costado de cada una de las máquinas, de manera que exista una separación física que impida el contacto directo entre personas; o, dos metros lineales entre los asientos de cada máquina.\n\n2.- En espacios cerrados\nLos espacios cerrados deberán contar con ventilación adecuada y permanente.\nEl aforo máximo debe ser de 1 persona por cada 8 metros cuadrados de la superficie útil* del recinto.\nSe permite el funcionamiento de máquinas de juego, bajo las siguientes reglas:\n• Distanciamiento mínimo de al menos dos metros lineales entre los asientos de cada máquina de juego, disponiendo además de barreras físicas al costado de cada una de las máquinas, de manera que exista una separación física que impida el contacto directo entre personas; o, tres metros lineales entre los asientos de cada máquina.\n\nSe permite el funcionamiento de mesas de juego, bajo las siguientes reglas:\n• Distanciamiento mínimo de al menos un metro lineal entre cada participante, disponiendo además de barreras físicas que separen a cada uno de ellos de manera que exista una separación física que impida el contacto directo entre personas.\n• Las mesas de juegos deberán estar separadas entre sí, por una distancia mínima de dos metros lineales, medido desde sus bordes.\n• En la zona de mesas de juegos solo puede haber jugadores, se prohíbe el público.\n\nEn Paso 4 Apertura Inicial:\n1. Espacios abiertos:\nSe permite el funcionamiento de máquinas de juego, bajo las siguientes reglas:\n• Distanciamiento mínimo de al menos un metro lineal entre los asientos de cada máquina de juego, disponiendo además de barreras físicas al costado de cada una de las máquinas, de manera que exista una separación física que impida el contacto directo entre personas; o, dos metros lineales entre los asientos de cada máquina.\n\n2. Espacios cerrados:\nLos espacios cerrados deberán contar con ventilación adecuada y permanente.\nEl aforo máximo debe ser de 1 persona por cada 4 metros cuadrados de la superficie útil* del recinto.\nSe permite el funcionamiento de máquinas de juego, bajo las siguientes reglas:\n• Distanciamiento mínimo de al menos un metro lineal entre los asientos de cada máquina de juego, disponiendo además de barreras físicas al costado de cada una de las máquinas, de manera que exista una separación física que impida el contacto directo entre personas; o, dos metros lineales entre los asientos de cada máquina.\nSe permite el funcionamiento de mesas de juego, bajo las siguientes reglas:\n• Distanciamiento mínimo de al menos un metro lineal entre cada participante, disponiendo además de barreras físicas que separen a cada uno de ellos de manera que exista una separación física que impida el contacto directo entre personas.\n• Las mesas de juegos deberán estar separadas entre sí, por una distancia mínima de dos metros lineales, medido desde sus bordes.\n• En la zona de mesas de juegos solo puede haber jugadores, se prohíbe el público.\n\n*Superficie útil: aquella parte de la superficie total específicamente habilitada para uso de público, es decir, no incluye la superficie de muros, circulaciones verticales y aquellos lugares con acceso restringido a público, tales como oficinas de administración, bodegas o cocinas y por superficie\nútil de un espacio abierto aquella específicamente habilitada para uso de público, excluyendo otros espacios tales como lugares habilitados para el estacionamiento de automóviles o espacios del recinto en desuso. Para el cálculo del aforo no se considerará las personas que trabajan en el lugar.","• Registro gráfico de las medidas implementadas en el local.",null,null," "," "," ",{"$f":"+VLOOKUP(B208,EVALUACION!$B$12:$F$1000,5,FALSE)","v":0}]
[null,"C.2.- RELATIVAS AL LUGAR",null,null,null,null,null,null,null,null,{"$f":"+VLOOKUP(B209,EVALUACION!$B$12:$F$1000,5,FALSE)","v":0}]
[null,"C.2.1","Medida obligatoria\nPASO A PASO \nCASINOS V.3","La administración debe definir, implementar y monitorear un PLAN DE LIMPIEZA Y DESINFECCIÓN, de acuerdo a las indicaciones del Protocolo de Limpieza y Desinfección de Ambientes establecido en el Protocolo Nacional “Modo de Vida COVID”, considerando:\n\n• Disponer de contenedores (basureros) para residuos en distintas áreas y lugares comunes del establecimiento.\n• Utilizar desinfectantes que cuenten con registro del Instituto de Salud Pública (ISP).\n• Limpiar las superficies de alta frecuencia de contacto (como cajeros automáticos, manijas de las puertas, cajas registradoras, estaciones de trabajo, llaves de grifos, compartimientos en baños, rieles alrededor de las mesas, sillas, botones o puntos de contacto en las máquinas tragamonedas) dentro del casino al menos una vez al día.\n• Disponer de sistemas de limpieza y desinfección de fichas, naipes, dados o piezas de un juego.\n• En caso de pago con tarjetas, limpiar el POS de forma permanente. En caso de pago con efectivo, lavar las manos después de recibir el dinero y entregar el vuelto.\n• Instalar dispensadores de solución de alcohol al 70% en puntos debidamente identificados al interior de las dependencias del casino.\n• Promover que clientes realicen desinfección de máquinas previo a su utilización con toallitas desinfectantes o entregando kit personal de limpieza al ingreso.\n• Reemplazar frecuentemente objetos compartidos (como dados, naipes, fichas) durante los juegos en las mesas, asegurando que haya suministros suficientes para recambio y limpieza de cada turno.\n• Generar flujos de circulación dentro de los recintos que permitan reducir al máximo la interacción entre clientes.\n• Señalizar tránsito y demarcar distanciamiento de un metro en el piso, mediante adhesivos u otros medios, especialmente en salas y lugares donde se forman filas.\n• Indicar claramente por medio de señalización visible y permanente la obligación de uso de mascarillas y las recomendaciones de autocuidado entre las personas que ingresan o permanecen al interior del establecimiento.","• Registro del Plan de limpieza y desinfección del establecimiento, así como la implementación necesaria.",null,null," "," "," ",{"$f":"+VLOOKUP(B210,EVALUACION!$B$12:$F$1000,5,FALSE)","v":0}]
[null,"C.3.- ENTRADAS Y SALIDAS DEL CASINO",null,null,null,null,null,null,null,null,{"$f":"+VLOOKUP(B211,EVALUACION!$B$12:$F$1000,5,FALSE)","v":0}]
[null,"C.3.1","Medida obligatoria\nPASO A PASO \nCASINOS V.3","En la  RECEPCIÓN de CLIENTES, se deberán adoptar una serie de MEDIDAS, tales como:\n\n• El personal de la recepción deberá mantener un control del aforo.\n• Al ingreso se deberá medir la temperatura del cliente con termómetro infrarrojo y/o hacer una revisión visual de su estado de salud. En caso de presentar algún síntoma, se debe prohibir su ingreso.\n• Se dispondrá de un sistema de control y registro de clientes e información de contacto, con el objeto de poder realizar trazabilidad.\n• Establecer en las entradas y salidas mecanismos de desinfección de manos.\n• Se debe verificar que cada usuario que ingrese al recinto utilice mascarilla que cubra boca y nariz.\n• Señalizar en todas las entradas sobre:\no El aforo máximo permitido.\no El distanciamiento físico mínimo que se debe respetar.\no Las obligaciones y recomendaciones generales de autocuidado.","• Registro de medidas adoptadas en recepción de clientes.",null,null," "," "," ",{"$f":"+VLOOKUP(B212,EVALUACION!$B$12:$F$1000,5,FALSE)","v":0}]
[null,"C.3.2","Recomendación\nPASO A PASO \nCASINOS V.3","Se sugiere que el servicio de guardarropía se realice entregando una funda o bolsa para que el mismo cliente deposite sus prendas en el interior de ésta. De no ser posible lo anterior, el servicio deberá ser suspendido.","• Registro de medidas adoptadas en recepción de clientes.",null,null," "," "," ",{"$f":"+VLOOKUP(B213,EVALUACION!$B$12:$F$1000,5,FALSE)","v":0}]
[null,"C.3.3","Medida obligatoria\nPASO A PASO \nCASINOS V.3","Se deberá RESTRINGIR LA CANTIDAD DE ACCESOS disponibles, debiendo dejar habilitados las entradas y salidas separadas, con flujo unidireccional, para mantener la distancia de seguridad.","• Registro de imágenes de accesos principales (entrada y salida).",null,null," "," "," ",{"$f":"+VLOOKUP(B214,EVALUACION!$B$12:$F$1000,5,FALSE)","v":0}]
[null,"C.4.- SALAS DE MAQUINAS, MESAS Y BINGOS",null,null,null,null,null,null,null,null,{"$f":"+VLOOKUP(B215,EVALUACION!$B$12:$F$1000,5,FALSE)","v":0}]
[null,"C.4.1","Medida obligatoria\nPASO A PASO \nCASINOS V.3","Las máquinas deberán ser LIMPIADAS y DESINFECTADAS al inicio y al término de la jornada, instalando un distintivo que indique dicha condición. Se debe elaborar un PROCEDIMIENTO DE TRABAJO SEGURO (PTS), para la limpieza y desinfección de todos los espacios del establecimiento, incluyendo las maquinas de juego. Dicho PTS, debe estar basado en el protocolo establecido por el Ministerio de Salud para estos efectos. El PTS deberá estar disponible en todo momento para ser presentado a la autoridad de salud cuando ésta lo requiera.\n\n\n• El cliente podrá hacer uso de las máquinas que tengan el distintivo de higienizadas y que no se encuentren bloqueadas o deshabilitadas.\n• Los clientes tendrán a su disposición elementos de limpieza y desinfección para su uso continuo, ubicados en puntos que estarán debidamente identificados.\n• Se dispondrá en puntos específicos toallas desinfectantes para la utilización de los clientes para la limpieza y desinfección de máquinas previo a su utilización o en su defecto se podrá hacer entrega de kit personales para limpieza y desinfección de máquinas.\n• El personal de sala mantendrá en todo momento limpios y desinfectados los elementos de uso frecuente del usuario, como botoneras, billeteras, pantallas, etc.\n• El supervisor además llevará un control estricto de higienización cada 2 horas y lo reflejará en un documento compartido diariamente.\n• Se deberá solicitar a los clientes (jugadores), evitar el intercambio de fichas u otros elementos entre ellos","• Registro del procedimiento de trabajo seguro que establece las formas de trabajo y medidas preventivas al momento de realizar tareas de limpieza y desinfección de ambientes.",null,null," "," "," ",{"$f":"+VLOOKUP(B216,EVALUACION!$B$12:$F$1000,5,FALSE)","v":0}]
[null,"C.4.2","Medida obligatoria\nPASO A PASO \nCASINOS V.3","Se debe DEMARCAR EL DISTANCIAMIENTO de un metro en las mesas, a fin de asegurar el distanciamiento de al menos un metro lineal entre personas.\n\nEn la imposibilidad de poder cumplir con un metro de distancia de separación entre clientes, se podrá disponer de barreras acrílicas al costado de cada una de las máquinas o mesas, de manera que exista una separación física que impida el contacto directo entre ellas.","• Registro gráfico de la medida implementada",null,null," "," "," ",{"$f":"+VLOOKUP(B217,EVALUACION!$B$12:$F$1000,5,FALSE)","v":0}]
[null,"C.4.3","Medida obligatoria\nPASO A PASO \nCASINOS V.3","Las MÁQUINAS DE JUEGO se habilitarán manteniendo una distancia de separación de dos metros lineales entre ellas.","• Registro gráfico de la medida implementada",null,null," "," "," ",{"$f":"+VLOOKUP(B218,EVALUACION!$B$12:$F$1000,5,FALSE)","v":0}]
[null,"C.5.- BARES, RESTAURANTES Y COCINAS DENTRO DEL CASINO",null,null,null,null,null,null,null,null,{"$f":"+VLOOKUP(B219,EVALUACION!$B$12:$F$1000,5,FALSE)","v":0}]
[null,"C.5.1","Medida obligatoria\nPASO A PASO \nCASINOS V.3","La apertura de bares y restaurantes deberá regirse por lo que indique la autoridad sanitaria en relación al paso en que se encuentre la comuna donde esté emplazado el establecimiento.\n\nEn este ámbito, los establecimientos deberán regirse por lo indicado en el protocolo de restaurantes, cafés y otros establecimientos análogos.","• Registro gráfico de la medida implementada",null,null," "," "," ",{"$f":"+VLOOKUP(B220,EVALUACION!$B$12:$F$1000,5,FALSE)","v":0}]
[null,"C.6.- SHOWS",null,null,null,null,null,null,null,null,{"$f":"+VLOOKUP(B221,EVALUACION!$B$12:$F$1000,5,FALSE)","v":0}]
[null,"C.6.1","Medida obligatoria\nPASO A PASO \nCASINOS V.3","Los shows deberán regirse por la normativa de eventos contenida en la Resolución Exenta Número 43 del Ministerio de Salud, en función del plan Paso a Paso.\n\nLa realización de SHOWS con público se deberá regir por las condiciones de apertura y protocolo de “cines, teatros o lugares análogos”.","• Registro gráfico de la medida implementada",null,null," "," "," ",{"$f":"+VLOOKUP(B222,EVALUACION!$B$12:$F$1000,5,FALSE)","v":0}]
[null,"C.7.- RESPECTO DE LOS SERVICIOS SANITARIOS",null,null,null,null,null,null,null,null,{"$f":"+VLOOKUP(B223,EVALUACION!$B$12:$F$1000,5,FALSE)","v":0}]
[null,"C.7.1","Medida obligatoria\nPASO A PASO \nCASINOS V.4","Todos los BAÑOS DEL ESTABLECIMIENTO deben disponer de: inodoros en buen estado de mantención con tapas, basureros con tapa, lavamanos, iluminación, jabón y papel higiénico en portarrollos. Evitar uso de toallas, mediante secador de aire caliente o dispensador de toallas de papel absorbente desechables.","• Registro gráfico de los requisitos y condiciones de higiene que deben cumplir todos los baños del establecimiento.",null,null," "," "," ",{"$f":"+VLOOKUP(B224,EVALUACION!$B$12:$F$1000,5,FALSE)","v":0}]
[null,"C.7.2","Medida obligatoria\nPASO A PASO \nCASINOS V.4","Durante el funcionamiento del casino, se deberán LIMPIAR Y DESINFECTAR LOS SERVICIOS HIGIÉNICOS tanto como sea posible.\n\nSe debe reforzar o establecer un PLAN DE LIMPIEZA Y DESINFECCIÓN de los servicios sanitarios, asegurando su higiene y desinfección antes, durante y después de la prestación del servicio, siguiendo las orientaciones para el proceso de limpieza y desinfección de espacios de uso público y lugares de trabajo indicadas en el “Protocolo de Limpieza y Desinfección de Ambientes COVID-19” del MINSAL. Igualmente, durante el funcionamiento del establecimiento, los servicios higiénicos se deben limpiar y desinfectar tanto como sea posible.","• Plan de limpieza y desinfección de servicios higiénicos.\n• Registros de limpieza y desinfección de servicios sanitarios.",null,null," "," "," ",{"$f":"+VLOOKUP(B225,EVALUACION!$B$12:$F$1000,5,FALSE)","v":0}]
[null,"C.7.3","Medida obligatoria\nPASO A PASO \nCASINOS V.4","Se dispondrá de SEÑALIZACIÓN GRÁFICA relacionada con el proceso de lavado de manos, uso de jabón y mantener el distanciamiento entre personas.","• Registro gráfico de la medida implementada",null,null," "," "," ",{"$f":"+VLOOKUP(B226,EVALUACION!$B$12:$F$1000,5,FALSE)","v":0}]
[null,"C.8.- RESPECTO DE LA VENTILACIÓN",null,null,null,null,null,null,null,null,{"$f":"+VLOOKUP(B227,EVALUACION!$B$12:$F$1000,5,FALSE)","v":0}]
[null,"C.8.1","Medida obligatoria\nPASO A PASO \nCASINOS V.4","Se debe VENTILAR los AMBIENTES CERRADOS de forma adecuada y permanente.\n\n• Se entenderá por ventilación adecuada y permanente natural, aquella que consiste en, al menos, una ventana o puerta que permita la entrada de aire y luz del exterior, de un tamaño mínimo del 4% de toda el área utilizada por los usuarios, debiendo permanecer abiertas y libres de obstrucciones durante todo el funcionamiento de dicho lugar.\n\n• Se entenderá por ventilación adecuada y permanente artificial, aquella que consiste en sistemas de extracción de aire que cumplan con el estándar Ashrae 62.1-2019, siempre que estos sistemas estén en funcionamiento permanente.","• Registro del cumplimiento de la medida\n• Registro de antecedentes técnicos del sistema de ventilación existente.",null,null," "," "," ",{"$f":"+VLOOKUP(B228,EVALUACION!$B$12:$F$1000,5,FALSE)","v":0}]
[null,"C.9.- PARA LA ENTREGA DE PREMIOS",null,null,null,null,null,null,null,null,{"$f":"+VLOOKUP(B229,EVALUACION!$B$12:$F$1000,5,FALSE)","v":0}]
[null,"C.9.1","Medida obligatoria\nPASO A PASO \nCASINOS V.3","Se deberá MANEJAR todo MOVIMIENTO de DINERO en las cajas de casino sin excepción. En caso de que sea necesario hacer el pago de un premio en efectivo, el dinero tiene que pasar por el menor trámite posible, y entregarse en una caja o bolsa de plástico previamente desinfectada.\n\nSe debe realizar lavado de manos después de cada movimiento de dinero incluso después de depositarlo en cajas o bolsas para la entrega de premios.","• Registro gráfico de la medida implementada",null,null," "," "," ",{"$f":"+VLOOKUP(B230,EVALUACION!$B$12:$F$1000,5,FALSE)","v":0}]
[null,"C.9.2","Medida obligatoria\nPASO A PASO \nCASINOS V.3","No se deberá realizar ENTREGA de PREMIOS directamente a las manos del jugador, disponerlos en una superficie que debe limpiarse después de cada entrega. La persona que entrega el premio debe intentar mantener 1 metro de distancia del jugador, en todo momento.\n\nSe debe destinar un solo lugar del establecimiento para la entrega de los premios o dinero ganado y establecer un único responsable para la entrega.\n\nEn el lugar que se destine para la entrega de los premios se debe demarcar en el suelo líneas que indiquen una separación de al menos 1 metro lineal entre quienes formen la fila.","• Registro gráfico de la medida implementada",null,null," "," "," ",{"$f":"+VLOOKUP(B231,EVALUACION!$B$12:$F$1000,5,FALSE)","v":0}]
[null,"C.10.- MEDIDAS RELATIVA A LOS TRABAJADORES",null,null,null,null,null,null,null,null,{"$f":"+VLOOKUP(B232,EVALUACION!$B$12:$F$1000,5,FALSE)","v":0}]
[null,"C.10.1","Medida obligatoria\nPASO A PASO \nCASINOS V.3","Se debe elaborar un PROCEDIMIENTO DE TRABAJO SEGURO, basado en el protocolo establecido por el Ministerio de Salud para estos efectos, que considere - al menos - los siguientes puntos:\n• Formas de efectuar estas labores y los controles relacionados\n• Medidas preventivas asociadas a los productos de limpieza y desinfección ocupados\n• Elementos de protección personal requeridos, indicando como deben ser utilizados\n• Limpieza y desinfección de elementos y EPP reutilizables\n• Información de las hojas de seguridad (HDS)\n• Manipulación y disposición de residuos, EPP desechables utilizados y otros elementos que deban eliminar\n\nUna vez elaborado, se debe INFORMAR y CAPACITAR sobre el procedimiento de trabajo seguro a todos los trabajadores y trabajadoras que realizan las TAREAS DE LIMPIEZA Y DESINFECCIÓN de las instalaciones.\n\nSe debe mantener un registro actualizado (medio de verificación) de los trabajadores que se han capacitado en este tema, el que deberá estar disponible en todo momento para ser presentado a la autoridad de salud cuando ésta lo requiera.\n\nEste PTS deberá estar disponible en todo momento para ser presentado a la autoridad de salud cuando ésta lo requiera.","• Registro del procedimiento de trabajo seguro para la limpieza y desinfección de las instalaciones, específico para COVID-19.\n• Registro de colaboradores capacitados (considerando como mínimo, nombre, RUT, cargo y firma del trabajador).",null,null," "," "," ",{"$f":"+VLOOKUP(B233,EVALUACION!$B$12:$F$1000,5,FALSE)","v":0}]
[null,"C.10.2","Medida obligatoria\nPASO A PASO \nCASINOS V.3","Se deben ENTREGAR periódicamente los ELEMENTOS PROTECCIÓN PERSONAL (EPP) a todos los trabajadores que realicen labores de limpieza y desinfección en el centro, considerando a lo menos:\n\n• Guantes desechables o reutilizables, que sean resistentes impermeables, manga larga (no quirúrgicos); \n• Mascarilla para evitar propagación del virus COVID-19.\n• Pechera desechable o reutilizable.\n• Otros, conforme a los peligros presentes y los indicado en las Hojas de Seguridad (HDS) de los productos utilizados. ","• Registro de nómina o matriz de EPP asignados por cargo, función, peligro o de acuerdo a como la empresa lo tenga definido.\n• Registros de entrega de EPP a los trabajadores.\n• Registros de observaciones de seguridad (uso de los EPP).",null,null," "," "," ",{"$f":"+VLOOKUP(B234,EVALUACION!$B$12:$F$1000,5,FALSE)","v":0}]
[null,"C.11.- TRABAJADORES INTERNOS",null,null,null,null,null,null,null,null,{"$f":"+VLOOKUP(B235,EVALUACION!$B$12:$F$1000,5,FALSE)","v":0}]
[null,"C.11.1","Medida obligatoria\nPASO A PASO \nCASINOS V.3","Se debe elaborar un Instructivo para efectuar el CONTROL DE ACCESO para todos los trabajadores y personas externas que necesiten ingresar al centro de trabajo, el cual debe contener como mínimo:\n• El control de  temperatura corporal al ingreso, exigir uso de mascarilla y solicitar declaración voluntaria de sintomatología asociada a COVID-19 y datos de contacto para efectos de trazabilidad. En caso de presentar sintomatología, prohibir ingreso.\n• Señalización de la ruta de ingreso y salida de los trabajadores al centro de trabajo, considerando que existen uno o varios accesos a los espacios de trabajo.","• Procedimiento de control de ingreso del centro de trabajo en el contexto del COVID-19.\n• Registros de control de temperatura y estado de salud.",null,null," "," "," ",{"$f":"+VLOOKUP(B236,EVALUACION!$B$12:$F$1000,5,FALSE)","v":0}]
[null,"C.11.2","Medida obligatoria\nPASO A PASO \nCASINOS V.3","Se sugiere convenir la DISTRIBUCIÓN DE LA JORNADA en diversos turnos, con el fin de evitar aglomeraciones y limitar la cantidad de trabajadores que comparten un mismo espacio, mientras dure la contingencia por COVID-19, asegurando un número menor a 50 personas compartiendo un mismo espacio laboral (área, oficina, piso, sección, etc.) y/o para adaptarse a la disponibilidad de transporte público. \n\nSe debe mantener un registro que incluya horarios de inicio y término de los turnos, con el número de trabajadores que lo componen.","• Registro de la distribución de la jornada de trabajo de cada espacio laboral",null,null," "," "," ",{"$f":"+VLOOKUP(B237,EVALUACION!$B$12:$F$1000,5,FALSE)","v":0}]
[null,"C.11.3","Medida obligatoria\nPASO A PASO \nCASINOS V.3","El establecimiento, en lo posible, deberá establecer SISTEMAS DE TURNOS entre grupos de trabajadores, evitando la interacción entre grupos. (ej. sistemas de trabajo 14x14).","• Copia instructivo administrativo que regula medida y difusión de este a trabajadores. Detalle sistema de turnos.",null,null," "," "," ",{"$f":"+VLOOKUP(B238,EVALUACION!$B$12:$F$1000,5,FALSE)","v":0}]
[null,"C.11.4","Medida obligatoria\nPASO A PASO \nCASINOS V.3","El establecimiento deberá FLEXIBILIZAR HORARIOS o celebrar pactos sobre horarios diferidos de ingreso y salida de los trabajadores, con el objeto de evitar aglomeraciones y/o adaptarse a la disponibilidad de transporte público.","• Copia instructivo administrativo que regula medida y difusión de este a trabajadores. Detalle distribución de horarios.",null,null," "," "," ",{"$f":"+VLOOKUP(B239,EVALUACION!$B$12:$F$1000,5,FALSE)","v":0}]
[null,"C.11.5","Medida obligatoria\nPASO A PASO \nCASINOS V.3","El establecimiento deberá EVALUAR FORMAS DE TRASLADO de trabajadores, con la finalidad de maximizar las medidas de prevención a aplicar y entregar insumos para el traslado, como mascarillas y alcohol gel.","• Copia instructivo administrativo que regula medida y difusión de este a trabajadores. Detalle evaluación de formas de traslado.",null,null," "," "," ",{"$f":"+VLOOKUP(B240,EVALUACION!$B$12:$F$1000,5,FALSE)","v":0}]
[null,"C.11.6","Medida obligatoria\nPASO A PASO \nCASINOS V.3","Se deben identificar los puntos críticos de AGLOMERACIÓN, mediante un layout operacional del centro de trabajo, los cuales deben ser controlados de manera estricta. \nSe deben establecer medidas para evitar dichos puntos (por ejemplo: distribución de turnos de descansos, pausas de trabajo, turnos en horario de colación, etc.), asegurando se respete el distanciamiento social de seguridad.","• Registro layout operacional del centro de trabajo con identificación de puntos críticos de aglomeración.\n• Medidas preventivas para evitar dichos puntos de aglomeración.",null,null," "," "," ",{"$f":"+VLOOKUP(B241,EVALUACION!$B$12:$F$1000,5,FALSE)","v":0}]
[null,"C.11.7","Medida obligatoria\nPASO A PASO \nCASINOS V.3","El establecimiento deberá confeccionar, implementar y difundir a sus trabajadores un PROTOCOLO DE LIMPIEZA DE TRABAJADORES para ingresar al establecimiento, consistente en una serie de medidas sanitarias que se deberán ejecutar al momento de ingresar al establecimiento, considerando:\n\n• Llevar un cambio de ropa o muda para las jornada laboral.\n• Al llegar al establecimiento, lavar las manos con agua y jabón por a lo menos 20 segundos, o en su defecto solución de alcohol al 70%.\n• Desechar mascarillas desechables al llegar y reemplazar por otra nueva durante su jornada laboral. En caso de usar mascarilla reutilizables en el traslado, guardar en una bolsa plástica y utilizar una mascarilla nueva durante la jornada laboral.\n• Evitar salir del establecimiento durante el turno.","• Registro del protocolo de limpieza de trabajadores\n• Registros de difusión del protocolo a los trabajadores.",null,null," "," "," ",{"$f":"+VLOOKUP(B242,EVALUACION!$B$12:$F$1000,5,FALSE)","v":0}]
[null,"C.11.8","Medida obligatoria\nPASO A PASO \nCASINOS V.3","Se deben EVITAR LAS REUNIONES GRUPALES: reuniones, charlas, capacitaciones, mesas de trabajo, etc,  favoreciendo las actividades vía videoconferencia, llamadas telefónicas o correos electrónicos.\n\nEn el estricto caso de ser requeridas estas actividades, se deben considerar las siguientes medidas:\n• Uso de lugares amplios que aseguren el espacio necesario para mantener el distanciamiento social. (de manera que los participantes estén al menos a 1 metro de distancia entre si).\n• Reducir el numero de personas a las estrictamente necesarias.\n• Contar con acceso a lavado de manos o en su defecto solución de alcohol gel, antes del ingreso a las instalaciones.\n• Mantener ventilación constante \n• Uso de mascarilla permanente\n• Evitar disponer de alimentos y bebestibles durante la reunión\n• Conservar los nombres, RUT y teléfonos de los participantes de la reunión durante al menos 1 mes.\n• Desinfección de las instalaciones después de su uso.","• Registro o comunicado de esta restricción\n• Documento con las medidas preventivas en caso de realizar actividades grupales",null,null," "," "," ",{"$f":"+VLOOKUP(B243,EVALUACION!$B$12:$F$1000,5,FALSE)","v":0}]
[null,"C.12.- RESPECTO A EXTERNOS",null,null,null,null,null,null,null,null,{"$f":"+VLOOKUP(B244,EVALUACION!$B$12:$F$1000,5,FALSE)","v":0}]
[null,"C.12.1","Medida obligatoria\nPASO A PASO \nCASINOS V.3","Se debe elaborar un Instructivo sobre el CONTROL DE ACCESO para los PROVEEDORES que deseen ingresar al establecimiento. En lo posible, se debe efectuar el control de temperatura corporal, mediante un termómetro infrarrojo y/o realizar una revisión visual de su estado de salud, aplicando las directrices establecidas por el MINSAL para estos efectos.\n\nSe deberá solicitar al proveedor completar la declaración de estado de salud (ver anexo), la que podrá ser enviada por medios electrónicos o ser llenada a la llegada del proveedor.\n\nA los proveedores que presenten síntomas se debe aplicar el procedimiento para casos sospechosos, evitando que ingresen al centro de trabajo.","• Instructivo sobre la forma de implementar el control de acceso al establecimiento en el contexto del COVID-19\n• Registros de control de temperatura y estado de salud.",null,null," "," "," ",{"$f":"+VLOOKUP(B245,EVALUACION!$B$12:$F$1000,5,FALSE)","v":0}]
[null,"C.12.2","Medida obligatoria\nPASO A PASO \nCASINOS V.3","En caso de INTERACCIÓN CON EMPRESAS EXTERNAS, hay que asegurar que en la interacción se cumpla con medidas preventivas. Informar sobre dichas medidas y pedir declaración jurada previa de que la empresa externa también está cumpliendo con estándares equivalentes, la que podrá ser enviada por medios electrónicos o ser llenada a la llegada del proveedor.","• Registros de medidas implementadas para asegurar  la debida interacción con empresas externas.\n• Registros de declaración jurada de empresas externas",null,null," "," "," ",{"$f":"+VLOOKUP(B246,EVALUACION!$B$12:$F$1000,5,FALSE)","v":0}]
[null,"C.12.3","Medida obligatoria\nPASO A PASO \nCASINOS V.3","De ser necesario, establecer un punto de INGRESO INDEPENDIENTE PARA PROVEEDORES y horas de entregas escalonadas para evitar aforos. Este punto de ingreso se sanitizará y desinfectará frecuentemente de acuerdo a los criterios establecidos en este protocolo.\n\nCon la finalidad de asegurar la realización de la limpieza y desinfección de las superficies y ambientes en los lugares de recepción de proveedores, es recomendable establecer una programación que indique la frecuencia en que se debe efectuar, aplicando el procedimiento confeccionado por la empresa para estos efectos, según se establece en el Protocolo de Limpieza y Desinfección de Ambientes COVID-19.\n\nEsta programación debe considerar la limpieza y desinfección varias veces al día de las superficies de contacto más frecuente, tales como:\n\n• Manillas de las puertas de entrada\n• Pasamanos de las vías de acceso\n• Pasamanos de las escalas mecánicas\n• Ascensores y los botones de llamada, \n• Zonas de cajas y mesones de atención\n• Zonas de autoservicio\n• Baños (llaves de lavamanos y WC)\n• Áreas de recepción de mercaderías\n• Recipientes, wencos, pallets, u otras superficies para traslado de mercadería. \n• Entre otros","• Registro de la programación de limpieza y desinfección de las instalaciones",null,null," "," "," ",{"$f":"+VLOOKUP(B247,EVALUACION!$B$12:$F$1000,5,FALSE)","v":0}]
[null,"BORRAR","BORRAR","BORRAR","BORRAR","BORRAR","BORRAR","BORRAR","BORRAR","BORRAR","BORRAR"]